{"text_format":"1","workbook":"xlsx","n_sheets":8,"sheets":["ISIAN","MENU","FORM_INPUT","FORM_BYR","DB","TBL_BYR","PO","PO_RT"],"not_rendered":{"charts":0,"images":3,"macros":1,"external_links":1,"defined_names":6,"comments":0,"pivot_tables":0},"unopened":[],"bounds":{"document_bytes":16777216,"sheet_cells":100000,"rows_first":2000,"rows_last":500,"rows_between":2000,"halvings":0,"cell_chars":16384,"cell_head_chars":4096},"cells_cut":0,"cells_raw":0,"read":"whole","date_system":"1900"}

{"sheet":"ISIAN","index":0,"n_rows":3,"n_cols":3,"rows_kept":3,"cut":false,"hidden":false,"merged":[]}
["KANTOR DESA",":","KANTOR KEPALA DESA CARUL"]
["ALAMAT",":","Jl. Raya Balai Desa Carul NO.01 Carul Bumijawa Tegal KP. 52466"]
["DESA",":","DESA CARUL"]

{"sheet":"MENU","index":1,"n_rows":9,"n_cols":3,"rows_kept":9,"cut":false,"hidden":false,"merged":[[1,2,1,11],[2,2,2,11],[3,2,3,11],[4,2,4,11],[8,2,8,11]]}
[]
[null,null,"PEMERINTAH KABUPATEN TEGAL"]
[null,null,"KECAMATAN BUMIJAWA"]
[null,null,{"$f":"ISIAN!C1","v":"KANTOR KEPALA DESA CARUL"}]
[null,null,{"$f":"ISIAN!C2","v":"Jl. Raya Balai Desa Carul NO.01 Carul Bumijawa Tegal KP. 52466"}]
[]
[]
[]
[null,null,"MENU PEMBAYARAN PAJAK"]

{"sheet":"FORM_INPUT","index":2,"n_rows":21,"n_cols":9,"rows_kept":21,"cut":false,"hidden":false,"merged":[[4,2,4,8],[10,5,10,7],[16,5,16,6],[18,5,18,6]]}
[]
[]
[]
[]
[null,null,"FORM INPUT DATA"]
[]
[]
[]
[null,null,"NO",null,":","01"]
[]
[null,null,"NOMOR WAJIB PAJAK",null,":","00.01.0005"]
[]
[null,null,"NOMOR BLOK",null,":","c.02b"]
[]
[null,null,"NAMA WAJIB PAJAK",null,":","ratmo"]
[]
[null,null,"BAKU PAJAK",null,":",75000]
[]
[null,null,"DESA, RT/RW",null,":","Carul",null,null,"02/03"]
[]
[null,null,null,null,null,null,"Simpan dengan menekan Ctrl+P"]

{"sheet":"FORM_BYR","index":3,"n_rows":2511,"n_cols":15,"rows_kept":2511,"cut":false,"hidden":false,"merged":[[1,3,1,11]]}
[null,null,null,null,null,null,null,null,null,null,null,null,null,null,{"$f":"DB!B4","v":"00.01.0005"}]
[null,null,null,"FORM PEMBAYARAN PAJAK",null,null,null,null,null,null,null,null,null,null,{"$f":"DB!B5","v":0}]
[null,null,null,null,null,null,null,null,null,null,null,null,null,null,{"$f":"DB!B6","v":0}]
[null,null,null,null,null,null,null,null,null,null,null,null,null,null,{"$f":"DB!B7","v":0}]
[null,null,null,null,null,null,null,null,null,null,null,null,null,null,{"$f":"DB!B8","v":0}]
[null,null,null,"NOMOR WAJIB PAJAK",null,":","00.01.0005",null,null,null,null,null,null,null,{"$f":"DB!B9","v":0}]
[null,null,null,null,null,null,null,null,null,null,null,null,null,null,{"$f":"DB!B10","v":0}]
[null,null,null,"NAMA WAJIB PAJAK",null,":",{"$f":"IF(ISNA(VLOOKUP($G$6,DB!$B$3:$G$3998,3,FALSE)),\"\",(VLOOKUP($G$6,DB!$B$3:$G$3998,3,FALSE)))","v":"ratmo"},null,null,null,null,null,null,null,{"$f":"DB!B11","v":0}]
[null,null,null,null,null,null,null,null,null,null,null,null,null,null,{"$f":"DB!B12","v":0}]
[null,null,null,"NOMOR BLOK",null,":",{"$f":"IF(ISNA(VLOOKUP($G$6,DB!$B$3:$G$3998,2,FALSE)),\"\",(VLOOKUP($G$6,DB!$B$3:$G$3998,2,FALSE)))","v":"c.02b"},"DESA :",{"$f":"IF(ISNA(VLOOKUP($G$6,DB!$B$3:$G$3998,5,FALSE)),\"\",(VLOOKUP($G$6,DB!$B$3:$G$3998,5,FALSE)))","v":"Carul"},null,"RT/RW :",{"$f":"IF(ISNA(VLOOKUP($G$6,DB!$B$3:$G$3998,6,FALSE)),\"\",(VLOOKUP($G$6,DB!$B$3:$G$3998,6,FALSE)))","v":"02/03"},null,null,{"$f":"DB!B13","v":0}]
[null,null,null,null,null,null,null,null,null,null,null,null,null,null,{"$f":"DB!B14","v":0}]
[null,null,null,"BAKU PAJAK",null,":",{"$f":"IF(ISNA(VLOOKUP($G$6,DB!$B$3:$G$3998,4,FALSE)),\"\",(VLOOKUP($G$6,DB!$B$3:$G$3998,4,FALSE)))","v":75000},null,null,null,null,null,null,null,{"$f":"DB!B15","v":0}]
[null,null,null,null,null,null,null,null,null,null,null,null,null,null,{"$f":"DB!B16","v":0}]
[null,null,null,"TERBILANG",null,":",{"$f":"[1]!terbilang(G12)&\" Rupiah\"","v":{"$error":"#NAME?"}},null,null,null,null,null,null,null,{"$f":"DB!B17","v":0}]
[null,null,null,null,null,null,null,null,null,null,null,null,null,null,{"$f":"DB!B18","v":0}]
[null,null,null,null,null,null,null,null,null,null,null,null,null,null,{"$f":"DB!B19","v":0}]
[null,null,null,"TANGGAL BAYAR",null,":",{"$f":"TODAY()","v":"2017-05-03"},null,null,null,null,null,null,null,{"$f":"DB!B20","v":0}]
[null,null,null,null,null,null,null,null,null,null,null,null,null,null,{"$f":"DB!B21","v":0}]
[null,null,null,"JUMLAH BAYAR",null,":",75000,"Simpan dengan menekan Ctrl+X",null,null,null,null,null,null,{"$f":"DB!B22","v":0}]
[null,null,null,null,null,null,{"$f":"IF(G19=G12,\"LUNAS\",IF(G19>G12,(\"Lebih \"&G19-G12),IF(G19<G12,(\"Kurang \"&G12-G19),\"\")))","v":"LUNAS"},null,null,null,null,null,null,null,{"$f":"DB!B23","v":0}]
[null,null,null,null,null,null,null,null,null,null,null,null,null,null,{"$f":"DB!B24","v":0}]
[null,null,null,null,null,null,null,null,null,null,null,null,null,null,{"$f":"DB!B25","v":0}]
[null,null,null,null,null,null,null,null,null,null,null,null,null,null,{"$f":"DB!B26","v":0}]
[null,null,null,null,null,null,null,null,null,null,null,null,null,null,{"$f":"DB!B27","v":0}]
[null,null,null,null,null,null,null,null,null,null,null,null,null,null,{"$f":"DB!B28","v":0}]
[null,null,null,null,null,null,null,null,null,null,null,null,null,null,{"$f":"DB!B29","v":0}]
[null,null,null,null,null,null,null,null,null,null,null,null,null,null,{"$f":"DB!B30","v":0}]
[null,null,null,null,null,null,null,null,null,null,null,null,null,null,{"$f":"DB!B31","v":0}]
[null,null,null,null,null,null,null,null,null,null,null,null,null,null,{"$f":"DB!B32","v":0}]
[null,null,null,null,null,null,null,null,null,null,null,null,null,null,{"$f":"DB!B33","v":0}]
[null,null,null,null,null,null,null,null,null,null,null,null,null,null,{"$f":"DB!B34","v":0}]
[null,null,null,null,null,null,null,null,null,null,null,null,null,null,{"$f":"DB!B35","v":0}]
[null,null,null,null,null,null,null,null,null,null,null,null,null,null,{"$f":"DB!B36","v":0}]
[null,null,null,null,null,null,null,null,null,null,null,null,null,null,{"$f":"DB!B37","v":0}]
[null,null,null,null,null,null,null,null,null,null,null,null,null,null,{"$f":"DB!B38","v":0}]
[null,null,null,null,null,null,null,null,null,null,null,null,null,null,{"$f":"DB!B39","v":0}]
[null,null,null,null,null,null,null,null,null,null,null,null,null,null,{"$f":"DB!B40","v":0}]
[null,null,null,null,null,null,null,null,null,null,null,null,null,null,{"$f":"DB!B41","v":0}]
[null,null,null,null,null,null,null,null,null,null,null,null,null,null,{"$f":"DB!B42","v":0}]
[null,null,null,null,null,null,null,null,null,null,null,null,null,null,{"$f":"DB!B43","v":0}]
[null,null,null,null,null,null,null,null,null,null,null,null,null,null,{"$f":"DB!B44","v":0}]
[null,null,null,null,null,null,null,null,null,null,null,null,null,null,{"$f":"DB!B45","v":0}]
[null,null,null,null,null,null,null,null,null,null,null,null,null,null,{"$f":"DB!B46","v":0}]
[null,null,null,null,null,null,null,null,null,null,null,null,null,null,{"$f":"DB!B47","v":0}]
[null,null,null,null,null,null,null,null,null,null,null,null,null,null,{"$f":"DB!B48","v":0}]
[null,null,null,null,null,null,null,null,null,null,null,null,null,null,{"$f":"DB!B49","v":0}]
[null,null,null,null,null,null,null,null,null,null,null,null,null,null,{"$f":"DB!B50","v":0}]
[null,null,null,null,null,null,null,null,null,null,null,null,null,null,{"$f":"DB!B51","v":0}]
[null,null,null,null,null,null,null,null,null,null,null,null,null,null,{"$f":"DB!B52","v":0}]
[null,null,null,null,null,null,null,null,null,null,null,null,null,null,{"$f":"DB!B53","v":0}]
[null,null,null,null,null,null,null,null,null,null,null,null,null,null,{"$f":"DB!B54","v":0}]
[null,null,null,null,null,null,null,null,null,null,null,null,null,null,{"$f":"DB!B55","v":0}]
[null,null,null,null,null,null,null,null,null,null,null,null,null,null,{"$f":"DB!B56","v":0}]
[null,null,null,null,null,null,null,null,null,null,null,null,null,null,{"$f":"DB!B57","v":0}]
[null,null,null,null,null,null,null,null,null,null,null,null,null,null,{"$f":"DB!B58","v":0}]
[null,null,null,null,null,null,null,null,null,null,null,null,null,null,{"$f":"DB!B59","v":0}]
[null,null,null,null,null,null,null,null,null,null,null,null,null,null,{"$f":"DB!B60","v":0}]
[null,null,null,null,null,null,null,null,null,null,null,null,null,null,{"$f":"DB!B61","v":0}]
[null,null,null,null,null,null,null,null,null,null,null,null,null,null,{"$f":"DB!B62","v":0}]
[null,null,null,null,null,null,null,null,null,null,null,null,null,null,{"$f":"DB!B63","v":0}]
[null,null,null,null,null,null,null,null,null,null,null,null,null,null,{"$f":"DB!B64","v":0}]
[null,null,null,null,null,null,null,null,null,null,null,null,null,null,{"$f":"DB!B65","v":0}]
[null,null,null,null,null,null,null,null,null,null,null,null,null,null,{"$f":"DB!B66","v":0}]
[null,null,null,null,null,null,null,null,null,null,null,null,null,null,{"$f":"DB!B67","v":0}]
[null,null,null,null,null,null,null,null,null,null,null,null,null,null,{"$f":"DB!B68","v":0}]
[null,null,null,null,null,null,null,null,null,null,null,null,null,null,{"$f":"DB!B69","v":0}]
[null,null,null,null,null,null,null,null,null,null,null,null,null,null,{"$f":"DB!B70","v":0}]
[null,null,null,null,null,null,null,null,null,null,null,null,null,null,{"$f":"DB!B71","v":0}]
[null,null,null,null,null,null,null,null,null,null,null,null,null,null,{"$f":"DB!B72","v":0}]
[null,null,null,null,null,null,null,null,null,null,null,null,null,null,{"$f":"DB!B73","v":0}]
[null,null,null,null,null,null,null,null,null,null,null,null,null,null,{"$f":"DB!B74","v":0}]
[null,null,null,null,null,null,null,null,null,null,null,null,null,null,{"$f":"DB!B75","v":0}]
[null,null,null,null,null,null,null,null,null,null,null,null,null,null,{"$f":"DB!B76","v":0}]
[null,null,null,null,null,null,null,null,null,null,null,null,null,null,{"$f":"DB!B77","v":0}]
[null,null,null,null,null,null,null,null,null,null,null,null,null,null,{"$f":"DB!B78","v":0}]
[null,null,null,null,null,null,null,null,null,null,null,null,null,null,{"$f":"DB!B79","v":0}]
[null,null,null,null,null,null,null,null,null,null,null,null,null,null,{"$f":"DB!B80","v":0}]
[null,null,null,null,null,null,null,null,null,null,null,null,null,null,{"$f":"DB!B81","v":0}]
[null,null,null,null,null,null,null,null,null,null,null,null,null,null,{"$f":"DB!B82","v":0}]
[null,null,null,null,null,null,null,null,null,null,null,null,null,null,{"$f":"DB!B83","v":0}]
[null,null,null,null,null,null,null,null,null,null,null,null,null,null,{"$f":"DB!B84","v":0}]
[null,null,null,null,null,null,null,null,null,null,null,null,null,null,{"$f":"DB!B85","v":0}]
[null,null,null,null,null,null,null,null,null,null,null,null,null,null,{"$f":"DB!B86","v":0}]
[null,null,null,null,null,null,null,null,null,null,null,null,null,null,{"$f":"DB!B87","v":0}]
[null,null,null,null,null,null,null,null,null,null,null,null,null,null,{"$f":"DB!B88","v":0}]
[null,null,null,null,null,null,null,null,null,null,null,null,null,null,{"$f":"DB!B89","v":0}]
[null,null,null,null,null,null,null,null,null,null,null,null,null,null,{"$f":"DB!B90","v":0}]
[null,null,null,null,null,null,null,null,null,null,null,null,null,null,{"$f":"DB!B91","v":0}]
[null,null,null,null,null,null,null,null,null,null,null,null,null,null,{"$f":"DB!B92","v":0}]
[null,null,null,null,null,null,null,null,null,null,null,null,null,null,{"$f":"DB!B93","v":0}]
[null,null,null,null,null,null,null,null,null,null,null,null,null,null,{"$f":"DB!B94","v":0}]
[null,null,null,null,null,null,null,null,null,null,null,null,null,null,{"$f":"DB!B95","v":0}]
[null,null,null,null,null,null,null,null,null,null,null,null,null,null,{"$f":"DB!B96","v":0}]
[null,null,null,null,null,null,null,null,null,null,null,null,null,null,{"$f":"DB!B97","v":0}]
[null,null,null,null,null,null,null,null,null,null,null,null,null,null,{"$f":"DB!B98","v":0}]
[null,null,null,null,null,null,null,null,null,null,null,null,null,null,{"$f":"DB!B99","v":0}]
[null,null,null,null,null,null,null,null,null,null,null,null,null,null,{"$f":"DB!B100","v":0}]
[null,null,null,null,null,null,null,null,null,null,null,null,null,null,{"$f":"DB!B101","v":0}]
[null,null,null,null,null,null,null,null,null,null,null,null,null,null,{"$f":"DB!B102","v":0}]
[null,null,null,null,null,null,null,null,null,null,null,null,null,null,{"$f":"DB!B103","v":0}]
[null,null,null,null,null,null,null,null,null,null,null,null,null,null,{"$f":"DB!B104","v":0}]
[null,null,null,null,null,null,null,null,null,null,null,null,null,null,{"$f":"DB!B105","v":0}]
[null,null,null,null,null,null,null,null,null,null,null,null,null,null,{"$f":"DB!B106","v":0}]
[null,null,null,null,null,null,null,null,null,null,null,null,null,null,{"$f":"DB!B107","v":0}]
[null,null,null,null,null,null,null,null,null,null,null,null,null,null,{"$f":"DB!B108","v":0}]
[null,null,null,null,null,null,null,null,null,null,null,null,null,null,{"$f":"DB!B109","v":0}]
[null,null,null,null,null,null,null,null,null,null,null,null,null,null,{"$f":"DB!B110","v":0}]
[null,null,null,null,null,null,null,null,null,null,null,null,null,null,{"$f":"DB!B111","v":0}]
[null,null,null,null,null,null,null,null,null,null,null,null,null,null,{"$f":"DB!B112","v":0}]
[null,null,null,null,null,null,null,null,null,null,null,null,null,null,{"$f":"DB!B113","v":0}]
[null,null,null,null,null,null,null,null,null,null,null,null,null,null,{"$f":"DB!B114","v":0}]
[null,null,null,null,null,null,null,null,null,null,null,null,null,null,{"$f":"DB!B115","v":0}]
[null,null,null,null,null,null,null,null,null,null,null,null,null,null,{"$f":"DB!B116","v":0}]
[null,null,null,null,null,null,null,null,null,null,null,null,null,null,{"$f":"DB!B117","v":0}]
[null,null,null,null,null,null,null,null,null,null,null,null,null,null,{"$f":"DB!B118","v":0}]
[null,null,null,null,null,null,null,null,null,null,null,null,null,null,{"$f":"DB!B119","v":0}]
[null,null,null,null,null,null,null,null,null,null,null,null,null,null,{"$f":"DB!B120","v":0}]
[null,null,null,null,null,null,null,null,null,null,null,null,null,null,{"$f":"DB!B121","v":0}]
[null,null,null,null,null,null,null,null,null,null,null,null,null,null,{"$f":"DB!B122","v":0}]
[null,null,null,null,null,null,null,null,null,null,null,null,null,null,{"$f":"DB!B123","v":0}]
[null,null,null,null,null,null,null,null,null,null,null,null,null,null,{"$f":"DB!B124","v":0}]
[null,null,null,null,null,null,null,null,null,null,null,null,null,null,{"$f":"DB!B125","v":0}]
[null,null,null,null,null,null,null,null,null,null,null,null,null,null,{"$f":"DB!B126","v":0}]
[null,null,null,null,null,null,null,null,null,null,null,null,null,null,{"$f":"DB!B127","v":0}]
[null,null,null,null,null,null,null,null,null,null,null,null,null,null,{"$f":"DB!B128","v":0}]
[null,null,null,null,null,null,null,null,null,null,null,null,null,null,{"$f":"DB!B129","v":0}]
[null,null,null,null,null,null,null,null,null,null,null,null,null,null,{"$f":"DB!B130","v":0}]
[null,null,null,null,null,null,null,null,null,null,null,null,null,null,{"$f":"DB!B131","v":0}]
[null,null,null,null,null,null,null,null,null,null,null,null,null,null,{"$f":"DB!B132","v":0}]
[null,null,null,null,null,null,null,null,null,null,null,null,null,null,{"$f":"DB!B133","v":0}]
[null,null,null,null,null,null,null,null,null,null,null,null,null,null,{"$f":"DB!B134","v":0}]
[null,null,null,null,null,null,null,null,null,null,null,null,null,null,{"$f":"DB!B135","v":0}]
[null,null,null,null,null,null,null,null,null,null,null,null,null,null,{"$f":"DB!B136","v":0}]
[null,null,null,null,null,null,null,null,null,null,null,null,null,null,{"$f":"DB!B137","v":0}]
[null,null,null,null,null,null,null,null,null,null,null,null,null,null,{"$f":"DB!B138","v":0}]
[null,null,null,null,null,null,null,null,null,null,null,null,null,null,{"$f":"DB!B139","v":0}]
[null,null,null,null,null,null,null,null,null,null,null,null,null,null,{"$f":"DB!B140","v":0}]
[null,null,null,null,null,null,null,null,null,null,null,null,null,null,{"$f":"DB!B141","v":0}]
[null,null,null,null,null,null,null,null,null,null,null,null,null,null,{"$f":"DB!B142","v":0}]
[null,null,null,null,null,null,null,null,null,null,null,null,null,null,{"$f":"DB!B143","v":0}]
[null,null,null,null,null,null,null,null,null,null,null,null,null,null,{"$f":"DB!B144","v":0}]
[null,null,null,null,null,null,null,null,null,null,null,null,null,null,{"$f":"DB!B145","v":0}]
[null,null,null,null,null,null,null,null,null,null,null,null,null,null,{"$f":"DB!B146","v":0}]
[null,null,null,null,null,null,null,null,null,null,null,null,null,null,{"$f":"DB!B147","v":0}]
[null,null,null,null,null,null,null,null,null,null,null,null,null,null,{"$f":"DB!B148","v":0}]
[null,null,null,null,null,null,null,null,null,null,null,null,null,null,{"$f":"DB!B149","v":0}]
[null,null,null,null,null,null,null,null,null,null,null,null,null,null,{"$f":"DB!B150","v":0}]
[null,null,null,null,null,null,null,null,null,null,null,null,null,null,{"$f":"DB!B151","v":0}]
[null,null,null,null,null,null,null,null,null,null,null,null,null,null,{"$f":"DB!B152","v":0}]
[null,null,null,null,null,null,null,null,null,null,null,null,null,null,{"$f":"DB!B153","v":0}]
[null,null,null,null,null,null,null,null,null,null,null,null,null,null,{"$f":"DB!B154","v":0}]
[null,null,null,null,null,null,null,null,null,null,null,null,null,null,{"$f":"DB!B155","v":0}]
[null,null,null,null,null,null,null,null,null,null,null,null,null,null,{"$f":"DB!B156","v":0}]
[null,null,null,null,null,null,null,null,null,null,null,null,null,null,{"$f":"DB!B157","v":0}]
[null,null,null,null,null,null,null,null,null,null,null,null,null,null,{"$f":"DB!B158","v":0}]
[null,null,null,null,null,null,null,null,null,null,null,null,null,null,{"$f":"DB!B159","v":0}]
[null,null,null,null,null,null,null,null,null,null,null,null,null,null,{"$f":"DB!B160","v":0}]
[null,null,null,null,null,null,null,null,null,null,null,null,null,null,{"$f":"DB!B161","v":0}]
[null,null,null,null,null,null,null,null,null,null,null,null,null,null,{"$f":"DB!B162","v":0}]
[null,null,null,null,null,null,null,null,null,null,null,null,null,null,{"$f":"DB!B163","v":0}]
[null,null,null,null,null,null,null,null,null,null,null,null,null,null,{"$f":"DB!B164","v":0}]
[null,null,null,null,null,null,null,null,null,null,null,null,null,null,{"$f":"DB!B165","v":0}]
[null,null,null,null,null,null,null,null,null,null,null,null,null,null,{"$f":"DB!B166","v":0}]
[null,null,null,null,null,null,null,null,null,null,null,null,null,null,{"$f":"DB!B167","v":0}]
[null,null,null,null,null,null,null,null,null,null,null,null,null,null,{"$f":"DB!B168","v":0}]
[null,null,null,null,null,null,null,null,null,null,null,null,null,null,{"$f":"DB!B169","v":0}]
[null,null,null,null,null,null,null,null,null,null,null,null,null,null,{"$f":"DB!B170","v":0}]
[null,null,null,null,null,null,null,null,null,null,null,null,null,null,{"$f":"DB!B171","v":0}]
[null,null,null,null,null,null,null,null,null,null,null,null,null,null,{"$f":"DB!B172","v":0}]
[null,null,null,null,null,null,null,null,null,null,null,null,null,null,{"$f":"DB!B173","v":0}]
[null,null,null,null,null,null,null,null,null,null,null,null,null,null,{"$f":"DB!B174","v":0}]
[null,null,null,null,null,null,null,null,null,null,null,null,null,null,{"$f":"DB!B175","v":0}]
[null,null,null,null,null,null,null,null,null,null,null,null,null,null,{"$f":"DB!B176","v":0}]
[null,null,null,null,null,null,null,null,null,null,null,null,null,null,{"$f":"DB!B177","v":0}]
[null,null,null,null,null,null,null,null,null,null,null,null,null,null,{"$f":"DB!B178","v":0}]
[null,null,null,null,null,null,null,null,null,null,null,null,null,null,{"$f":"DB!B179","v":0}]
[null,null,null,null,null,null,null,null,null,null,null,null,null,null,{"$f":"DB!B180","v":0}]
[null,null,null,null,null,null,null,null,null,null,null,null,null,null,{"$f":"DB!B181","v":0}]
[null,null,null,null,null,null,null,null,null,null,null,null,null,null,{"$f":"DB!B182","v":0}]
[null,null,null,null,null,null,null,null,null,null,null,null,null,null,{"$f":"DB!B183","v":0}]
[null,null,null,null,null,null,null,null,null,null,null,null,null,null,{"$f":"DB!B184","v":0}]
[null,null,null,null,null,null,null,null,null,null,null,null,null,null,{"$f":"DB!B185","v":0}]
[null,null,null,null,null,null,null,null,null,null,null,null,null,null,{"$f":"DB!B186","v":0}]
[null,null,null,null,null,null,null,null,null,null,null,null,null,null,{"$f":"DB!B187","v":0}]
[null,null,null,null,null,null,null,null,null,null,null,null,null,null,{"$f":"DB!B188","v":0}]
[null,null,null,null,null,null,null,null,null,null,null,null,null,null,{"$f":"DB!B189","v":0}]
[null,null,null,null,null,null,null,null,null,null,null,null,null,null,{"$f":"DB!B190","v":0}]
[null,null,null,null,null,null,null,null,null,null,null,null,null,null,{"$f":"DB!B191","v":0}]
[null,null,null,null,null,null,null,null,null,null,null,null,null,null,{"$f":"DB!B192","v":0}]
[null,null,null,null,null,null,null,null,null,null,null,null,null,null,{"$f":"DB!B193","v":0}]
[null,null,null,null,null,null,null,null,null,null,null,null,null,null,{"$f":"DB!B194","v":0}]
[null,null,null,null,null,null,null,null,null,null,null,null,null,null,{"$f":"DB!B195","v":0}]
[null,null,null,null,null,null,null,null,null,null,null,null,null,null,{"$f":"DB!B196","v":0}]
[null,null,null,null,null,null,null,null,null,null,null,null,null,null,{"$f":"DB!B197","v":0}]
[null,null,null,null,null,null,null,null,null,null,null,null,null,null,{"$f":"DB!B198","v":0}]
[null,null,null,null,null,null,null,null,null,null,null,null,null,null,{"$f":"DB!B199","v":0}]
[null,null,null,null,null,null,null,null,null,null,null,null,null,null,{"$f":"DB!B200","v":0}]
[null,null,null,null,null,null,null,null,null,null,null,null,null,null,{"$f":"DB!B201","v":0}]
[null,null,null,null,null,null,null,null,null,null,null,null,null,null,{"$f":"DB!B202","v":0}]
[null,null,null,null,null,null,null,null,null,null,null,null,null,null,{"$f":"DB!B203","v":0}]
[null,null,null,null,null,null,null,null,null,null,null,null,null,null,{"$f":"DB!B204","v":0}]
[null,null,null,null,null,null,null,null,null,null,null,null,null,null,{"$f":"DB!B205","v":0}]
[null,null,null,null,null,null,null,null,null,null,null,null,null,null,{"$f":"DB!B206","v":0}]
[null,null,null,null,null,null,null,null,null,null,null,null,null,null,{"$f":"DB!B207","v":0}]
[null,null,null,null,null,null,null,null,null,null,null,null,null,null,{"$f":"DB!B208","v":0}]
[null,null,null,null,null,null,null,null,null,null,null,null,null,null,{"$f":"DB!B209","v":0}]
[null,null,null,null,null,null,null,null,null,null,null,null,null,null,{"$f":"DB!B210","v":0}]
[null,null,null,null,null,null,null,null,null,null,null,null,null,null,{"$f":"DB!B211","v":0}]
[null,null,null,null,null,null,null,null,null,null,null,null,null,null,{"$f":"DB!B212","v":0}]
[null,null,null,null,null,null,null,null,null,null,null,null,null,null,{"$f":"DB!B213","v":0}]
[null,null,null,null,null,null,null,null,null,null,null,null,null,null,{"$f":"DB!B214","v":0}]
[null,null,null,null,null,null,null,null,null,null,null,null,null,null,{"$f":"DB!B215","v":0}]
[null,null,null,null,null,null,null,null,null,null,null,null,null,null,{"$f":"DB!B216","v":0}]
[null,null,null,null,null,null,null,null,null,null,null,null,null,null,{"$f":"DB!B217","v":0}]
[null,null,null,null,null,null,null,null,null,null,null,null,null,null,{"$f":"DB!B218","v":0}]
[null,null,null,null,null,null,null,null,null,null,null,null,null,null,{"$f":"DB!B219","v":0}]
[null,null,null,null,null,null,null,null,null,null,null,null,null,null,{"$f":"DB!B220","v":0}]
[null,null,null,null,null,null,null,null,null,null,null,null,null,null,{"$f":"DB!B221","v":0}]
[null,null,null,null,null,null,null,null,null,null,null,null,null,null,{"$f":"DB!B222","v":0}]
[null,null,null,null,null,null,null,null,null,null,null,null,null,null,{"$f":"DB!B223","v":0}]
[null,null,null,null,null,null,null,null,null,null,null,null,null,null,{"$f":"DB!B224","v":0}]
[null,null,null,null,null,null,null,null,null,null,null,null,null,null,{"$f":"DB!B225","v":0}]
[null,null,null,null,null,null,null,null,null,null,null,null,null,null,{"$f":"DB!B226","v":0}]
[null,null,null,null,null,null,null,null,null,null,null,null,null,null,{"$f":"DB!B227","v":0}]
[null,null,null,null,null,null,null,null,null,null,null,null,null,null,{"$f":"DB!B228","v":0}]
[null,null,null,null,null,null,null,null,null,null,null,null,null,null,{"$f":"DB!B229","v":0}]
[null,null,null,null,null,null,null,null,null,null,null,null,null,null,{"$f":"DB!B230","v":0}]
[null,null,null,null,null,null,null,null,null,null,null,null,null,null,{"$f":"DB!B231","v":0}]
[null,null,null,null,null,null,null,null,null,null,null,null,null,null,{"$f":"DB!B232","v":0}]
[null,null,null,null,null,null,null,null,null,null,null,null,null,null,{"$f":"DB!B233","v":0}]
[null,null,null,null,null,null,null,null,null,null,null,null,null,null,{"$f":"DB!B234","v":0}]
[null,null,null,null,null,null,null,null,null,null,null,null,null,null,{"$f":"DB!B235","v":0}]
[null,null,null,null,null,null,null,null,null,null,null,null,null,null,{"$f":"DB!B236","v":0}]
[null,null,null,null,null,null,null,null,null,null,null,null,null,null,{"$f":"DB!B237","v":0}]
[null,null,null,null,null,null,null,null,null,null,null,null,null,null,{"$f":"DB!B238","v":0}]
[null,null,null,null,null,null,null,null,null,null,null,null,null,null,{"$f":"DB!B239","v":0}]
[null,null,null,null,null,null,null,null,null,null,null,null,null,null,{"$f":"DB!B240","v":0}]
[null,null,null,null,null,null,null,null,null,null,null,null,null,null,{"$f":"DB!B241","v":0}]
[null,null,null,null,null,null,null,null,null,null,null,null,null,null,{"$f":"DB!B242","v":0}]
[null,null,null,null,null,null,null,null,null,null,null,null,null,null,{"$f":"DB!B243","v":0}]
[null,null,null,null,null,null,null,null,null,null,null,null,null,null,{"$f":"DB!B244","v":0}]
[null,null,null,null,null,null,null,null,null,null,null,null,null,null,{"$f":"DB!B245","v":0}]
[null,null,null,null,null,null,null,null,null,null,null,null,null,null,{"$f":"DB!B246","v":0}]
[null,null,null,null,null,null,null,null,null,null,null,null,null,null,{"$f":"DB!B247","v":0}]
[null,null,null,null,null,null,null,null,null,null,null,null,null,null,{"$f":"DB!B248","v":0}]
[null,null,null,null,null,null,null,null,null,null,null,null,null,null,{"$f":"DB!B249","v":0}]
[null,null,null,null,null,null,null,null,null,null,null,null,null,null,{"$f":"DB!B250","v":0}]
[null,null,null,null,null,null,null,null,null,null,null,null,null,null,{"$f":"DB!B251","v":0}]
[null,null,null,null,null,null,null,null,null,null,null,null,null,null,{"$f":"DB!B252","v":0}]
[null,null,null,null,null,null,null,null,null,null,null,null,null,null,{"$f":"DB!B253","v":0}]
[null,null,null,null,null,null,null,null,null,null,null,null,null,null,{"$f":"DB!B254","v":0}]
[null,null,null,null,null,null,null,null,null,null,null,null,null,null,{"$f":"DB!B255","v":0}]
[null,null,null,null,null,null,null,null,null,null,null,null,null,null,{"$f":"DB!B256","v":0}]
[null,null,null,null,null,null,null,null,null,null,null,null,null,null,{"$f":"DB!B257","v":0}]
[null,null,null,null,null,null,null,null,null,null,null,null,null,null,{"$f":"DB!B258","v":0}]
[null,null,null,null,null,null,null,null,null,null,null,null,null,null,{"$f":"DB!B259","v":0}]
[null,null,null,null,null,null,null,null,null,null,null,null,null,null,{"$f":"DB!B260","v":0}]
[null,null,null,null,null,null,null,null,null,null,null,null,null,null,{"$f":"DB!B261","v":0}]
[null,null,null,null,null,null,null,null,null,null,null,null,null,null,{"$f":"DB!B262","v":0}]
[null,null,null,null,null,null,null,null,null,null,null,null,null,null,{"$f":"DB!B263","v":0}]
[null,null,null,null,null,null,null,null,null,null,null,null,null,null,{"$f":"DB!B264","v":0}]
[null,null,null,null,null,null,null,null,null,null,null,null,null,null,{"$f":"DB!B265","v":0}]
[null,null,null,null,null,null,null,null,null,null,null,null,null,null,{"$f":"DB!B266","v":0}]
[null,null,null,null,null,null,null,null,null,null,null,null,null,null,{"$f":"DB!B267","v":0}]
[null,null,null,null,null,null,null,null,null,null,null,null,null,null,{"$f":"DB!B268","v":0}]
[null,null,null,null,null,null,null,null,null,null,null,null,null,null,{"$f":"DB!B269","v":0}]
[null,null,null,null,null,null,null,null,null,null,null,null,null,null,{"$f":"DB!B270","v":0}]
[null,null,null,null,null,null,null,null,null,null,null,null,null,null,{"$f":"DB!B271","v":0}]
[null,null,null,null,null,null,null,null,null,null,null,null,null,null,{"$f":"DB!B272","v":0}]
[null,null,null,null,null,null,null,null,null,null,null,null,null,null,{"$f":"DB!B273","v":0}]
[null,null,null,null,null,null,null,null,null,null,null,null,null,null,{"$f":"DB!B274","v":0}]
[null,null,null,null,null,null,null,null,null,null,null,null,null,null,{"$f":"DB!B275","v":0}]
[null,null,null,null,null,null,null,null,null,null,null,null,null,null,{"$f":"DB!B276","v":0}]
[null,null,null,null,null,null,null,null,null,null,null,null,null,null,{"$f":"DB!B277","v":0}]
[null,null,null,null,null,null,null,null,null,null,null,null,null,null,{"$f":"DB!B278","v":0}]
[null,null,null,null,null,null,null,null,null,null,null,null,null,null,{"$f":"DB!B279","v":0}]
[null,null,null,null,null,null,null,null,null,null,null,null,null,null,{"$f":"DB!B280","v":0}]
[null,null,null,null,null,null,null,null,null,null,null,null,null,null,{"$f":"DB!B281","v":0}]
[null,null,null,null,null,null,null,null,null,null,null,null,null,null,{"$f":"DB!B282","v":0}]
[null,null,null,null,null,null,null,null,null,null,null,null,null,null,{"$f":"DB!B283","v":0}]
[null,null,null,null,null,null,null,null,null,null,null,null,null,null,{"$f":"DB!B284","v":0}]
[null,null,null,null,null,null,null,null,null,null,null,null,null,null,{"$f":"DB!B285","v":0}]
[null,null,null,null,null,null,null,null,null,null,null,null,null,null,{"$f":"DB!B286","v":0}]
[null,null,null,null,null,null,null,null,null,null,null,null,null,null,{"$f":"DB!B287","v":0}]
[null,null,null,null,null,null,null,null,null,null,null,null,null,null,{"$f":"DB!B288","v":0}]
[null,null,null,null,null,null,null,null,null,null,null,null,null,null,{"$f":"DB!B289","v":0}]
[null,null,null,null,null,null,null,null,null,null,null,null,null,null,{"$f":"DB!B290","v":0}]
[null,null,null,null,null,null,null,null,null,null,null,null,null,null,{"$f":"DB!B291","v":0}]
[null,null,null,null,null,null,null,null,null,null,null,null,null,null,{"$f":"DB!B292","v":0}]
[null,null,null,null,null,null,null,null,null,null,null,null,null,null,{"$f":"DB!B293","v":0}]
[null,null,null,null,null,null,null,null,null,null,null,null,null,null,{"$f":"DB!B294","v":0}]
[null,null,null,null,null,null,null,null,null,null,null,null,null,null,{"$f":"DB!B295","v":0}]
[null,null,null,null,null,null,null,null,null,null,null,null,null,null,{"$f":"DB!B296","v":0}]
[null,null,null,null,null,null,null,null,null,null,null,null,null,null,{"$f":"DB!B297","v":0}]
[null,null,null,null,null,null,null,null,null,null,null,null,null,null,{"$f":"DB!B298","v":0}]
[null,null,null,null,null,null,null,null,null,null,null,null,null,null,{"$f":"DB!B299","v":0}]
[null,null,null,null,null,null,null,null,null,null,null,null,null,null,{"$f":"DB!B300","v":0}]
[null,null,null,null,null,null,null,null,null,null,null,null,null,null,{"$f":"DB!B301","v":0}]
[null,null,null,null,null,null,null,null,null,null,null,null,null,null,{"$f":"DB!B302","v":0}]
[null,null,null,null,null,null,null,null,null,null,null,null,null,null,{"$f":"DB!B303","v":0}]
[null,null,null,null,null,null,null,null,null,null,null,null,null,null,{"$f":"DB!B304","v":0}]
[null,null,null,null,null,null,null,null,null,null,null,null,null,null,{"$f":"DB!B305","v":0}]
[null,null,null,null,null,null,null,null,null,null,null,null,null,null,{"$f":"DB!B306","v":0}]
[null,null,null,null,null,null,null,null,null,null,null,null,null,null,{"$f":"DB!B307","v":0}]
[null,null,null,null,null,null,null,null,null,null,null,null,null,null,{"$f":"DB!B308","v":0}]
[null,null,null,null,null,null,null,null,null,null,null,null,null,null,{"$f":"DB!B309","v":0}]
[null,null,null,null,null,null,null,null,null,null,null,null,null,null,{"$f":"DB!B310","v":0}]
[null,null,null,null,null,null,null,null,null,null,null,null,null,null,{"$f":"DB!B311","v":0}]
[null,null,null,null,null,null,null,null,null,null,null,null,null,null,{"$f":"DB!B312","v":0}]
[null,null,null,null,null,null,null,null,null,null,null,null,null,null,{"$f":"DB!B313","v":0}]
[null,null,null,null,null,null,null,null,null,null,null,null,null,null,{"$f":"DB!B314","v":0}]
[null,null,null,null,null,null,null,null,null,null,null,null,null,null,{"$f":"DB!B315","v":0}]
[null,null,null,null,null,null,null,null,null,null,null,null,null,null,{"$f":"DB!B316","v":0}]
[null,null,null,null,null,null,null,null,null,null,null,null,null,null,{"$f":"DB!B317","v":0}]
[null,null,null,null,null,null,null,null,null,null,null,null,null,null,{"$f":"DB!B318","v":0}]
[null,null,null,null,null,null,null,null,null,null,null,null,null,null,{"$f":"DB!B319","v":0}]
[null,null,null,null,null,null,null,null,null,null,null,null,null,null,{"$f":"DB!B320","v":0}]
[null,null,null,null,null,null,null,null,null,null,null,null,null,null,{"$f":"DB!B321","v":0}]
[null,null,null,null,null,null,null,null,null,null,null,null,null,null,{"$f":"DB!B322","v":0}]
[null,null,null,null,null,null,null,null,null,null,null,null,null,null,{"$f":"DB!B323","v":0}]
[null,null,null,null,null,null,null,null,null,null,null,null,null,null,{"$f":"DB!B324","v":0}]
[null,null,null,null,null,null,null,null,null,null,null,null,null,null,{"$f":"DB!B325","v":0}]
[null,null,null,null,null,null,null,null,null,null,null,null,null,null,{"$f":"DB!B326","v":0}]
[null,null,null,null,null,null,null,null,null,null,null,null,null,null,{"$f":"DB!B327","v":0}]
[null,null,null,null,null,null,null,null,null,null,null,null,null,null,{"$f":"DB!B328","v":0}]
[null,null,null,null,null,null,null,null,null,null,null,null,null,null,{"$f":"DB!B329","v":0}]
[null,null,null,null,null,null,null,null,null,null,null,null,null,null,{"$f":"DB!B330","v":0}]
[null,null,null,null,null,null,null,null,null,null,null,null,null,null,{"$f":"DB!B331","v":0}]
[null,null,null,null,null,null,null,null,null,null,null,null,null,null,{"$f":"DB!B332","v":0}]
[null,null,null,null,null,null,null,null,null,null,null,null,null,null,{"$f":"DB!B333","v":0}]
[null,null,null,null,null,null,null,null,null,null,null,null,null,null,{"$f":"DB!B334","v":0}]
[null,null,null,null,null,null,null,null,null,null,null,null,null,null,{"$f":"DB!B335","v":0}]
[null,null,null,null,null,null,null,null,null,null,null,null,null,null,{"$f":"DB!B336","v":0}]
[null,null,null,null,null,null,null,null,null,null,null,null,null,null,{"$f":"DB!B337","v":0}]
[null,null,null,null,null,null,null,null,null,null,null,null,null,null,{"$f":"DB!B338","v":0}]
[null,null,null,null,null,null,null,null,null,null,null,null,null,null,{"$f":"DB!B339","v":0}]
[null,null,null,null,null,null,null,null,null,null,null,null,null,null,{"$f":"DB!B340","v":0}]
[null,null,null,null,null,null,null,null,null,null,null,null,null,null,{"$f":"DB!B341","v":0}]
[null,null,null,null,null,null,null,null,null,null,null,null,null,null,{"$f":"DB!B342","v":0}]
[null,null,null,null,null,null,null,null,null,null,null,null,null,null,{"$f":"DB!B343","v":0}]
[null,null,null,null,null,null,null,null,null,null,null,null,null,null,{"$f":"DB!B344","v":0}]
[null,null,null,null,null,null,null,null,null,null,null,null,null,null,{"$f":"DB!B345","v":0}]
[null,null,null,null,null,null,null,null,null,null,null,null,null,null,{"$f":"DB!B346","v":0}]
[null,null,null,null,null,null,null,null,null,null,null,null,null,null,{"$f":"DB!B347","v":0}]
[null,null,null,null,null,null,null,null,null,null,null,null,null,null,{"$f":"DB!B348","v":0}]
[null,null,null,null,null,null,null,null,null,null,null,null,null,null,{"$f":"DB!B349","v":0}]
[null,null,null,null,null,null,null,null,null,null,null,null,null,null,{"$f":"DB!B350","v":0}]
[null,null,null,null,null,null,null,null,null,null,null,null,null,null,{"$f":"DB!B351","v":0}]
[null,null,null,null,null,null,null,null,null,null,null,null,null,null,{"$f":"DB!B352","v":0}]
[null,null,null,null,null,null,null,null,null,null,null,null,null,null,{"$f":"DB!B353","v":0}]
[null,null,null,null,null,null,null,null,null,null,null,null,null,null,{"$f":"DB!B354","v":0}]
[null,null,null,null,null,null,null,null,null,null,null,null,null,null,{"$f":"DB!B355","v":0}]
[null,null,null,null,null,null,null,null,null,null,null,null,null,null,{"$f":"DB!B356","v":0}]
[null,null,null,null,null,null,null,null,null,null,null,null,null,null,{"$f":"DB!B357","v":0}]
[null,null,null,null,null,null,null,null,null,null,null,null,null,null,{"$f":"DB!B358","v":0}]
[null,null,null,null,null,null,null,null,null,null,null,null,null,null,{"$f":"DB!B359","v":0}]
[null,null,null,null,null,null,null,null,null,null,null,null,null,null,{"$f":"DB!B360","v":0}]
[null,null,null,null,null,null,null,null,null,null,null,null,null,null,{"$f":"DB!B361","v":0}]
[null,null,null,null,null,null,null,null,null,null,null,null,null,null,{"$f":"DB!B362","v":0}]
[null,null,null,null,null,null,null,null,null,null,null,null,null,null,{"$f":"DB!B363","v":0}]
[null,null,null,null,null,null,null,null,null,null,null,null,null,null,{"$f":"DB!B364","v":0}]
[null,null,null,null,null,null,null,null,null,null,null,null,null,null,{"$f":"DB!B365","v":0}]
[null,null,null,null,null,null,null,null,null,null,null,null,null,null,{"$f":"DB!B366","v":0}]
[null,null,null,null,null,null,null,null,null,null,null,null,null,null,{"$f":"DB!B367","v":0}]
[null,null,null,null,null,null,null,null,null,null,null,null,null,null,{"$f":"DB!B368","v":0}]
[null,null,null,null,null,null,null,null,null,null,null,null,null,null,{"$f":"DB!B369","v":0}]
[null,null,null,null,null,null,null,null,null,null,null,null,null,null,{"$f":"DB!B370","v":0}]
[null,null,null,null,null,null,null,null,null,null,null,null,null,null,{"$f":"DB!B371","v":0}]
[null,null,null,null,null,null,null,null,null,null,null,null,null,null,{"$f":"DB!B372","v":0}]
[null,null,null,null,null,null,null,null,null,null,null,null,null,null,{"$f":"DB!B373","v":0}]
[null,null,null,null,null,null,null,null,null,null,null,null,null,null,{"$f":"DB!B374","v":0}]
[null,null,null,null,null,null,null,null,null,null,null,null,null,null,{"$f":"DB!B375","v":0}]
[null,null,null,null,null,null,null,null,null,null,null,null,null,null,{"$f":"DB!B376","v":0}]
[null,null,null,null,null,null,null,null,null,null,null,null,null,null,{"$f":"DB!B377","v":0}]
[null,null,null,null,null,null,null,null,null,null,null,null,null,null,{"$f":"DB!B378","v":0}]
[null,null,null,null,null,null,null,null,null,null,null,null,null,null,{"$f":"DB!B379","v":0}]
[null,null,null,null,null,null,null,null,null,null,null,null,null,null,{"$f":"DB!B380","v":0}]
[null,null,null,null,null,null,null,null,null,null,null,null,null,null,{"$f":"DB!B381","v":0}]
[null,null,null,null,null,null,null,null,null,null,null,null,null,null,{"$f":"DB!B382","v":0}]
[null,null,null,null,null,null,null,null,null,null,null,null,null,null,{"$f":"DB!B383","v":0}]
[null,null,null,null,null,null,null,null,null,null,null,null,null,null,{"$f":"DB!B384","v":0}]
[null,null,null,null,null,null,null,null,null,null,null,null,null,null,{"$f":"DB!B385","v":0}]
[null,null,null,null,null,null,null,null,null,null,null,null,null,null,{"$f":"DB!B386","v":0}]
[null,null,null,null,null,null,null,null,null,null,null,null,null,null,{"$f":"DB!B387","v":0}]
[null,null,null,null,null,null,null,null,null,null,null,null,null,null,{"$f":"DB!B388","v":0}]
[null,null,null,null,null,null,null,null,null,null,null,null,null,null,{"$f":"DB!B389","v":0}]
[null,null,null,null,null,null,null,null,null,null,null,null,null,null,{"$f":"DB!B390","v":0}]
[null,null,null,null,null,null,null,null,null,null,null,null,null,null,{"$f":"DB!B391","v":0}]
[null,null,null,null,null,null,null,null,null,null,null,null,null,null,{"$f":"DB!B392","v":0}]
[null,null,null,null,null,null,null,null,null,null,null,null,null,null,{"$f":"DB!B393","v":0}]
[null,null,null,null,null,null,null,null,null,null,null,null,null,null,{"$f":"DB!B394","v":0}]
[null,null,null,null,null,null,null,null,null,null,null,null,null,null,{"$f":"DB!B395","v":0}]
[null,null,null,null,null,null,null,null,null,null,null,null,null,null,{"$f":"DB!B396","v":0}]
[null,null,null,null,null,null,null,null,null,null,null,null,null,null,{"$f":"DB!B397","v":0}]
[null,null,null,null,null,null,null,null,null,null,null,null,null,null,{"$f":"DB!B398","v":0}]
[null,null,null,null,null,null,null,null,null,null,null,null,null,null,{"$f":"DB!B399","v":0}]
[null,null,null,null,null,null,null,null,null,null,null,null,null,null,{"$f":"DB!B400","v":0}]
[null,null,null,null,null,null,null,null,null,null,null,null,null,null,{"$f":"DB!B401","v":0}]
[null,null,null,null,null,null,null,null,null,null,null,null,null,null,{"$f":"DB!B402","v":0}]
[null,null,null,null,null,null,null,null,null,null,null,null,null,null,{"$f":"DB!B403","v":0}]
[null,null,null,null,null,null,null,null,null,null,null,null,null,null,{"$f":"DB!B404","v":0}]
[null,null,null,null,null,null,null,null,null,null,null,null,null,null,{"$f":"DB!B405","v":0}]
[null,null,null,null,null,null,null,null,null,null,null,null,null,null,{"$f":"DB!B406","v":0}]
[null,null,null,null,null,null,null,null,null,null,null,null,null,null,{"$f":"DB!B407","v":0}]
[null,null,null,null,null,null,null,null,null,null,null,null,null,null,{"$f":"DB!B408","v":0}]
[null,null,null,null,null,null,null,null,null,null,null,null,null,null,{"$f":"DB!B409","v":0}]
[null,null,null,null,null,null,null,null,null,null,null,null,null,null,{"$f":"DB!B410","v":0}]
[null,null,null,null,null,null,null,null,null,null,null,null,null,null,{"$f":"DB!B411","v":0}]
[null,null,null,null,null,null,null,null,null,null,null,null,null,null,{"$f":"DB!B412","v":0}]
[null,null,null,null,null,null,null,null,null,null,null,null,null,null,{"$f":"DB!B413","v":0}]
[null,null,null,null,null,null,null,null,null,null,null,null,null,null,{"$f":"DB!B414","v":0}]
[null,null,null,null,null,null,null,null,null,null,null,null,null,null,{"$f":"DB!B415","v":0}]
[null,null,null,null,null,null,null,null,null,null,null,null,null,null,{"$f":"DB!B416","v":0}]
[null,null,null,null,null,null,null,null,null,null,null,null,null,null,{"$f":"DB!B417","v":0}]
[null,null,null,null,null,null,null,null,null,null,null,null,null,null,{"$f":"DB!B418","v":0}]
[null,null,null,null,null,null,null,null,null,null,null,null,null,null,{"$f":"DB!B419","v":0}]
[null,null,null,null,null,null,null,null,null,null,null,null,null,null,{"$f":"DB!B420","v":0}]
[null,null,null,null,null,null,null,null,null,null,null,null,null,null,{"$f":"DB!B421","v":0}]
[null,null,null,null,null,null,null,null,null,null,null,null,null,null,{"$f":"DB!B422","v":0}]
[null,null,null,null,null,null,null,null,null,null,null,null,null,null,{"$f":"DB!B423","v":0}]
[null,null,null,null,null,null,null,null,null,null,null,null,null,null,{"$f":"DB!B424","v":0}]
[null,null,null,null,null,null,null,null,null,null,null,null,null,null,{"$f":"DB!B425","v":0}]
[null,null,null,null,null,null,null,null,null,null,null,null,null,null,{"$f":"DB!B426","v":0}]
[null,null,null,null,null,null,null,null,null,null,null,null,null,null,{"$f":"DB!B427","v":0}]
[null,null,null,null,null,null,null,null,null,null,null,null,null,null,{"$f":"DB!B428","v":0}]
[null,null,null,null,null,null,null,null,null,null,null,null,null,null,{"$f":"DB!B429","v":0}]
[null,null,null,null,null,null,null,null,null,null,null,null,null,null,{"$f":"DB!B430","v":0}]
[null,null,null,null,null,null,null,null,null,null,null,null,null,null,{"$f":"DB!B431","v":0}]
[null,null,null,null,null,null,null,null,null,null,null,null,null,null,{"$f":"DB!B432","v":0}]
[null,null,null,null,null,null,null,null,null,null,null,null,null,null,{"$f":"DB!B433","v":0}]
[null,null,null,null,null,null,null,null,null,null,null,null,null,null,{"$f":"DB!B434","v":0}]
[null,null,null,null,null,null,null,null,null,null,null,null,null,null,{"$f":"DB!B435","v":0}]
[null,null,null,null,null,null,null,null,null,null,null,null,null,null,{"$f":"DB!B436","v":0}]
[null,null,null,null,null,null,null,null,null,null,null,null,null,null,{"$f":"DB!B437","v":0}]
[null,null,null,null,null,null,null,null,null,null,null,null,null,null,{"$f":"DB!B438","v":0}]
[null,null,null,null,null,null,null,null,null,null,null,null,null,null,{"$f":"DB!B439","v":0}]
[null,null,null,null,null,null,null,null,null,null,null,null,null,null,{"$f":"DB!B440","v":0}]
[null,null,null,null,null,null,null,null,null,null,null,null,null,null,{"$f":"DB!B441","v":0}]
[null,null,null,null,null,null,null,null,null,null,null,null,null,null,{"$f":"DB!B442","v":0}]
[null,null,null,null,null,null,null,null,null,null,null,null,null,null,{"$f":"DB!B443","v":0}]
[null,null,null,null,null,null,null,null,null,null,null,null,null,null,{"$f":"DB!B444","v":0}]
[null,null,null,null,null,null,null,null,null,null,null,null,null,null,{"$f":"DB!B445","v":0}]
[null,null,null,null,null,null,null,null,null,null,null,null,null,null,{"$f":"DB!B446","v":0}]
[null,null,null,null,null,null,null,null,null,null,null,null,null,null,{"$f":"DB!B447","v":0}]
[null,null,null,null,null,null,null,null,null,null,null,null,null,null,{"$f":"DB!B448","v":0}]
[null,null,null,null,null,null,null,null,null,null,null,null,null,null,{"$f":"DB!B449","v":0}]
[null,null,null,null,null,null,null,null,null,null,null,null,null,null,{"$f":"DB!B450","v":0}]
[null,null,null,null,null,null,null,null,null,null,null,null,null,null,{"$f":"DB!B451","v":0}]
[null,null,null,null,null,null,null,null,null,null,null,null,null,null,{"$f":"DB!B452","v":0}]
[null,null,null,null,null,null,null,null,null,null,null,null,null,null,{"$f":"DB!B453","v":0}]
[null,null,null,null,null,null,null,null,null,null,null,null,null,null,{"$f":"DB!B454","v":0}]
[null,null,null,null,null,null,null,null,null,null,null,null,null,null,{"$f":"DB!B455","v":0}]
[null,null,null,null,null,null,null,null,null,null,null,null,null,null,{"$f":"DB!B456","v":0}]
[null,null,null,null,null,null,null,null,null,null,null,null,null,null,{"$f":"DB!B457","v":0}]
[null,null,null,null,null,null,null,null,null,null,null,null,null,null,{"$f":"DB!B458","v":0}]
[null,null,null,null,null,null,null,null,null,null,null,null,null,null,{"$f":"DB!B459","v":0}]
[null,null,null,null,null,null,null,null,null,null,null,null,null,null,{"$f":"DB!B460","v":0}]
[null,null,null,null,null,null,null,null,null,null,null,null,null,null,{"$f":"DB!B461","v":0}]
[null,null,null,null,null,null,null,null,null,null,null,null,null,null,{"$f":"DB!B462","v":0}]
[null,null,null,null,null,null,null,null,null,null,null,null,null,null,{"$f":"DB!B463","v":0}]
[null,null,null,null,null,null,null,null,null,null,null,null,null,null,{"$f":"DB!B464","v":0}]
[null,null,null,null,null,null,null,null,null,null,null,null,null,null,{"$f":"DB!B465","v":0}]
[null,null,null,null,null,null,null,null,null,null,null,null,null,null,{"$f":"DB!B466","v":0}]
[null,null,null,null,null,null,null,null,null,null,null,null,null,null,{"$f":"DB!B467","v":0}]
[null,null,null,null,null,null,null,null,null,null,null,null,null,null,{"$f":"DB!B468","v":0}]
[null,null,null,null,null,null,null,null,null,null,null,null,null,null,{"$f":"DB!B469","v":0}]
[null,null,null,null,null,null,null,null,null,null,null,null,null,null,{"$f":"DB!B470","v":0}]
[null,null,null,null,null,null,null,null,null,null,null,null,null,null,{"$f":"DB!B471","v":0}]
[null,null,null,null,null,null,null,null,null,null,null,null,null,null,{"$f":"DB!B472","v":0}]
[null,null,null,null,null,null,null,null,null,null,null,null,null,null,{"$f":"DB!B473","v":0}]
[null,null,null,null,null,null,null,null,null,null,null,null,null,null,{"$f":"DB!B474","v":0}]
[null,null,null,null,null,null,null,null,null,null,null,null,null,null,{"$f":"DB!B475","v":0}]
[null,null,null,null,null,null,null,null,null,null,null,null,null,null,{"$f":"DB!B476","v":0}]
[null,null,null,null,null,null,null,null,null,null,null,null,null,null,{"$f":"DB!B477","v":0}]
[null,null,null,null,null,null,null,null,null,null,null,null,null,null,{"$f":"DB!B478","v":0}]
[null,null,null,null,null,null,null,null,null,null,null,null,null,null,{"$f":"DB!B479","v":0}]
[null,null,null,null,null,null,null,null,null,null,null,null,null,null,{"$f":"DB!B480","v":0}]
[null,null,null,null,null,null,null,null,null,null,null,null,null,null,{"$f":"DB!B481","v":0}]
[null,null,null,null,null,null,null,null,null,null,null,null,null,null,{"$f":"DB!B482","v":0}]
[null,null,null,null,null,null,null,null,null,null,null,null,null,null,{"$f":"DB!B483","v":0}]
[null,null,null,null,null,null,null,null,null,null,null,null,null,null,{"$f":"DB!B484","v":0}]
[null,null,null,null,null,null,null,null,null,null,null,null,null,null,{"$f":"DB!B485","v":0}]
[null,null,null,null,null,null,null,null,null,null,null,null,null,null,{"$f":"DB!B486","v":0}]
[null,null,null,null,null,null,null,null,null,null,null,null,null,null,{"$f":"DB!B487","v":0}]
[null,null,null,null,null,null,null,null,null,null,null,null,null,null,{"$f":"DB!B488","v":0}]
[null,null,null,null,null,null,null,null,null,null,null,null,null,null,{"$f":"DB!B489","v":0}]
[null,null,null,null,null,null,null,null,null,null,null,null,null,null,{"$f":"DB!B490","v":0}]
[null,null,null,null,null,null,null,null,null,null,null,null,null,null,{"$f":"DB!B491","v":0}]
[null,null,null,null,null,null,null,null,null,null,null,null,null,null,{"$f":"DB!B492","v":0}]
[null,null,null,null,null,null,null,null,null,null,null,null,null,null,{"$f":"DB!B493","v":0}]
[null,null,null,null,null,null,null,null,null,null,null,null,null,null,{"$f":"DB!B494","v":0}]
[null,null,null,null,null,null,null,null,null,null,null,null,null,null,{"$f":"DB!B495","v":0}]
[null,null,null,null,null,null,null,null,null,null,null,null,null,null,{"$f":"DB!B496","v":0}]
[null,null,null,null,null,null,null,null,null,null,null,null,null,null,{"$f":"DB!B497","v":0}]
[null,null,null,null,null,null,null,null,null,null,null,null,null,null,{"$f":"DB!B498","v":0}]
[null,null,null,null,null,null,null,null,null,null,null,null,null,null,{"$f":"DB!B499","v":0}]
[null,null,null,null,null,null,null,null,null,null,null,null,null,null,{"$f":"DB!B500","v":0}]
[null,null,null,null,null,null,null,null,null,null,null,null,null,null,{"$f":"DB!B501","v":0}]
[null,null,null,null,null,null,null,null,null,null,null,null,null,null,{"$f":"DB!B502","v":0}]
[null,null,null,null,null,null,null,null,null,null,null,null,null,null,{"$f":"DB!B503","v":0}]
[null,null,null,null,null,null,null,null,null,null,null,null,null,null,{"$f":"DB!B504","v":0}]
[null,null,null,null,null,null,null,null,null,null,null,null,null,null,{"$f":"DB!B505","v":0}]
[null,null,null,null,null,null,null,null,null,null,null,null,null,null,{"$f":"DB!B506","v":0}]
[null,null,null,null,null,null,null,null,null,null,null,null,null,null,{"$f":"DB!B507","v":0}]
[null,null,null,null,null,null,null,null,null,null,null,null,null,null,{"$f":"DB!B508","v":0}]
[null,null,null,null,null,null,null,null,null,null,null,null,null,null,{"$f":"DB!B509","v":0}]
[null,null,null,null,null,null,null,null,null,null,null,null,null,null,{"$f":"DB!B510","v":0}]
[null,null,null,null,null,null,null,null,null,null,null,null,null,null,{"$f":"DB!B511","v":0}]
[null,null,null,null,null,null,null,null,null,null,null,null,null,null,{"$f":"DB!B512","v":0}]
[null,null,null,null,null,null,null,null,null,null,null,null,null,null,{"$f":"DB!B513","v":0}]
[null,null,null,null,null,null,null,null,null,null,null,null,null,null,{"$f":"DB!B514","v":0}]
[null,null,null,null,null,null,null,null,null,null,null,null,null,null,{"$f":"DB!B515","v":0}]
[null,null,null,null,null,null,null,null,null,null,null,null,null,null,{"$f":"DB!B516","v":0}]
[null,null,null,null,null,null,null,null,null,null,null,null,null,null,{"$f":"DB!B517","v":0}]
[null,null,null,null,null,null,null,null,null,null,null,null,null,null,{"$f":"DB!B518","v":0}]
[null,null,null,null,null,null,null,null,null,null,null,null,null,null,{"$f":"DB!B519","v":0}]
[null,null,null,null,null,null,null,null,null,null,null,null,null,null,{"$f":"DB!B520","v":0}]
[null,null,null,null,null,null,null,null,null,null,null,null,null,null,{"$f":"DB!B521","v":0}]
[null,null,null,null,null,null,null,null,null,null,null,null,null,null,{"$f":"DB!B522","v":0}]
[null,null,null,null,null,null,null,null,null,null,null,null,null,null,{"$f":"DB!B523","v":0}]
[null,null,null,null,null,null,null,null,null,null,null,null,null,null,{"$f":"DB!B524","v":0}]
[null,null,null,null,null,null,null,null,null,null,null,null,null,null,{"$f":"DB!B525","v":0}]
[null,null,null,null,null,null,null,null,null,null,null,null,null,null,{"$f":"DB!B526","v":0}]
[null,null,null,null,null,null,null,null,null,null,null,null,null,null,{"$f":"DB!B527","v":0}]
[null,null,null,null,null,null,null,null,null,null,null,null,null,null,{"$f":"DB!B528","v":0}]
[null,null,null,null,null,null,null,null,null,null,null,null,null,null,{"$f":"DB!B529","v":0}]
[null,null,null,null,null,null,null,null,null,null,null,null,null,null,{"$f":"DB!B530","v":0}]
[null,null,null,null,null,null,null,null,null,null,null,null,null,null,{"$f":"DB!B531","v":0}]
[null,null,null,null,null,null,null,null,null,null,null,null,null,null,{"$f":"DB!B532","v":0}]
[null,null,null,null,null,null,null,null,null,null,null,null,null,null,{"$f":"DB!B533","v":0}]
[null,null,null,null,null,null,null,null,null,null,null,null,null,null,{"$f":"DB!B534","v":0}]
[null,null,null,null,null,null,null,null,null,null,null,null,null,null,{"$f":"DB!B535","v":0}]
[null,null,null,null,null,null,null,null,null,null,null,null,null,null,{"$f":"DB!B536","v":0}]
[null,null,null,null,null,null,null,null,null,null,null,null,null,null,{"$f":"DB!B537","v":0}]
[null,null,null,null,null,null,null,null,null,null,null,null,null,null,{"$f":"DB!B538","v":0}]
[null,null,null,null,null,null,null,null,null,null,null,null,null,null,{"$f":"DB!B539","v":0}]
[null,null,null,null,null,null,null,null,null,null,null,null,null,null,{"$f":"DB!B540","v":0}]
[null,null,null,null,null,null,null,null,null,null,null,null,null,null,{"$f":"DB!B541","v":0}]
[null,null,null,null,null,null,null,null,null,null,null,null,null,null,{"$f":"DB!B542","v":0}]
[null,null,null,null,null,null,null,null,null,null,null,null,null,null,{"$f":"DB!B543","v":0}]
[null,null,null,null,null,null,null,null,null,null,null,null,null,null,{"$f":"DB!B544","v":0}]
[null,null,null,null,null,null,null,null,null,null,null,null,null,null,{"$f":"DB!B545","v":0}]
[null,null,null,null,null,null,null,null,null,null,null,null,null,null,{"$f":"DB!B546","v":0}]
[null,null,null,null,null,null,null,null,null,null,null,null,null,null,{"$f":"DB!B547","v":0}]
[null,null,null,null,null,null,null,null,null,null,null,null,null,null,{"$f":"DB!B548","v":0}]
[null,null,null,null,null,null,null,null,null,null,null,null,null,null,{"$f":"DB!B549","v":0}]
[null,null,null,null,null,null,null,null,null,null,null,null,null,null,{"$f":"DB!B550","v":0}]
[null,null,null,null,null,null,null,null,null,null,null,null,null,null,{"$f":"DB!B551","v":0}]
[null,null,null,null,null,null,null,null,null,null,null,null,null,null,{"$f":"DB!B552","v":0}]
[null,null,null,null,null,null,null,null,null,null,null,null,null,null,{"$f":"DB!B553","v":0}]
[null,null,null,null,null,null,null,null,null,null,null,null,null,null,{"$f":"DB!B554","v":0}]
[null,null,null,null,null,null,null,null,null,null,null,null,null,null,{"$f":"DB!B555","v":0}]
[null,null,null,null,null,null,null,null,null,null,null,null,null,null,{"$f":"DB!B556","v":0}]
[null,null,null,null,null,null,null,null,null,null,null,null,null,null,{"$f":"DB!B557","v":0}]
[null,null,null,null,null,null,null,null,null,null,null,null,null,null,{"$f":"DB!B558","v":0}]
[null,null,null,null,null,null,null,null,null,null,null,null,null,null,{"$f":"DB!B559","v":0}]
[null,null,null,null,null,null,null,null,null,null,null,null,null,null,{"$f":"DB!B560","v":0}]
[null,null,null,null,null,null,null,null,null,null,null,null,null,null,{"$f":"DB!B561","v":0}]
[null,null,null,null,null,null,null,null,null,null,null,null,null,null,{"$f":"DB!B562","v":0}]
[null,null,null,null,null,null,null,null,null,null,null,null,null,null,{"$f":"DB!B563","v":0}]
[null,null,null,null,null,null,null,null,null,null,null,null,null,null,{"$f":"DB!B564","v":0}]
[null,null,null,null,null,null,null,null,null,null,null,null,null,null,{"$f":"DB!B565","v":0}]
[null,null,null,null,null,null,null,null,null,null,null,null,null,null,{"$f":"DB!B566","v":0}]
[null,null,null,null,null,null,null,null,null,null,null,null,null,null,{"$f":"DB!B567","v":0}]
[null,null,null,null,null,null,null,null,null,null,null,null,null,null,{"$f":"DB!B568","v":0}]
[null,null,null,null,null,null,null,null,null,null,null,null,null,null,{"$f":"DB!B569","v":0}]
[null,null,null,null,null,null,null,null,null,null,null,null,null,null,{"$f":"DB!B570","v":0}]
[null,null,null,null,null,null,null,null,null,null,null,null,null,null,{"$f":"DB!B571","v":0}]
[null,null,null,null,null,null,null,null,null,null,null,null,null,null,{"$f":"DB!B572","v":0}]
[null,null,null,null,null,null,null,null,null,null,null,null,null,null,{"$f":"DB!B573","v":0}]
[null,null,null,null,null,null,null,null,null,null,null,null,null,null,{"$f":"DB!B574","v":0}]
[null,null,null,null,null,null,null,null,null,null,null,null,null,null,{"$f":"DB!B575","v":0}]
[null,null,null,null,null,null,null,null,null,null,null,null,null,null,{"$f":"DB!B576","v":0}]
[null,null,null,null,null,null,null,null,null,null,null,null,null,null,{"$f":"DB!B577","v":0}]
[null,null,null,null,null,null,null,null,null,null,null,null,null,null,{"$f":"DB!B578","v":0}]
[null,null,null,null,null,null,null,null,null,null,null,null,null,null,{"$f":"DB!B579","v":0}]
[null,null,null,null,null,null,null,null,null,null,null,null,null,null,{"$f":"DB!B580","v":0}]
[null,null,null,null,null,null,null,null,null,null,null,null,null,null,{"$f":"DB!B581","v":0}]
[null,null,null,null,null,null,null,null,null,null,null,null,null,null,{"$f":"DB!B582","v":0}]
[null,null,null,null,null,null,null,null,null,null,null,null,null,null,{"$f":"DB!B583","v":0}]
[null,null,null,null,null,null,null,null,null,null,null,null,null,null,{"$f":"DB!B584","v":0}]
[null,null,null,null,null,null,null,null,null,null,null,null,null,null,{"$f":"DB!B585","v":0}]
[null,null,null,null,null,null,null,null,null,null,null,null,null,null,{"$f":"DB!B586","v":0}]
[null,null,null,null,null,null,null,null,null,null,null,null,null,null,{"$f":"DB!B587","v":0}]
[null,null,null,null,null,null,null,null,null,null,null,null,null,null,{"$f":"DB!B588","v":0}]
[null,null,null,null,null,null,null,null,null,null,null,null,null,null,{"$f":"DB!B589","v":0}]
[null,null,null,null,null,null,null,null,null,null,null,null,null,null,{"$f":"DB!B590","v":0}]
[null,null,null,null,null,null,null,null,null,null,null,null,null,null,{"$f":"DB!B591","v":0}]
[null,null,null,null,null,null,null,null,null,null,null,null,null,null,{"$f":"DB!B592","v":0}]
[null,null,null,null,null,null,null,null,null,null,null,null,null,null,{"$f":"DB!B593","v":0}]
[null,null,null,null,null,null,null,null,null,null,null,null,null,null,{"$f":"DB!B594","v":0}]
[null,null,null,null,null,null,null,null,null,null,null,null,null,null,{"$f":"DB!B595","v":0}]
[null,null,null,null,null,null,null,null,null,null,null,null,null,null,{"$f":"DB!B596","v":0}]
[null,null,null,null,null,null,null,null,null,null,null,null,null,null,{"$f":"DB!B597","v":0}]
[null,null,null,null,null,null,null,null,null,null,null,null,null,null,{"$f":"DB!B598","v":0}]
[null,null,null,null,null,null,null,null,null,null,null,null,null,null,{"$f":"DB!B599","v":0}]
[null,null,null,null,null,null,null,null,null,null,null,null,null,null,{"$f":"DB!B600","v":0}]
[null,null,null,null,null,null,null,null,null,null,null,null,null,null,{"$f":"DB!B601","v":0}]
[null,null,null,null,null,null,null,null,null,null,null,null,null,null,{"$f":"DB!B602","v":0}]
[null,null,null,null,null,null,null,null,null,null,null,null,null,null,{"$f":"DB!B603","v":0}]
[null,null,null,null,null,null,null,null,null,null,null,null,null,null,{"$f":"DB!B604","v":0}]
[null,null,null,null,null,null,null,null,null,null,null,null,null,null,{"$f":"DB!B605","v":0}]
[null,null,null,null,null,null,null,null,null,null,null,null,null,null,{"$f":"DB!B606","v":0}]
[null,null,null,null,null,null,null,null,null,null,null,null,null,null,{"$f":"DB!B607","v":0}]
[null,null,null,null,null,null,null,null,null,null,null,null,null,null,{"$f":"DB!B608","v":0}]
[null,null,null,null,null,null,null,null,null,null,null,null,null,null,{"$f":"DB!B609","v":0}]
[null,null,null,null,null,null,null,null,null,null,null,null,null,null,{"$f":"DB!B610","v":0}]
[null,null,null,null,null,null,null,null,null,null,null,null,null,null,{"$f":"DB!B611","v":0}]
[null,null,null,null,null,null,null,null,null,null,null,null,null,null,{"$f":"DB!B612","v":0}]
[null,null,null,null,null,null,null,null,null,null,null,null,null,null,{"$f":"DB!B613","v":0}]
[null,null,null,null,null,null,null,null,null,null,null,null,null,null,{"$f":"DB!B614","v":0}]
[null,null,null,null,null,null,null,null,null,null,null,null,null,null,{"$f":"DB!B615","v":0}]
[null,null,null,null,null,null,null,null,null,null,null,null,null,null,{"$f":"DB!B616","v":0}]
[null,null,null,null,null,null,null,null,null,null,null,null,null,null,{"$f":"DB!B617","v":0}]
[null,null,null,null,null,null,null,null,null,null,null,null,null,null,{"$f":"DB!B618","v":0}]
[null,null,null,null,null,null,null,null,null,null,null,null,null,null,{"$f":"DB!B619","v":0}]
[null,null,null,null,null,null,null,null,null,null,null,null,null,null,{"$f":"DB!B620","v":0}]
[null,null,null,null,null,null,null,null,null,null,null,null,null,null,{"$f":"DB!B621","v":0}]
[null,null,null,null,null,null,null,null,null,null,null,null,null,null,{"$f":"DB!B622","v":0}]
[null,null,null,null,null,null,null,null,null,null,null,null,null,null,{"$f":"DB!B623","v":0}]
[null,null,null,null,null,null,null,null,null,null,null,null,null,null,{"$f":"DB!B624","v":0}]
[null,null,null,null,null,null,null,null,null,null,null,null,null,null,{"$f":"DB!B625","v":0}]
[null,null,null,null,null,null,null,null,null,null,null,null,null,null,{"$f":"DB!B626","v":0}]
[null,null,null,null,null,null,null,null,null,null,null,null,null,null,{"$f":"DB!B627","v":0}]
[null,null,null,null,null,null,null,null,null,null,null,null,null,null,{"$f":"DB!B628","v":0}]
[null,null,null,null,null,null,null,null,null,null,null,null,null,null,{"$f":"DB!B629","v":0}]
[null,null,null,null,null,null,null,null,null,null,null,null,null,null,{"$f":"DB!B630","v":0}]
[null,null,null,null,null,null,null,null,null,null,null,null,null,null,{"$f":"DB!B631","v":0}]
[null,null,null,null,null,null,null,null,null,null,null,null,null,null,{"$f":"DB!B632","v":0}]
[null,null,null,null,null,null,null,null,null,null,null,null,null,null,{"$f":"DB!B633","v":0}]
[null,null,null,null,null,null,null,null,null,null,null,null,null,null,{"$f":"DB!B634","v":0}]
[null,null,null,null,null,null,null,null,null,null,null,null,null,null,{"$f":"DB!B635","v":0}]
[null,null,null,null,null,null,null,null,null,null,null,null,null,null,{"$f":"DB!B636","v":0}]
[null,null,null,null,null,null,null,null,null,null,null,null,null,null,{"$f":"DB!B637","v":0}]
[null,null,null,null,null,null,null,null,null,null,null,null,null,null,{"$f":"DB!B638","v":0}]
[null,null,null,null,null,null,null,null,null,null,null,null,null,null,{"$f":"DB!B639","v":0}]
[null,null,null,null,null,null,null,null,null,null,null,null,null,null,{"$f":"DB!B640","v":0}]
[null,null,null,null,null,null,null,null,null,null,null,null,null,null,{"$f":"DB!B641","v":0}]
[null,null,null,null,null,null,null,null,null,null,null,null,null,null,{"$f":"DB!B642","v":0}]
[null,null,null,null,null,null,null,null,null,null,null,null,null,null,{"$f":"DB!B643","v":0}]
[null,null,null,null,null,null,null,null,null,null,null,null,null,null,{"$f":"DB!B644","v":0}]
[null,null,null,null,null,null,null,null,null,null,null,null,null,null,{"$f":"DB!B645","v":0}]
[null,null,null,null,null,null,null,null,null,null,null,null,null,null,{"$f":"DB!B646","v":0}]
[null,null,null,null,null,null,null,null,null,null,null,null,null,null,{"$f":"DB!B647","v":0}]
[null,null,null,null,null,null,null,null,null,null,null,null,null,null,{"$f":"DB!B648","v":0}]
[null,null,null,null,null,null,null,null,null,null,null,null,null,null,{"$f":"DB!B649","v":0}]
[null,null,null,null,null,null,null,null,null,null,null,null,null,null,{"$f":"DB!B650","v":0}]
[null,null,null,null,null,null,null,null,null,null,null,null,null,null,{"$f":"DB!B651","v":0}]
[null,null,null,null,null,null,null,null,null,null,null,null,null,null,{"$f":"DB!B652","v":0}]
[null,null,null,null,null,null,null,null,null,null,null,null,null,null,{"$f":"DB!B653","v":0}]
[null,null,null,null,null,null,null,null,null,null,null,null,null,null,{"$f":"DB!B654","v":0}]
[null,null,null,null,null,null,null,null,null,null,null,null,null,null,{"$f":"DB!B655","v":0}]
[null,null,null,null,null,null,null,null,null,null,null,null,null,null,{"$f":"DB!B656","v":0}]
[null,null,null,null,null,null,null,null,null,null,null,null,null,null,{"$f":"DB!B657","v":0}]
[null,null,null,null,null,null,null,null,null,null,null,null,null,null,{"$f":"DB!B658","v":0}]
[null,null,null,null,null,null,null,null,null,null,null,null,null,null,{"$f":"DB!B659","v":0}]
[null,null,null,null,null,null,null,null,null,null,null,null,null,null,{"$f":"DB!B660","v":0}]
[null,null,null,null,null,null,null,null,null,null,null,null,null,null,{"$f":"DB!B661","v":0}]
[null,null,null,null,null,null,null,null,null,null,null,null,null,null,{"$f":"DB!B662","v":0}]
[null,null,null,null,null,null,null,null,null,null,null,null,null,null,{"$f":"DB!B663","v":0}]
[null,null,null,null,null,null,null,null,null,null,null,null,null,null,{"$f":"DB!B664","v":0}]
[null,null,null,null,null,null,null,null,null,null,null,null,null,null,{"$f":"DB!B665","v":0}]
[null,null,null,null,null,null,null,null,null,null,null,null,null,null,{"$f":"DB!B666","v":0}]
[null,null,null,null,null,null,null,null,null,null,null,null,null,null,{"$f":"DB!B667","v":0}]
[null,null,null,null,null,null,null,null,null,null,null,null,null,null,{"$f":"DB!B668","v":0}]
[null,null,null,null,null,null,null,null,null,null,null,null,null,null,{"$f":"DB!B669","v":0}]
[null,null,null,null,null,null,null,null,null,null,null,null,null,null,{"$f":"DB!B670","v":0}]
[null,null,null,null,null,null,null,null,null,null,null,null,null,null,{"$f":"DB!B671","v":0}]
[null,null,null,null,null,null,null,null,null,null,null,null,null,null,{"$f":"DB!B672","v":0}]
[null,null,null,null,null,null,null,null,null,null,null,null,null,null,{"$f":"DB!B673","v":0}]
[null,null,null,null,null,null,null,null,null,null,null,null,null,null,{"$f":"DB!B674","v":0}]
[null,null,null,null,null,null,null,null,null,null,null,null,null,null,{"$f":"DB!B675","v":0}]
[null,null,null,null,null,null,null,null,null,null,null,null,null,null,{"$f":"DB!B676","v":0}]
[null,null,null,null,null,null,null,null,null,null,null,null,null,null,{"$f":"DB!B677","v":0}]
[null,null,null,null,null,null,null,null,null,null,null,null,null,null,{"$f":"DB!B678","v":0}]
[null,null,null,null,null,null,null,null,null,null,null,null,null,null,{"$f":"DB!B679","v":0}]
[null,null,null,null,null,null,null,null,null,null,null,null,null,null,{"$f":"DB!B680","v":0}]
[null,null,null,null,null,null,null,null,null,null,null,null,null,null,{"$f":"DB!B681","v":0}]
[null,null,null,null,null,null,null,null,null,null,null,null,null,null,{"$f":"DB!B682","v":0}]
[null,null,null,null,null,null,null,null,null,null,null,null,null,null,{"$f":"DB!B683","v":0}]
[null,null,null,null,null,null,null,null,null,null,null,null,null,null,{"$f":"DB!B684","v":0}]
[null,null,null,null,null,null,null,null,null,null,null,null,null,null,{"$f":"DB!B685","v":0}]
[null,null,null,null,null,null,null,null,null,null,null,null,null,null,{"$f":"DB!B686","v":0}]
[null,null,null,null,null,null,null,null,null,null,null,null,null,null,{"$f":"DB!B687","v":0}]
[null,null,null,null,null,null,null,null,null,null,null,null,null,null,{"$f":"DB!B688","v":0}]
[null,null,null,null,null,null,null,null,null,null,null,null,null,null,{"$f":"DB!B689","v":0}]
[null,null,null,null,null,null,null,null,null,null,null,null,null,null,{"$f":"DB!B690","v":0}]
[null,null,null,null,null,null,null,null,null,null,null,null,null,null,{"$f":"DB!B691","v":0}]
[null,null,null,null,null,null,null,null,null,null,null,null,null,null,{"$f":"DB!B692","v":0}]
[null,null,null,null,null,null,null,null,null,null,null,null,null,null,{"$f":"DB!B693","v":0}]
[null,null,null,null,null,null,null,null,null,null,null,null,null,null,{"$f":"DB!B694","v":0}]
[null,null,null,null,null,null,null,null,null,null,null,null,null,null,{"$f":"DB!B695","v":0}]
[null,null,null,null,null,null,null,null,null,null,null,null,null,null,{"$f":"DB!B696","v":0}]
[null,null,null,null,null,null,null,null,null,null,null,null,null,null,{"$f":"DB!B697","v":0}]
[null,null,null,null,null,null,null,null,null,null,null,null,null,null,{"$f":"DB!B698","v":0}]
[null,null,null,null,null,null,null,null,null,null,null,null,null,null,{"$f":"DB!B699","v":0}]
[null,null,null,null,null,null,null,null,null,null,null,null,null,null,{"$f":"DB!B700","v":0}]
[null,null,null,null,null,null,null,null,null,null,null,null,null,null,{"$f":"DB!B701","v":0}]
[null,null,null,null,null,null,null,null,null,null,null,null,null,null,{"$f":"DB!B702","v":0}]
[null,null,null,null,null,null,null,null,null,null,null,null,null,null,{"$f":"DB!B703","v":0}]
[null,null,null,null,null,null,null,null,null,null,null,null,null,null,{"$f":"DB!B704","v":0}]
[null,null,null,null,null,null,null,null,null,null,null,null,null,null,{"$f":"DB!B705","v":0}]
[null,null,null,null,null,null,null,null,null,null,null,null,null,null,{"$f":"DB!B706","v":0}]
[null,null,null,null,null,null,null,null,null,null,null,null,null,null,{"$f":"DB!B707","v":0}]
[null,null,null,null,null,null,null,null,null,null,null,null,null,null,{"$f":"DB!B708","v":0}]
[null,null,null,null,null,null,null,null,null,null,null,null,null,null,{"$f":"DB!B709","v":0}]
[null,null,null,null,null,null,null,null,null,null,null,null,null,null,{"$f":"DB!B710","v":0}]
[null,null,null,null,null,null,null,null,null,null,null,null,null,null,{"$f":"DB!B711","v":0}]
[null,null,null,null,null,null,null,null,null,null,null,null,null,null,{"$f":"DB!B712","v":0}]
[null,null,null,null,null,null,null,null,null,null,null,null,null,null,{"$f":"DB!B713","v":0}]
[null,null,null,null,null,null,null,null,null,null,null,null,null,null,{"$f":"DB!B714","v":0}]
[null,null,null,null,null,null,null,null,null,null,null,null,null,null,{"$f":"DB!B715","v":0}]
[null,null,null,null,null,null,null,null,null,null,null,null,null,null,{"$f":"DB!B716","v":0}]
[null,null,null,null,null,null,null,null,null,null,null,null,null,null,{"$f":"DB!B717","v":0}]
[null,null,null,null,null,null,null,null,null,null,null,null,null,null,{"$f":"DB!B718","v":0}]
[null,null,null,null,null,null,null,null,null,null,null,null,null,null,{"$f":"DB!B719","v":0}]
[null,null,null,null,null,null,null,null,null,null,null,null,null,null,{"$f":"DB!B720","v":0}]
[null,null,null,null,null,null,null,null,null,null,null,null,null,null,{"$f":"DB!B721","v":0}]
[null,null,null,null,null,null,null,null,null,null,null,null,null,null,{"$f":"DB!B722","v":0}]
[null,null,null,null,null,null,null,null,null,null,null,null,null,null,{"$f":"DB!B723","v":0}]
[null,null,null,null,null,null,null,null,null,null,null,null,null,null,{"$f":"DB!B724","v":0}]
[null,null,null,null,null,null,null,null,null,null,null,null,null,null,{"$f":"DB!B725","v":0}]
[null,null,null,null,null,null,null,null,null,null,null,null,null,null,{"$f":"DB!B726","v":0}]
[null,null,null,null,null,null,null,null,null,null,null,null,null,null,{"$f":"DB!B727","v":0}]
[null,null,null,null,null,null,null,null,null,null,null,null,null,null,{"$f":"DB!B728","v":0}]
[null,null,null,null,null,null,null,null,null,null,null,null,null,null,{"$f":"DB!B729","v":0}]
[null,null,null,null,null,null,null,null,null,null,null,null,null,null,{"$f":"DB!B730","v":0}]
[null,null,null,null,null,null,null,null,null,null,null,null,null,null,{"$f":"DB!B731","v":0}]
[null,null,null,null,null,null,null,null,null,null,null,null,null,null,{"$f":"DB!B732","v":0}]
[null,null,null,null,null,null,null,null,null,null,null,null,null,null,{"$f":"DB!B733","v":0}]
[null,null,null,null,null,null,null,null,null,null,null,null,null,null,{"$f":"DB!B734","v":0}]
[null,null,null,null,null,null,null,null,null,null,null,null,null,null,{"$f":"DB!B735","v":0}]
[null,null,null,null,null,null,null,null,null,null,null,null,null,null,{"$f":"DB!B736","v":0}]
[null,null,null,null,null,null,null,null,null,null,null,null,null,null,{"$f":"DB!B737","v":0}]
[null,null,null,null,null,null,null,null,null,null,null,null,null,null,{"$f":"DB!B738","v":0}]
[null,null,null,null,null,null,null,null,null,null,null,null,null,null,{"$f":"DB!B739","v":0}]
[null,null,null,null,null,null,null,null,null,null,null,null,null,null,{"$f":"DB!B740","v":0}]
[null,null,null,null,null,null,null,null,null,null,null,null,null,null,{"$f":"DB!B741","v":0}]
[null,null,null,null,null,null,null,null,null,null,null,null,null,null,{"$f":"DB!B742","v":0}]
[null,null,null,null,null,null,null,null,null,null,null,null,null,null,{"$f":"DB!B743","v":0}]
[null,null,null,null,null,null,null,null,null,null,null,null,null,null,{"$f":"DB!B744","v":0}]
[null,null,null,null,null,null,null,null,null,null,null,null,null,null,{"$f":"DB!B745","v":0}]
[null,null,null,null,null,null,null,null,null,null,null,null,null,null,{"$f":"DB!B746","v":0}]
[null,null,null,null,null,null,null,null,null,null,null,null,null,null,{"$f":"DB!B747","v":0}]
[null,null,null,null,null,null,null,null,null,null,null,null,null,null,{"$f":"DB!B748","v":0}]
[null,null,null,null,null,null,null,null,null,null,null,null,null,null,{"$f":"DB!B749","v":0}]
[null,null,null,null,null,null,null,null,null,null,null,null,null,null,{"$f":"DB!B750","v":0}]
[null,null,null,null,null,null,null,null,null,null,null,null,null,null,{"$f":"DB!B751","v":0}]
[null,null,null,null,null,null,null,null,null,null,null,null,null,null,{"$f":"DB!B752","v":0}]
[null,null,null,null,null,null,null,null,null,null,null,null,null,null,{"$f":"DB!B753","v":0}]
[null,null,null,null,null,null,null,null,null,null,null,null,null,null,{"$f":"DB!B754","v":0}]
[null,null,null,null,null,null,null,null,null,null,null,null,null,null,{"$f":"DB!B755","v":0}]
[null,null,null,null,null,null,null,null,null,null,null,null,null,null,{"$f":"DB!B756","v":0}]
[null,null,null,null,null,null,null,null,null,null,null,null,null,null,{"$f":"DB!B757","v":0}]
[null,null,null,null,null,null,null,null,null,null,null,null,null,null,{"$f":"DB!B758","v":0}]
[null,null,null,null,null,null,null,null,null,null,null,null,null,null,{"$f":"DB!B759","v":0}]
[null,null,null,null,null,null,null,null,null,null,null,null,null,null,{"$f":"DB!B760","v":0}]
[null,null,null,null,null,null,null,null,null,null,null,null,null,null,{"$f":"DB!B761","v":0}]
[null,null,null,null,null,null,null,null,null,null,null,null,null,null,{"$f":"DB!B762","v":0}]
[null,null,null,null,null,null,null,null,null,null,null,null,null,null,{"$f":"DB!B763","v":0}]
[null,null,null,null,null,null,null,null,null,null,null,null,null,null,{"$f":"DB!B764","v":0}]
[null,null,null,null,null,null,null,null,null,null,null,null,null,null,{"$f":"DB!B765","v":0}]
[null,null,null,null,null,null,null,null,null,null,null,null,null,null,{"$f":"DB!B766","v":0}]
[null,null,null,null,null,null,null,null,null,null,null,null,null,null,{"$f":"DB!B767","v":0}]
[null,null,null,null,null,null,null,null,null,null,null,null,null,null,{"$f":"DB!B768","v":0}]
[null,null,null,null,null,null,null,null,null,null,null,null,null,null,{"$f":"DB!B769","v":0}]
[null,null,null,null,null,null,null,null,null,null,null,null,null,null,{"$f":"DB!B770","v":0}]
[null,null,null,null,null,null,null,null,null,null,null,null,null,null,{"$f":"DB!B771","v":0}]
[null,null,null,null,null,null,null,null,null,null,null,null,null,null,{"$f":"DB!B772","v":0}]
[null,null,null,null,null,null,null,null,null,null,null,null,null,null,{"$f":"DB!B773","v":0}]
[null,null,null,null,null,null,null,null,null,null,null,null,null,null,{"$f":"DB!B774","v":0}]
[null,null,null,null,null,null,null,null,null,null,null,null,null,null,{"$f":"DB!B775","v":0}]
[null,null,null,null,null,null,null,null,null,null,null,null,null,null,{"$f":"DB!B776","v":0}]
[null,null,null,null,null,null,null,null,null,null,null,null,null,null,{"$f":"DB!B777","v":0}]
[null,null,null,null,null,null,null,null,null,null,null,null,null,null,{"$f":"DB!B778","v":0}]
[null,null,null,null,null,null,null,null,null,null,null,null,null,null,{"$f":"DB!B779","v":0}]
[null,null,null,null,null,null,null,null,null,null,null,null,null,null,{"$f":"DB!B780","v":0}]
[null,null,null,null,null,null,null,null,null,null,null,null,null,null,{"$f":"DB!B781","v":0}]
[null,null,null,null,null,null,null,null,null,null,null,null,null,null,{"$f":"DB!B782","v":0}]
[null,null,null,null,null,null,null,null,null,null,null,null,null,null,{"$f":"DB!B783","v":0}]
[null,null,null,null,null,null,null,null,null,null,null,null,null,null,{"$f":"DB!B784","v":0}]
[null,null,null,null,null,null,null,null,null,null,null,null,null,null,{"$f":"DB!B785","v":0}]
[null,null,null,null,null,null,null,null,null,null,null,null,null,null,{"$f":"DB!B786","v":0}]
[null,null,null,null,null,null,null,null,null,null,null,null,null,null,{"$f":"DB!B787","v":0}]
[null,null,null,null,null,null,null,null,null,null,null,null,null,null,{"$f":"DB!B788","v":0}]
[null,null,null,null,null,null,null,null,null,null,null,null,null,null,{"$f":"DB!B789","v":0}]
[null,null,null,null,null,null,null,null,null,null,null,null,null,null,{"$f":"DB!B790","v":0}]
[null,null,null,null,null,null,null,null,null,null,null,null,null,null,{"$f":"DB!B791","v":0}]
[null,null,null,null,null,null,null,null,null,null,null,null,null,null,{"$f":"DB!B792","v":0}]
[null,null,null,null,null,null,null,null,null,null,null,null,null,null,{"$f":"DB!B793","v":0}]
[null,null,null,null,null,null,null,null,null,null,null,null,null,null,{"$f":"DB!B794","v":0}]
[null,null,null,null,null,null,null,null,null,null,null,null,null,null,{"$f":"DB!B795","v":0}]
[null,null,null,null,null,null,null,null,null,null,null,null,null,null,{"$f":"DB!B796","v":0}]
[null,null,null,null,null,null,null,null,null,null,null,null,null,null,{"$f":"DB!B797","v":0}]
[null,null,null,null,null,null,null,null,null,null,null,null,null,null,{"$f":"DB!B798","v":0}]
[null,null,null,null,null,null,null,null,null,null,null,null,null,null,{"$f":"DB!B799","v":0}]
[null,null,null,null,null,null,null,null,null,null,null,null,null,null,{"$f":"DB!B800","v":0}]
[null,null,null,null,null,null,null,null,null,null,null,null,null,null,{"$f":"DB!B801","v":0}]
[null,null,null,null,null,null,null,null,null,null,null,null,null,null,{"$f":"DB!B802","v":0}]
[null,null,null,null,null,null,null,null,null,null,null,null,null,null,{"$f":"DB!B803","v":0}]
[null,null,null,null,null,null,null,null,null,null,null,null,null,null,{"$f":"DB!B804","v":0}]
[null,null,null,null,null,null,null,null,null,null,null,null,null,null,{"$f":"DB!B805","v":0}]
[null,null,null,null,null,null,null,null,null,null,null,null,null,null,{"$f":"DB!B806","v":0}]
[null,null,null,null,null,null,null,null,null,null,null,null,null,null,{"$f":"DB!B807","v":0}]
[null,null,null,null,null,null,null,null,null,null,null,null,null,null,{"$f":"DB!B808","v":0}]
[null,null,null,null,null,null,null,null,null,null,null,null,null,null,{"$f":"DB!B809","v":0}]
[null,null,null,null,null,null,null,null,null,null,null,null,null,null,{"$f":"DB!B810","v":0}]
[null,null,null,null,null,null,null,null,null,null,null,null,null,null,{"$f":"DB!B811","v":0}]
[null,null,null,null,null,null,null,null,null,null,null,null,null,null,{"$f":"DB!B812","v":0}]
[null,null,null,null,null,null,null,null,null,null,null,null,null,null,{"$f":"DB!B813","v":0}]
[null,null,null,null,null,null,null,null,null,null,null,null,null,null,{"$f":"DB!B814","v":0}]
[null,null,null,null,null,null,null,null,null,null,null,null,null,null,{"$f":"DB!B815","v":0}]
[null,null,null,null,null,null,null,null,null,null,null,null,null,null,{"$f":"DB!B816","v":0}]
[null,null,null,null,null,null,null,null,null,null,null,null,null,null,{"$f":"DB!B817","v":0}]
[null,null,null,null,null,null,null,null,null,null,null,null,null,null,{"$f":"DB!B818","v":0}]
[null,null,null,null,null,null,null,null,null,null,null,null,null,null,{"$f":"DB!B819","v":0}]
[null,null,null,null,null,null,null,null,null,null,null,null,null,null,{"$f":"DB!B820","v":0}]
[null,null,null,null,null,null,null,null,null,null,null,null,null,null,{"$f":"DB!B821","v":0}]
[null,null,null,null,null,null,null,null,null,null,null,null,null,null,{"$f":"DB!B822","v":0}]
[null,null,null,null,null,null,null,null,null,null,null,null,null,null,{"$f":"DB!B823","v":0}]
[null,null,null,null,null,null,null,null,null,null,null,null,null,null,{"$f":"DB!B824","v":0}]
[null,null,null,null,null,null,null,null,null,null,null,null,null,null,{"$f":"DB!B825","v":0}]
[null,null,null,null,null,null,null,null,null,null,null,null,null,null,{"$f":"DB!B826","v":0}]
[null,null,null,null,null,null,null,null,null,null,null,null,null,null,{"$f":"DB!B827","v":0}]
[null,null,null,null,null,null,null,null,null,null,null,null,null,null,{"$f":"DB!B828","v":0}]
[null,null,null,null,null,null,null,null,null,null,null,null,null,null,{"$f":"DB!B829","v":0}]
[null,null,null,null,null,null,null,null,null,null,null,null,null,null,{"$f":"DB!B830","v":0}]
[null,null,null,null,null,null,null,null,null,null,null,null,null,null,{"$f":"DB!B831","v":0}]
[null,null,null,null,null,null,null,null,null,null,null,null,null,null,{"$f":"DB!B832","v":0}]
[null,null,null,null,null,null,null,null,null,null,null,null,null,null,{"$f":"DB!B833","v":0}]
[null,null,null,null,null,null,null,null,null,null,null,null,null,null,{"$f":"DB!B834","v":0}]
[null,null,null,null,null,null,null,null,null,null,null,null,null,null,{"$f":"DB!B835","v":0}]
[null,null,null,null,null,null,null,null,null,null,null,null,null,null,{"$f":"DB!B836","v":0}]
[null,null,null,null,null,null,null,null,null,null,null,null,null,null,{"$f":"DB!B837","v":0}]
[null,null,null,null,null,null,null,null,null,null,null,null,null,null,{"$f":"DB!B838","v":0}]
[null,null,null,null,null,null,null,null,null,null,null,null,null,null,{"$f":"DB!B839","v":0}]
[null,null,null,null,null,null,null,null,null,null,null,null,null,null,{"$f":"DB!B840","v":0}]
[null,null,null,null,null,null,null,null,null,null,null,null,null,null,{"$f":"DB!B841","v":0}]
[null,null,null,null,null,null,null,null,null,null,null,null,null,null,{"$f":"DB!B842","v":0}]
[null,null,null,null,null,null,null,null,null,null,null,null,null,null,{"$f":"DB!B843","v":0}]
[null,null,null,null,null,null,null,null,null,null,null,null,null,null,{"$f":"DB!B844","v":0}]
[null,null,null,null,null,null,null,null,null,null,null,null,null,null,{"$f":"DB!B845","v":0}]
[null,null,null,null,null,null,null,null,null,null,null,null,null,null,{"$f":"DB!B846","v":0}]
[null,null,null,null,null,null,null,null,null,null,null,null,null,null,{"$f":"DB!B847","v":0}]
[null,null,null,null,null,null,null,null,null,null,null,null,null,null,{"$f":"DB!B848","v":0}]
[null,null,null,null,null,null,null,null,null,null,null,null,null,null,{"$f":"DB!B849","v":0}]
[null,null,null,null,null,null,null,null,null,null,null,null,null,null,{"$f":"DB!B850","v":0}]
[null,null,null,null,null,null,null,null,null,null,null,null,null,null,{"$f":"DB!B851","v":0}]
[null,null,null,null,null,null,null,null,null,null,null,null,null,null,{"$f":"DB!B852","v":0}]
[null,null,null,null,null,null,null,null,null,null,null,null,null,null,{"$f":"DB!B853","v":0}]
[null,null,null,null,null,null,null,null,null,null,null,null,null,null,{"$f":"DB!B854","v":0}]
[null,null,null,null,null,null,null,null,null,null,null,null,null,null,{"$f":"DB!B855","v":0}]
[null,null,null,null,null,null,null,null,null,null,null,null,null,null,{"$f":"DB!B856","v":0}]
[null,null,null,null,null,null,null,null,null,null,null,null,null,null,{"$f":"DB!B857","v":0}]
[null,null,null,null,null,null,null,null,null,null,null,null,null,null,{"$f":"DB!B858","v":0}]
[null,null,null,null,null,null,null,null,null,null,null,null,null,null,{"$f":"DB!B859","v":0}]
[null,null,null,null,null,null,null,null,null,null,null,null,null,null,{"$f":"DB!B860","v":0}]
[null,null,null,null,null,null,null,null,null,null,null,null,null,null,{"$f":"DB!B861","v":0}]
[null,null,null,null,null,null,null,null,null,null,null,null,null,null,{"$f":"DB!B862","v":0}]
[null,null,null,null,null,null,null,null,null,null,null,null,null,null,{"$f":"DB!B863","v":0}]
[null,null,null,null,null,null,null,null,null,null,null,null,null,null,{"$f":"DB!B864","v":0}]
[null,null,null,null,null,null,null,null,null,null,null,null,null,null,{"$f":"DB!B865","v":0}]
[null,null,null,null,null,null,null,null,null,null,null,null,null,null,{"$f":"DB!B866","v":0}]
[null,null,null,null,null,null,null,null,null,null,null,null,null,null,{"$f":"DB!B867","v":0}]
[null,null,null,null,null,null,null,null,null,null,null,null,null,null,{"$f":"DB!B868","v":0}]
[null,null,null,null,null,null,null,null,null,null,null,null,null,null,{"$f":"DB!B869","v":0}]
[null,null,null,null,null,null,null,null,null,null,null,null,null,null,{"$f":"DB!B870","v":0}]
[null,null,null,null,null,null,null,null,null,null,null,null,null,null,{"$f":"DB!B871","v":0}]
[null,null,null,null,null,null,null,null,null,null,null,null,null,null,{"$f":"DB!B872","v":0}]
[null,null,null,null,null,null,null,null,null,null,null,null,null,null,{"$f":"DB!B873","v":0}]
[null,null,null,null,null,null,null,null,null,null,null,null,null,null,{"$f":"DB!B874","v":0}]
[null,null,null,null,null,null,null,null,null,null,null,null,null,null,{"$f":"DB!B875","v":0}]
[null,null,null,null,null,null,null,null,null,null,null,null,null,null,{"$f":"DB!B876","v":0}]
[null,null,null,null,null,null,null,null,null,null,null,null,null,null,{"$f":"DB!B877","v":0}]
[null,null,null,null,null,null,null,null,null,null,null,null,null,null,{"$f":"DB!B878","v":0}]
[null,null,null,null,null,null,null,null,null,null,null,null,null,null,{"$f":"DB!B879","v":0}]
[null,null,null,null,null,null,null,null,null,null,null,null,null,null,{"$f":"DB!B880","v":0}]
[null,null,null,null,null,null,null,null,null,null,null,null,null,null,{"$f":"DB!B881","v":0}]
[null,null,null,null,null,null,null,null,null,null,null,null,null,null,{"$f":"DB!B882","v":0}]
[null,null,null,null,null,null,null,null,null,null,null,null,null,null,{"$f":"DB!B883","v":0}]
[null,null,null,null,null,null,null,null,null,null,null,null,null,null,{"$f":"DB!B884","v":0}]
[null,null,null,null,null,null,null,null,null,null,null,null,null,null,{"$f":"DB!B885","v":0}]
[null,null,null,null,null,null,null,null,null,null,null,null,null,null,{"$f":"DB!B886","v":0}]
[null,null,null,null,null,null,null,null,null,null,null,null,null,null,{"$f":"DB!B887","v":0}]
[null,null,null,null,null,null,null,null,null,null,null,null,null,null,{"$f":"DB!B888","v":0}]
[null,null,null,null,null,null,null,null,null,null,null,null,null,null,{"$f":"DB!B889","v":0}]
[null,null,null,null,null,null,null,null,null,null,null,null,null,null,{"$f":"DB!B890","v":0}]
[null,null,null,null,null,null,null,null,null,null,null,null,null,null,{"$f":"DB!B891","v":0}]
[null,null,null,null,null,null,null,null,null,null,null,null,null,null,{"$f":"DB!B892","v":0}]
[null,null,null,null,null,null,null,null,null,null,null,null,null,null,{"$f":"DB!B893","v":0}]
[null,null,null,null,null,null,null,null,null,null,null,null,null,null,{"$f":"DB!B894","v":0}]
[null,null,null,null,null,null,null,null,null,null,null,null,null,null,{"$f":"DB!B895","v":0}]
[null,null,null,null,null,null,null,null,null,null,null,null,null,null,{"$f":"DB!B896","v":0}]
[null,null,null,null,null,null,null,null,null,null,null,null,null,null,{"$f":"DB!B897","v":0}]
[null,null,null,null,null,null,null,null,null,null,null,null,null,null,{"$f":"DB!B898","v":0}]
[null,null,null,null,null,null,null,null,null,null,null,null,null,null,{"$f":"DB!B899","v":0}]
[null,null,null,null,null,null,null,null,null,null,null,null,null,null,{"$f":"DB!B900","v":0}]
[null,null,null,null,null,null,null,null,null,null,null,null,null,null,{"$f":"DB!B901","v":0}]
[null,null,null,null,null,null,null,null,null,null,null,null,null,null,{"$f":"DB!B902","v":0}]
[null,null,null,null,null,null,null,null,null,null,null,null,null,null,{"$f":"DB!B903","v":0}]
[null,null,null,null,null,null,null,null,null,null,null,null,null,null,{"$f":"DB!B904","v":0}]
[null,null,null,null,null,null,null,null,null,null,null,null,null,null,{"$f":"DB!B905","v":0}]
[null,null,null,null,null,null,null,null,null,null,null,null,null,null,{"$f":"DB!B906","v":0}]
[null,null,null,null,null,null,null,null,null,null,null,null,null,null,{"$f":"DB!B907","v":0}]
[null,null,null,null,null,null,null,null,null,null,null,null,null,null,{"$f":"DB!B908","v":0}]
[null,null,null,null,null,null,null,null,null,null,null,null,null,null,{"$f":"DB!B909","v":0}]
[null,null,null,null,null,null,null,null,null,null,null,null,null,null,{"$f":"DB!B910","v":0}]
[null,null,null,null,null,null,null,null,null,null,null,null,null,null,{"$f":"DB!B911","v":0}]
[null,null,null,null,null,null,null,null,null,null,null,null,null,null,{"$f":"DB!B912","v":0}]
[null,null,null,null,null,null,null,null,null,null,null,null,null,null,{"$f":"DB!B913","v":0}]
[null,null,null,null,null,null,null,null,null,null,null,null,null,null,{"$f":"DB!B914","v":0}]
[null,null,null,null,null,null,null,null,null,null,null,null,null,null,{"$f":"DB!B915","v":0}]
[null,null,null,null,null,null,null,null,null,null,null,null,null,null,{"$f":"DB!B916","v":0}]
[null,null,null,null,null,null,null,null,null,null,null,null,null,null,{"$f":"DB!B917","v":0}]
[null,null,null,null,null,null,null,null,null,null,null,null,null,null,{"$f":"DB!B918","v":0}]
[null,null,null,null,null,null,null,null,null,null,null,null,null,null,{"$f":"DB!B919","v":0}]
[null,null,null,null,null,null,null,null,null,null,null,null,null,null,{"$f":"DB!B920","v":0}]
[null,null,null,null,null,null,null,null,null,null,null,null,null,null,{"$f":"DB!B921","v":0}]
[null,null,null,null,null,null,null,null,null,null,null,null,null,null,{"$f":"DB!B922","v":0}]
[null,null,null,null,null,null,null,null,null,null,null,null,null,null,{"$f":"DB!B923","v":0}]
[null,null,null,null,null,null,null,null,null,null,null,null,null,null,{"$f":"DB!B924","v":0}]
[null,null,null,null,null,null,null,null,null,null,null,null,null,null,{"$f":"DB!B925","v":0}]
[null,null,null,null,null,null,null,null,null,null,null,null,null,null,{"$f":"DB!B926","v":0}]
[null,null,null,null,null,null,null,null,null,null,null,null,null,null,{"$f":"DB!B927","v":0}]
[null,null,null,null,null,null,null,null,null,null,null,null,null,null,{"$f":"DB!B928","v":0}]
[null,null,null,null,null,null,null,null,null,null,null,null,null,null,{"$f":"DB!B929","v":0}]
[null,null,null,null,null,null,null,null,null,null,null,null,null,null,{"$f":"DB!B930","v":0}]
[null,null,null,null,null,null,null,null,null,null,null,null,null,null,{"$f":"DB!B931","v":0}]
[null,null,null,null,null,null,null,null,null,null,null,null,null,null,{"$f":"DB!B932","v":0}]
[null,null,null,null,null,null,null,null,null,null,null,null,null,null,{"$f":"DB!B933","v":0}]
[null,null,null,null,null,null,null,null,null,null,null,null,null,null,{"$f":"DB!B934","v":0}]
[null,null,null,null,null,null,null,null,null,null,null,null,null,null,{"$f":"DB!B935","v":0}]
[null,null,null,null,null,null,null,null,null,null,null,null,null,null,{"$f":"DB!B936","v":0}]
[null,null,null,null,null,null,null,null,null,null,null,null,null,null,{"$f":"DB!B937","v":0}]
[null,null,null,null,null,null,null,null,null,null,null,null,null,null,{"$f":"DB!B938","v":0}]
[null,null,null,null,null,null,null,null,null,null,null,null,null,null,{"$f":"DB!B939","v":0}]
[null,null,null,null,null,null,null,null,null,null,null,null,null,null,{"$f":"DB!B940","v":0}]
[null,null,null,null,null,null,null,null,null,null,null,null,null,null,{"$f":"DB!B941","v":0}]
[null,null,null,null,null,null,null,null,null,null,null,null,null,null,{"$f":"DB!B942","v":0}]
[null,null,null,null,null,null,null,null,null,null,null,null,null,null,{"$f":"DB!B943","v":0}]
[null,null,null,null,null,null,null,null,null,null,null,null,null,null,{"$f":"DB!B944","v":0}]
[null,null,null,null,null,null,null,null,null,null,null,null,null,null,{"$f":"DB!B945","v":0}]
[null,null,null,null,null,null,null,null,null,null,null,null,null,null,{"$f":"DB!B946","v":0}]
[null,null,null,null,null,null,null,null,null,null,null,null,null,null,{"$f":"DB!B947","v":0}]
[null,null,null,null,null,null,null,null,null,null,null,null,null,null,{"$f":"DB!B948","v":0}]
[null,null,null,null,null,null,null,null,null,null,null,null,null,null,{"$f":"DB!B949","v":0}]
[null,null,null,null,null,null,null,null,null,null,null,null,null,null,{"$f":"DB!B950","v":0}]
[null,null,null,null,null,null,null,null,null,null,null,null,null,null,{"$f":"DB!B951","v":0}]
[null,null,null,null,null,null,null,null,null,null,null,null,null,null,{"$f":"DB!B952","v":0}]
[null,null,null,null,null,null,null,null,null,null,null,null,null,null,{"$f":"DB!B953","v":0}]
[null,null,null,null,null,null,null,null,null,null,null,null,null,null,{"$f":"DB!B954","v":0}]
[null,null,null,null,null,null,null,null,null,null,null,null,null,null,{"$f":"DB!B955","v":0}]
[null,null,null,null,null,null,null,null,null,null,null,null,null,null,{"$f":"DB!B956","v":0}]
[null,null,null,null,null,null,null,null,null,null,null,null,null,null,{"$f":"DB!B957","v":0}]
[null,null,null,null,null,null,null,null,null,null,null,null,null,null,{"$f":"DB!B958","v":0}]
[null,null,null,null,null,null,null,null,null,null,null,null,null,null,{"$f":"DB!B959","v":0}]
[null,null,null,null,null,null,null,null,null,null,null,null,null,null,{"$f":"DB!B960","v":0}]
[null,null,null,null,null,null,null,null,null,null,null,null,null,null,{"$f":"DB!B961","v":0}]
[null,null,null,null,null,null,null,null,null,null,null,null,null,null,{"$f":"DB!B962","v":0}]
[null,null,null,null,null,null,null,null,null,null,null,null,null,null,{"$f":"DB!B963","v":0}]
[null,null,null,null,null,null,null,null,null,null,null,null,null,null,{"$f":"DB!B964","v":0}]
[null,null,null,null,null,null,null,null,null,null,null,null,null,null,{"$f":"DB!B965","v":0}]
[null,null,null,null,null,null,null,null,null,null,null,null,null,null,{"$f":"DB!B966","v":0}]
[null,null,null,null,null,null,null,null,null,null,null,null,null,null,{"$f":"DB!B967","v":0}]
[null,null,null,null,null,null,null,null,null,null,null,null,null,null,{"$f":"DB!B968","v":0}]
[null,null,null,null,null,null,null,null,null,null,null,null,null,null,{"$f":"DB!B969","v":0}]
[null,null,null,null,null,null,null,null,null,null,null,null,null,null,{"$f":"DB!B970","v":0}]
[null,null,null,null,null,null,null,null,null,null,null,null,null,null,{"$f":"DB!B971","v":0}]
[null,null,null,null,null,null,null,null,null,null,null,null,null,null,{"$f":"DB!B972","v":0}]
[null,null,null,null,null,null,null,null,null,null,null,null,null,null,{"$f":"DB!B973","v":0}]
[null,null,null,null,null,null,null,null,null,null,null,null,null,null,{"$f":"DB!B974","v":0}]
[null,null,null,null,null,null,null,null,null,null,null,null,null,null,{"$f":"DB!B975","v":0}]
[null,null,null,null,null,null,null,null,null,null,null,null,null,null,{"$f":"DB!B976","v":0}]
[null,null,null,null,null,null,null,null,null,null,null,null,null,null,{"$f":"DB!B977","v":0}]
[null,null,null,null,null,null,null,null,null,null,null,null,null,null,{"$f":"DB!B978","v":0}]
[null,null,null,null,null,null,null,null,null,null,null,null,null,null,{"$f":"DB!B979","v":0}]
[null,null,null,null,null,null,null,null,null,null,null,null,null,null,{"$f":"DB!B980","v":0}]
[null,null,null,null,null,null,null,null,null,null,null,null,null,null,{"$f":"DB!B981","v":0}]
[null,null,null,null,null,null,null,null,null,null,null,null,null,null,{"$f":"DB!B982","v":0}]
[null,null,null,null,null,null,null,null,null,null,null,null,null,null,{"$f":"DB!B983","v":0}]
[null,null,null,null,null,null,null,null,null,null,null,null,null,null,{"$f":"DB!B984","v":0}]
[null,null,null,null,null,null,null,null,null,null,null,null,null,null,{"$f":"DB!B985","v":0}]
[null,null,null,null,null,null,null,null,null,null,null,null,null,null,{"$f":"DB!B986","v":0}]
[null,null,null,null,null,null,null,null,null,null,null,null,null,null,{"$f":"DB!B987","v":0}]
[null,null,null,null,null,null,null,null,null,null,null,null,null,null,{"$f":"DB!B988","v":0}]
[null,null,null,null,null,null,null,null,null,null,null,null,null,null,{"$f":"DB!B989","v":0}]
[null,null,null,null,null,null,null,null,null,null,null,null,null,null,{"$f":"DB!B990","v":0}]
[null,null,null,null,null,null,null,null,null,null,null,null,null,null,{"$f":"DB!B991","v":0}]
[null,null,null,null,null,null,null,null,null,null,null,null,null,null,{"$f":"DB!B992","v":0}]
[null,null,null,null,null,null,null,null,null,null,null,null,null,null,{"$f":"DB!B993","v":0}]
[null,null,null,null,null,null,null,null,null,null,null,null,null,null,{"$f":"DB!B994","v":0}]
[null,null,null,null,null,null,null,null,null,null,null,null,null,null,{"$f":"DB!B995","v":0}]
[null,null,null,null,null,null,null,null,null,null,null,null,null,null,{"$f":"DB!B996","v":0}]
[null,null,null,null,null,null,null,null,null,null,null,null,null,null,{"$f":"DB!B997","v":0}]
[null,null,null,null,null,null,null,null,null,null,null,null,null,null,{"$f":"DB!B998","v":0}]
[null,null,null,null,null,null,null,null,null,null,null,null,null,null,{"$f":"DB!B999","v":0}]
[null,null,null,null,null,null,null,null,null,null,null,null,null,null,{"$f":"DB!B1000","v":0}]
[null,null,null,null,null,null,null,null,null,null,null,null,null,null,{"$f":"DB!B1001","v":0}]
[null,null,null,null,null,null,null,null,null,null,null,null,null,null,{"$f":"DB!B1002","v":0}]
[null,null,null,null,null,null,null,null,null,null,null,null,null,null,{"$f":"DB!B1003","v":0}]
[null,null,null,null,null,null,null,null,null,null,null,null,null,null,{"$f":"DB!B1004","v":0}]
[null,null,null,null,null,null,null,null,null,null,null,null,null,null,{"$f":"DB!B1005","v":0}]
[null,null,null,null,null,null,null,null,null,null,null,null,null,null,{"$f":"DB!B1006","v":0}]
[null,null,null,null,null,null,null,null,null,null,null,null,null,null,{"$f":"DB!B1007","v":0}]
[null,null,null,null,null,null,null,null,null,null,null,null,null,null,{"$f":"DB!B1008","v":0}]
[null,null,null,null,null,null,null,null,null,null,null,null,null,null,{"$f":"DB!B1009","v":0}]
[null,null,null,null,null,null,null,null,null,null,null,null,null,null,{"$f":"DB!B1010","v":0}]
[null,null,null,null,null,null,null,null,null,null,null,null,null,null,{"$f":"DB!B1011","v":0}]
[null,null,null,null,null,null,null,null,null,null,null,null,null,null,{"$f":"DB!B1012","v":0}]
[null,null,null,null,null,null,null,null,null,null,null,null,null,null,{"$f":"DB!B1013","v":0}]
[null,null,null,null,null,null,null,null,null,null,null,null,null,null,{"$f":"DB!B1014","v":0}]
[null,null,null,null,null,null,null,null,null,null,null,null,null,null,{"$f":"DB!B1015","v":0}]
[null,null,null,null,null,null,null,null,null,null,null,null,null,null,{"$f":"DB!B1016","v":0}]
[null,null,null,null,null,null,null,null,null,null,null,null,null,null,{"$f":"DB!B1017","v":0}]
[null,null,null,null,null,null,null,null,null,null,null,null,null,null,{"$f":"DB!B1018","v":0}]
[null,null,null,null,null,null,null,null,null,null,null,null,null,null,{"$f":"DB!B1019","v":0}]
[null,null,null,null,null,null,null,null,null,null,null,null,null,null,{"$f":"DB!B1020","v":0}]
[null,null,null,null,null,null,null,null,null,null,null,null,null,null,{"$f":"DB!B1021","v":0}]
[null,null,null,null,null,null,null,null,null,null,null,null,null,null,{"$f":"DB!B1022","v":0}]
[null,null,null,null,null,null,null,null,null,null,null,null,null,null,{"$f":"DB!B1023","v":0}]
[null,null,null,null,null,null,null,null,null,null,null,null,null,null,{"$f":"DB!B1024","v":0}]
[null,null,null,null,null,null,null,null,null,null,null,null,null,null,{"$f":"DB!B1025","v":0}]
[null,null,null,null,null,null,null,null,null,null,null,null,null,null,{"$f":"DB!B1026","v":0}]
[null,null,null,null,null,null,null,null,null,null,null,null,null,null,{"$f":"DB!B1027","v":0}]
[null,null,null,null,null,null,null,null,null,null,null,null,null,null,{"$f":"DB!B1028","v":0}]
[null,null,null,null,null,null,null,null,null,null,null,null,null,null,{"$f":"DB!B1029","v":0}]
[null,null,null,null,null,null,null,null,null,null,null,null,null,null,{"$f":"DB!B1030","v":0}]
[null,null,null,null,null,null,null,null,null,null,null,null,null,null,{"$f":"DB!B1031","v":0}]
[null,null,null,null,null,null,null,null,null,null,null,null,null,null,{"$f":"DB!B1032","v":0}]
[null,null,null,null,null,null,null,null,null,null,null,null,null,null,{"$f":"DB!B1033","v":0}]
[null,null,null,null,null,null,null,null,null,null,null,null,null,null,{"$f":"DB!B1034","v":0}]
[null,null,null,null,null,null,null,null,null,null,null,null,null,null,{"$f":"DB!B1035","v":0}]
[null,null,null,null,null,null,null,null,null,null,null,null,null,null,{"$f":"DB!B1036","v":0}]
[null,null,null,null,null,null,null,null,null,null,null,null,null,null,{"$f":"DB!B1037","v":0}]
[null,null,null,null,null,null,null,null,null,null,null,null,null,null,{"$f":"DB!B1038","v":0}]
[null,null,null,null,null,null,null,null,null,null,null,null,null,null,{"$f":"DB!B1039","v":0}]
[null,null,null,null,null,null,null,null,null,null,null,null,null,null,{"$f":"DB!B1040","v":0}]
[null,null,null,null,null,null,null,null,null,null,null,null,null,null,{"$f":"DB!B1041","v":0}]
[null,null,null,null,null,null,null,null,null,null,null,null,null,null,{"$f":"DB!B1042","v":0}]
[null,null,null,null,null,null,null,null,null,null,null,null,null,null,{"$f":"DB!B1043","v":0}]
[null,null,null,null,null,null,null,null,null,null,null,null,null,null,{"$f":"DB!B1044","v":0}]
[null,null,null,null,null,null,null,null,null,null,null,null,null,null,{"$f":"DB!B1045","v":0}]
[null,null,null,null,null,null,null,null,null,null,null,null,null,null,{"$f":"DB!B1046","v":0}]
[null,null,null,null,null,null,null,null,null,null,null,null,null,null,{"$f":"DB!B1047","v":0}]
[null,null,null,null,null,null,null,null,null,null,null,null,null,null,{"$f":"DB!B1048","v":0}]
[null,null,null,null,null,null,null,null,null,null,null,null,null,null,{"$f":"DB!B1049","v":0}]
[null,null,null,null,null,null,null,null,null,null,null,null,null,null,{"$f":"DB!B1050","v":0}]
[null,null,null,null,null,null,null,null,null,null,null,null,null,null,{"$f":"DB!B1051","v":0}]
[null,null,null,null,null,null,null,null,null,null,null,null,null,null,{"$f":"DB!B1052","v":0}]
[null,null,null,null,null,null,null,null,null,null,null,null,null,null,{"$f":"DB!B1053","v":0}]
[null,null,null,null,null,null,null,null,null,null,null,null,null,null,{"$f":"DB!B1054","v":0}]
[null,null,null,null,null,null,null,null,null,null,null,null,null,null,{"$f":"DB!B1055","v":0}]
[null,null,null,null,null,null,null,null,null,null,null,null,null,null,{"$f":"DB!B1056","v":0}]
[null,null,null,null,null,null,null,null,null,null,null,null,null,null,{"$f":"DB!B1057","v":0}]
[null,null,null,null,null,null,null,null,null,null,null,null,null,null,{"$f":"DB!B1058","v":0}]
[null,null,null,null,null,null,null,null,null,null,null,null,null,null,{"$f":"DB!B1059","v":0}]
[null,null,null,null,null,null,null,null,null,null,null,null,null,null,{"$f":"DB!B1060","v":0}]
[null,null,null,null,null,null,null,null,null,null,null,null,null,null,{"$f":"DB!B1061","v":0}]
[null,null,null,null,null,null,null,null,null,null,null,null,null,null,{"$f":"DB!B1062","v":0}]
[null,null,null,null,null,null,null,null,null,null,null,null,null,null,{"$f":"DB!B1063","v":0}]
[null,null,null,null,null,null,null,null,null,null,null,null,null,null,{"$f":"DB!B1064","v":0}]
[null,null,null,null,null,null,null,null,null,null,null,null,null,null,{"$f":"DB!B1065","v":0}]
[null,null,null,null,null,null,null,null,null,null,null,null,null,null,{"$f":"DB!B1066","v":0}]
[null,null,null,null,null,null,null,null,null,null,null,null,null,null,{"$f":"DB!B1067","v":0}]
[null,null,null,null,null,null,null,null,null,null,null,null,null,null,{"$f":"DB!B1068","v":0}]
[null,null,null,null,null,null,null,null,null,null,null,null,null,null,{"$f":"DB!B1069","v":0}]
[null,null,null,null,null,null,null,null,null,null,null,null,null,null,{"$f":"DB!B1070","v":0}]
[null,null,null,null,null,null,null,null,null,null,null,null,null,null,{"$f":"DB!B1071","v":0}]
[null,null,null,null,null,null,null,null,null,null,null,null,null,null,{"$f":"DB!B1072","v":0}]
[null,null,null,null,null,null,null,null,null,null,null,null,null,null,{"$f":"DB!B1073","v":0}]
[null,null,null,null,null,null,null,null,null,null,null,null,null,null,{"$f":"DB!B1074","v":0}]
[null,null,null,null,null,null,null,null,null,null,null,null,null,null,{"$f":"DB!B1075","v":0}]
[null,null,null,null,null,null,null,null,null,null,null,null,null,null,{"$f":"DB!B1076","v":0}]
[null,null,null,null,null,null,null,null,null,null,null,null,null,null,{"$f":"DB!B1077","v":0}]
[null,null,null,null,null,null,null,null,null,null,null,null,null,null,{"$f":"DB!B1078","v":0}]
[null,null,null,null,null,null,null,null,null,null,null,null,null,null,{"$f":"DB!B1079","v":0}]
[null,null,null,null,null,null,null,null,null,null,null,null,null,null,{"$f":"DB!B1080","v":0}]
[null,null,null,null,null,null,null,null,null,null,null,null,null,null,{"$f":"DB!B1081","v":0}]
[null,null,null,null,null,null,null,null,null,null,null,null,null,null,{"$f":"DB!B1082","v":0}]
[null,null,null,null,null,null,null,null,null,null,null,null,null,null,{"$f":"DB!B1083","v":0}]
[null,null,null,null,null,null,null,null,null,null,null,null,null,null,{"$f":"DB!B1084","v":0}]
[null,null,null,null,null,null,null,null,null,null,null,null,null,null,{"$f":"DB!B1085","v":0}]
[null,null,null,null,null,null,null,null,null,null,null,null,null,null,{"$f":"DB!B1086","v":0}]
[null,null,null,null,null,null,null,null,null,null,null,null,null,null,{"$f":"DB!B1087","v":0}]
[null,null,null,null,null,null,null,null,null,null,null,null,null,null,{"$f":"DB!B1088","v":0}]
[null,null,null,null,null,null,null,null,null,null,null,null,null,null,{"$f":"DB!B1089","v":0}]
[null,null,null,null,null,null,null,null,null,null,null,null,null,null,{"$f":"DB!B1090","v":0}]
[null,null,null,null,null,null,null,null,null,null,null,null,null,null,{"$f":"DB!B1091","v":0}]
[null,null,null,null,null,null,null,null,null,null,null,null,null,null,{"$f":"DB!B1092","v":0}]
[null,null,null,null,null,null,null,null,null,null,null,null,null,null,{"$f":"DB!B1093","v":0}]
[null,null,null,null,null,null,null,null,null,null,null,null,null,null,{"$f":"DB!B1094","v":0}]
[null,null,null,null,null,null,null,null,null,null,null,null,null,null,{"$f":"DB!B1095","v":0}]
[null,null,null,null,null,null,null,null,null,null,null,null,null,null,{"$f":"DB!B1096","v":0}]
[null,null,null,null,null,null,null,null,null,null,null,null,null,null,{"$f":"DB!B1097","v":0}]
[null,null,null,null,null,null,null,null,null,null,null,null,null,null,{"$f":"DB!B1098","v":0}]
[null,null,null,null,null,null,null,null,null,null,null,null,null,null,{"$f":"DB!B1099","v":0}]
[null,null,null,null,null,null,null,null,null,null,null,null,null,null,{"$f":"DB!B1100","v":0}]
[null,null,null,null,null,null,null,null,null,null,null,null,null,null,{"$f":"DB!B1101","v":0}]
[null,null,null,null,null,null,null,null,null,null,null,null,null,null,{"$f":"DB!B1102","v":0}]
[null,null,null,null,null,null,null,null,null,null,null,null,null,null,{"$f":"DB!B1103","v":0}]
[null,null,null,null,null,null,null,null,null,null,null,null,null,null,{"$f":"DB!B1104","v":0}]
[null,null,null,null,null,null,null,null,null,null,null,null,null,null,{"$f":"DB!B1105","v":0}]
[null,null,null,null,null,null,null,null,null,null,null,null,null,null,{"$f":"DB!B1106","v":0}]
[null,null,null,null,null,null,null,null,null,null,null,null,null,null,{"$f":"DB!B1107","v":0}]
[null,null,null,null,null,null,null,null,null,null,null,null,null,null,{"$f":"DB!B1108","v":0}]
[null,null,null,null,null,null,null,null,null,null,null,null,null,null,{"$f":"DB!B1109","v":0}]
[null,null,null,null,null,null,null,null,null,null,null,null,null,null,{"$f":"DB!B1110","v":0}]
[null,null,null,null,null,null,null,null,null,null,null,null,null,null,{"$f":"DB!B1111","v":0}]
[null,null,null,null,null,null,null,null,null,null,null,null,null,null,{"$f":"DB!B1112","v":0}]
[null,null,null,null,null,null,null,null,null,null,null,null,null,null,{"$f":"DB!B1113","v":0}]
[null,null,null,null,null,null,null,null,null,null,null,null,null,null,{"$f":"DB!B1114","v":0}]
[null,null,null,null,null,null,null,null,null,null,null,null,null,null,{"$f":"DB!B1115","v":0}]
[null,null,null,null,null,null,null,null,null,null,null,null,null,null,{"$f":"DB!B1116","v":0}]
[null,null,null,null,null,null,null,null,null,null,null,null,null,null,{"$f":"DB!B1117","v":0}]
[null,null,null,null,null,null,null,null,null,null,null,null,null,null,{"$f":"DB!B1118","v":0}]
[null,null,null,null,null,null,null,null,null,null,null,null,null,null,{"$f":"DB!B1119","v":0}]
[null,null,null,null,null,null,null,null,null,null,null,null,null,null,{"$f":"DB!B1120","v":0}]
[null,null,null,null,null,null,null,null,null,null,null,null,null,null,{"$f":"DB!B1121","v":0}]
[null,null,null,null,null,null,null,null,null,null,null,null,null,null,{"$f":"DB!B1122","v":0}]
[null,null,null,null,null,null,null,null,null,null,null,null,null,null,{"$f":"DB!B1123","v":0}]
[null,null,null,null,null,null,null,null,null,null,null,null,null,null,{"$f":"DB!B1124","v":0}]
[null,null,null,null,null,null,null,null,null,null,null,null,null,null,{"$f":"DB!B1125","v":0}]
[null,null,null,null,null,null,null,null,null,null,null,null,null,null,{"$f":"DB!B1126","v":0}]
[null,null,null,null,null,null,null,null,null,null,null,null,null,null,{"$f":"DB!B1127","v":0}]
[null,null,null,null,null,null,null,null,null,null,null,null,null,null,{"$f":"DB!B1128","v":0}]
[null,null,null,null,null,null,null,null,null,null,null,null,null,null,{"$f":"DB!B1129","v":0}]
[null,null,null,null,null,null,null,null,null,null,null,null,null,null,{"$f":"DB!B1130","v":0}]
[null,null,null,null,null,null,null,null,null,null,null,null,null,null,{"$f":"DB!B1131","v":0}]
[null,null,null,null,null,null,null,null,null,null,null,null,null,null,{"$f":"DB!B1132","v":0}]
[null,null,null,null,null,null,null,null,null,null,null,null,null,null,{"$f":"DB!B1133","v":0}]
[null,null,null,null,null,null,null,null,null,null,null,null,null,null,{"$f":"DB!B1134","v":0}]
[null,null,null,null,null,null,null,null,null,null,null,null,null,null,{"$f":"DB!B1135","v":0}]
[null,null,null,null,null,null,null,null,null,null,null,null,null,null,{"$f":"DB!B1136","v":0}]
[null,null,null,null,null,null,null,null,null,null,null,null,null,null,{"$f":"DB!B1137","v":0}]
[null,null,null,null,null,null,null,null,null,null,null,null,null,null,{"$f":"DB!B1138","v":0}]
[null,null,null,null,null,null,null,null,null,null,null,null,null,null,{"$f":"DB!B1139","v":0}]
[null,null,null,null,null,null,null,null,null,null,null,null,null,null,{"$f":"DB!B1140","v":0}]
[null,null,null,null,null,null,null,null,null,null,null,null,null,null,{"$f":"DB!B1141","v":0}]
[null,null,null,null,null,null,null,null,null,null,null,null,null,null,{"$f":"DB!B1142","v":0}]
[null,null,null,null,null,null,null,null,null,null,null,null,null,null,{"$f":"DB!B1143","v":0}]
[null,null,null,null,null,null,null,null,null,null,null,null,null,null,{"$f":"DB!B1144","v":0}]
[null,null,null,null,null,null,null,null,null,null,null,null,null,null,{"$f":"DB!B1145","v":0}]
[null,null,null,null,null,null,null,null,null,null,null,null,null,null,{"$f":"DB!B1146","v":0}]
[null,null,null,null,null,null,null,null,null,null,null,null,null,null,{"$f":"DB!B1147","v":0}]
[null,null,null,null,null,null,null,null,null,null,null,null,null,null,{"$f":"DB!B1148","v":0}]
[null,null,null,null,null,null,null,null,null,null,null,null,null,null,{"$f":"DB!B1149","v":0}]
[null,null,null,null,null,null,null,null,null,null,null,null,null,null,{"$f":"DB!B1150","v":0}]
[null,null,null,null,null,null,null,null,null,null,null,null,null,null,{"$f":"DB!B1151","v":0}]
[null,null,null,null,null,null,null,null,null,null,null,null,null,null,{"$f":"DB!B1152","v":0}]
[null,null,null,null,null,null,null,null,null,null,null,null,null,null,{"$f":"DB!B1153","v":0}]
[null,null,null,null,null,null,null,null,null,null,null,null,null,null,{"$f":"DB!B1154","v":0}]
[null,null,null,null,null,null,null,null,null,null,null,null,null,null,{"$f":"DB!B1155","v":0}]
[null,null,null,null,null,null,null,null,null,null,null,null,null,null,{"$f":"DB!B1156","v":0}]
[null,null,null,null,null,null,null,null,null,null,null,null,null,null,{"$f":"DB!B1157","v":0}]
[null,null,null,null,null,null,null,null,null,null,null,null,null,null,{"$f":"DB!B1158","v":0}]
[null,null,null,null,null,null,null,null,null,null,null,null,null,null,{"$f":"DB!B1159","v":0}]
[null,null,null,null,null,null,null,null,null,null,null,null,null,null,{"$f":"DB!B1160","v":0}]
[null,null,null,null,null,null,null,null,null,null,null,null,null,null,{"$f":"DB!B1161","v":0}]
[null,null,null,null,null,null,null,null,null,null,null,null,null,null,{"$f":"DB!B1162","v":0}]
[null,null,null,null,null,null,null,null,null,null,null,null,null,null,{"$f":"DB!B1163","v":0}]
[null,null,null,null,null,null,null,null,null,null,null,null,null,null,{"$f":"DB!B1164","v":0}]
[null,null,null,null,null,null,null,null,null,null,null,null,null,null,{"$f":"DB!B1165","v":0}]
[null,null,null,null,null,null,null,null,null,null,null,null,null,null,{"$f":"DB!B1166","v":0}]
[null,null,null,null,null,null,null,null,null,null,null,null,null,null,{"$f":"DB!B1167","v":0}]
[null,null,null,null,null,null,null,null,null,null,null,null,null,null,{"$f":"DB!B1168","v":0}]
[null,null,null,null,null,null,null,null,null,null,null,null,null,null,{"$f":"DB!B1169","v":0}]
[null,null,null,null,null,null,null,null,null,null,null,null,null,null,{"$f":"DB!B1170","v":0}]
[null,null,null,null,null,null,null,null,null,null,null,null,null,null,{"$f":"DB!B1171","v":0}]
[null,null,null,null,null,null,null,null,null,null,null,null,null,null,{"$f":"DB!B1172","v":0}]
[null,null,null,null,null,null,null,null,null,null,null,null,null,null,{"$f":"DB!B1173","v":0}]
[null,null,null,null,null,null,null,null,null,null,null,null,null,null,{"$f":"DB!B1174","v":0}]
[null,null,null,null,null,null,null,null,null,null,null,null,null,null,{"$f":"DB!B1175","v":0}]
[null,null,null,null,null,null,null,null,null,null,null,null,null,null,{"$f":"DB!B1176","v":0}]
[null,null,null,null,null,null,null,null,null,null,null,null,null,null,{"$f":"DB!B1177","v":0}]
[null,null,null,null,null,null,null,null,null,null,null,null,null,null,{"$f":"DB!B1178","v":0}]
[null,null,null,null,null,null,null,null,null,null,null,null,null,null,{"$f":"DB!B1179","v":0}]
[null,null,null,null,null,null,null,null,null,null,null,null,null,null,{"$f":"DB!B1180","v":0}]
[null,null,null,null,null,null,null,null,null,null,null,null,null,null,{"$f":"DB!B1181","v":0}]
[null,null,null,null,null,null,null,null,null,null,null,null,null,null,{"$f":"DB!B1182","v":0}]
[null,null,null,null,null,null,null,null,null,null,null,null,null,null,{"$f":"DB!B1183","v":0}]
[null,null,null,null,null,null,null,null,null,null,null,null,null,null,{"$f":"DB!B1184","v":0}]
[null,null,null,null,null,null,null,null,null,null,null,null,null,null,{"$f":"DB!B1185","v":0}]
[null,null,null,null,null,null,null,null,null,null,null,null,null,null,{"$f":"DB!B1186","v":0}]
[null,null,null,null,null,null,null,null,null,null,null,null,null,null,{"$f":"DB!B1187","v":0}]
[null,null,null,null,null,null,null,null,null,null,null,null,null,null,{"$f":"DB!B1188","v":0}]
[null,null,null,null,null,null,null,null,null,null,null,null,null,null,{"$f":"DB!B1189","v":0}]
[null,null,null,null,null,null,null,null,null,null,null,null,null,null,{"$f":"DB!B1190","v":0}]
[null,null,null,null,null,null,null,null,null,null,null,null,null,null,{"$f":"DB!B1191","v":0}]
[null,null,null,null,null,null,null,null,null,null,null,null,null,null,{"$f":"DB!B1192","v":0}]
[null,null,null,null,null,null,null,null,null,null,null,null,null,null,{"$f":"DB!B1193","v":0}]
[null,null,null,null,null,null,null,null,null,null,null,null,null,null,{"$f":"DB!B1194","v":0}]
[null,null,null,null,null,null,null,null,null,null,null,null,null,null,{"$f":"DB!B1195","v":0}]
[null,null,null,null,null,null,null,null,null,null,null,null,null,null,{"$f":"DB!B1196","v":0}]
[null,null,null,null,null,null,null,null,null,null,null,null,null,null,{"$f":"DB!B1197","v":0}]
[null,null,null,null,null,null,null,null,null,null,null,null,null,null,{"$f":"DB!B1198","v":0}]
[null,null,null,null,null,null,null,null,null,null,null,null,null,null,{"$f":"DB!B1199","v":0}]
[null,null,null,null,null,null,null,null,null,null,null,null,null,null,{"$f":"DB!B1200","v":0}]
[null,null,null,null,null,null,null,null,null,null,null,null,null,null,{"$f":"DB!B1201","v":0}]
[null,null,null,null,null,null,null,null,null,null,null,null,null,null,{"$f":"DB!B1202","v":0}]
[null,null,null,null,null,null,null,null,null,null,null,null,null,null,{"$f":"DB!B1203","v":0}]
[null,null,null,null,null,null,null,null,null,null,null,null,null,null,{"$f":"DB!B1204","v":0}]
[null,null,null,null,null,null,null,null,null,null,null,null,null,null,{"$f":"DB!B1205","v":0}]
[null,null,null,null,null,null,null,null,null,null,null,null,null,null,{"$f":"DB!B1206","v":0}]
[null,null,null,null,null,null,null,null,null,null,null,null,null,null,{"$f":"DB!B1207","v":0}]
[null,null,null,null,null,null,null,null,null,null,null,null,null,null,{"$f":"DB!B1208","v":0}]
[null,null,null,null,null,null,null,null,null,null,null,null,null,null,{"$f":"DB!B1209","v":0}]
[null,null,null,null,null,null,null,null,null,null,null,null,null,null,{"$f":"DB!B1210","v":0}]
[null,null,null,null,null,null,null,null,null,null,null,null,null,null,{"$f":"DB!B1211","v":0}]
[null,null,null,null,null,null,null,null,null,null,null,null,null,null,{"$f":"DB!B1212","v":0}]
[null,null,null,null,null,null,null,null,null,null,null,null,null,null,{"$f":"DB!B1213","v":0}]
[null,null,null,null,null,null,null,null,null,null,null,null,null,null,{"$f":"DB!B1214","v":0}]
[null,null,null,null,null,null,null,null,null,null,null,null,null,null,{"$f":"DB!B1215","v":0}]
[null,null,null,null,null,null,null,null,null,null,null,null,null,null,{"$f":"DB!B1216","v":0}]
[null,null,null,null,null,null,null,null,null,null,null,null,null,null,{"$f":"DB!B1217","v":0}]
[null,null,null,null,null,null,null,null,null,null,null,null,null,null,{"$f":"DB!B1218","v":0}]
[null,null,null,null,null,null,null,null,null,null,null,null,null,null,{"$f":"DB!B1219","v":0}]
[null,null,null,null,null,null,null,null,null,null,null,null,null,null,{"$f":"DB!B1220","v":0}]
[null,null,null,null,null,null,null,null,null,null,null,null,null,null,{"$f":"DB!B1221","v":0}]
[null,null,null,null,null,null,null,null,null,null,null,null,null,null,{"$f":"DB!B1222","v":0}]
[null,null,null,null,null,null,null,null,null,null,null,null,null,null,{"$f":"DB!B1223","v":0}]
[null,null,null,null,null,null,null,null,null,null,null,null,null,null,{"$f":"DB!B1224","v":0}]
[null,null,null,null,null,null,null,null,null,null,null,null,null,null,{"$f":"DB!B1225","v":0}]
[null,null,null,null,null,null,null,null,null,null,null,null,null,null,{"$f":"DB!B1226","v":0}]
[null,null,null,null,null,null,null,null,null,null,null,null,null,null,{"$f":"DB!B1227","v":0}]
[null,null,null,null,null,null,null,null,null,null,null,null,null,null,{"$f":"DB!B1228","v":0}]
[null,null,null,null,null,null,null,null,null,null,null,null,null,null,{"$f":"DB!B1229","v":0}]
[null,null,null,null,null,null,null,null,null,null,null,null,null,null,{"$f":"DB!B1230","v":0}]
[null,null,null,null,null,null,null,null,null,null,null,null,null,null,{"$f":"DB!B1231","v":0}]
[null,null,null,null,null,null,null,null,null,null,null,null,null,null,{"$f":"DB!B1232","v":0}]
[null,null,null,null,null,null,null,null,null,null,null,null,null,null,{"$f":"DB!B1233","v":0}]
[null,null,null,null,null,null,null,null,null,null,null,null,null,null,{"$f":"DB!B1234","v":0}]
[null,null,null,null,null,null,null,null,null,null,null,null,null,null,{"$f":"DB!B1235","v":0}]
[null,null,null,null,null,null,null,null,null,null,null,null,null,null,{"$f":"DB!B1236","v":0}]
[null,null,null,null,null,null,null,null,null,null,null,null,null,null,{"$f":"DB!B1237","v":0}]
[null,null,null,null,null,null,null,null,null,null,null,null,null,null,{"$f":"DB!B1238","v":0}]
[null,null,null,null,null,null,null,null,null,null,null,null,null,null,{"$f":"DB!B1239","v":0}]
[null,null,null,null,null,null,null,null,null,null,null,null,null,null,{"$f":"DB!B1240","v":0}]
[null,null,null,null,null,null,null,null,null,null,null,null,null,null,{"$f":"DB!B1241","v":0}]
[null,null,null,null,null,null,null,null,null,null,null,null,null,null,{"$f":"DB!B1242","v":0}]
[null,null,null,null,null,null,null,null,null,null,null,null,null,null,{"$f":"DB!B1243","v":0}]
[null,null,null,null,null,null,null,null,null,null,null,null,null,null,{"$f":"DB!B1244","v":0}]
[null,null,null,null,null,null,null,null,null,null,null,null,null,null,{"$f":"DB!B1245","v":0}]
[null,null,null,null,null,null,null,null,null,null,null,null,null,null,{"$f":"DB!B1246","v":0}]
[null,null,null,null,null,null,null,null,null,null,null,null,null,null,{"$f":"DB!B1247","v":0}]
[null,null,null,null,null,null,null,null,null,null,null,null,null,null,{"$f":"DB!B1248","v":0}]
[null,null,null,null,null,null,null,null,null,null,null,null,null,null,{"$f":"DB!B1249","v":0}]
[null,null,null,null,null,null,null,null,null,null,null,null,null,null,{"$f":"DB!B1250","v":0}]
[null,null,null,null,null,null,null,null,null,null,null,null,null,null,{"$f":"DB!B1251","v":0}]
[null,null,null,null,null,null,null,null,null,null,null,null,null,null,{"$f":"DB!B1252","v":0}]
[null,null,null,null,null,null,null,null,null,null,null,null,null,null,{"$f":"DB!B1253","v":0}]
[null,null,null,null,null,null,null,null,null,null,null,null,null,null,{"$f":"DB!B1254","v":0}]
[null,null,null,null,null,null,null,null,null,null,null,null,null,null,{"$f":"DB!B1255","v":0}]
[null,null,null,null,null,null,null,null,null,null,null,null,null,null,{"$f":"DB!B1256","v":0}]
[null,null,null,null,null,null,null,null,null,null,null,null,null,null,{"$f":"DB!B1257","v":0}]
[null,null,null,null,null,null,null,null,null,null,null,null,null,null,{"$f":"DB!B1258","v":0}]
[null,null,null,null,null,null,null,null,null,null,null,null,null,null,{"$f":"DB!B1259","v":0}]
[null,null,null,null,null,null,null,null,null,null,null,null,null,null,{"$f":"DB!B1260","v":0}]
[null,null,null,null,null,null,null,null,null,null,null,null,null,null,{"$f":"DB!B1261","v":0}]
[null,null,null,null,null,null,null,null,null,null,null,null,null,null,{"$f":"DB!B1262","v":0}]
[null,null,null,null,null,null,null,null,null,null,null,null,null,null,{"$f":"DB!B1263","v":0}]
[null,null,null,null,null,null,null,null,null,null,null,null,null,null,{"$f":"DB!B1264","v":0}]
[null,null,null,null,null,null,null,null,null,null,null,null,null,null,{"$f":"DB!B1265","v":0}]
[null,null,null,null,null,null,null,null,null,null,null,null,null,null,{"$f":"DB!B1266","v":0}]
[null,null,null,null,null,null,null,null,null,null,null,null,null,null,{"$f":"DB!B1267","v":0}]
[null,null,null,null,null,null,null,null,null,null,null,null,null,null,{"$f":"DB!B1268","v":0}]
[null,null,null,null,null,null,null,null,null,null,null,null,null,null,{"$f":"DB!B1269","v":0}]
[null,null,null,null,null,null,null,null,null,null,null,null,null,null,{"$f":"DB!B1270","v":0}]
[null,null,null,null,null,null,null,null,null,null,null,null,null,null,{"$f":"DB!B1271","v":0}]
[null,null,null,null,null,null,null,null,null,null,null,null,null,null,{"$f":"DB!B1272","v":0}]
[null,null,null,null,null,null,null,null,null,null,null,null,null,null,{"$f":"DB!B1273","v":0}]
[null,null,null,null,null,null,null,null,null,null,null,null,null,null,{"$f":"DB!B1274","v":0}]
[null,null,null,null,null,null,null,null,null,null,null,null,null,null,{"$f":"DB!B1275","v":0}]
[null,null,null,null,null,null,null,null,null,null,null,null,null,null,{"$f":"DB!B1276","v":0}]
[null,null,null,null,null,null,null,null,null,null,null,null,null,null,{"$f":"DB!B1277","v":0}]
[null,null,null,null,null,null,null,null,null,null,null,null,null,null,{"$f":"DB!B1278","v":0}]
[null,null,null,null,null,null,null,null,null,null,null,null,null,null,{"$f":"DB!B1279","v":0}]
[null,null,null,null,null,null,null,null,null,null,null,null,null,null,{"$f":"DB!B1280","v":0}]
[null,null,null,null,null,null,null,null,null,null,null,null,null,null,{"$f":"DB!B1281","v":0}]
[null,null,null,null,null,null,null,null,null,null,null,null,null,null,{"$f":"DB!B1282","v":0}]
[null,null,null,null,null,null,null,null,null,null,null,null,null,null,{"$f":"DB!B1283","v":0}]
[null,null,null,null,null,null,null,null,null,null,null,null,null,null,{"$f":"DB!B1284","v":0}]
[null,null,null,null,null,null,null,null,null,null,null,null,null,null,{"$f":"DB!B1285","v":0}]
[null,null,null,null,null,null,null,null,null,null,null,null,null,null,{"$f":"DB!B1286","v":0}]
[null,null,null,null,null,null,null,null,null,null,null,null,null,null,{"$f":"DB!B1287","v":0}]
[null,null,null,null,null,null,null,null,null,null,null,null,null,null,{"$f":"DB!B1288","v":0}]
[null,null,null,null,null,null,null,null,null,null,null,null,null,null,{"$f":"DB!B1289","v":0}]
[null,null,null,null,null,null,null,null,null,null,null,null,null,null,{"$f":"DB!B1290","v":0}]
[null,null,null,null,null,null,null,null,null,null,null,null,null,null,{"$f":"DB!B1291","v":0}]
[null,null,null,null,null,null,null,null,null,null,null,null,null,null,{"$f":"DB!B1292","v":0}]
[null,null,null,null,null,null,null,null,null,null,null,null,null,null,{"$f":"DB!B1293","v":0}]
[null,null,null,null,null,null,null,null,null,null,null,null,null,null,{"$f":"DB!B1294","v":0}]
[null,null,null,null,null,null,null,null,null,null,null,null,null,null,{"$f":"DB!B1295","v":0}]
[null,null,null,null,null,null,null,null,null,null,null,null,null,null,{"$f":"DB!B1296","v":0}]
[null,null,null,null,null,null,null,null,null,null,null,null,null,null,{"$f":"DB!B1297","v":0}]
[null,null,null,null,null,null,null,null,null,null,null,null,null,null,{"$f":"DB!B1298","v":0}]
[null,null,null,null,null,null,null,null,null,null,null,null,null,null,{"$f":"DB!B1299","v":0}]
[null,null,null,null,null,null,null,null,null,null,null,null,null,null,{"$f":"DB!B1300","v":0}]
[null,null,null,null,null,null,null,null,null,null,null,null,null,null,{"$f":"DB!B1301","v":0}]
[null,null,null,null,null,null,null,null,null,null,null,null,null,null,{"$f":"DB!B1302","v":0}]
[null,null,null,null,null,null,null,null,null,null,null,null,null,null,{"$f":"DB!B1303","v":0}]
[null,null,null,null,null,null,null,null,null,null,null,null,null,null,{"$f":"DB!B1304","v":0}]
[null,null,null,null,null,null,null,null,null,null,null,null,null,null,{"$f":"DB!B1305","v":0}]
[null,null,null,null,null,null,null,null,null,null,null,null,null,null,{"$f":"DB!B1306","v":0}]
[null,null,null,null,null,null,null,null,null,null,null,null,null,null,{"$f":"DB!B1307","v":0}]
[null,null,null,null,null,null,null,null,null,null,null,null,null,null,{"$f":"DB!B1308","v":0}]
[null,null,null,null,null,null,null,null,null,null,null,null,null,null,{"$f":"DB!B1309","v":0}]
[null,null,null,null,null,null,null,null,null,null,null,null,null,null,{"$f":"DB!B1310","v":0}]
[null,null,null,null,null,null,null,null,null,null,null,null,null,null,{"$f":"DB!B1311","v":0}]
[null,null,null,null,null,null,null,null,null,null,null,null,null,null,{"$f":"DB!B1312","v":0}]
[null,null,null,null,null,null,null,null,null,null,null,null,null,null,{"$f":"DB!B1313","v":0}]
[null,null,null,null,null,null,null,null,null,null,null,null,null,null,{"$f":"DB!B1314","v":0}]
[null,null,null,null,null,null,null,null,null,null,null,null,null,null,{"$f":"DB!B1315","v":0}]
[null,null,null,null,null,null,null,null,null,null,null,null,null,null,{"$f":"DB!B1316","v":0}]
[null,null,null,null,null,null,null,null,null,null,null,null,null,null,{"$f":"DB!B1317","v":0}]
[null,null,null,null,null,null,null,null,null,null,null,null,null,null,{"$f":"DB!B1318","v":0}]
[null,null,null,null,null,null,null,null,null,null,null,null,null,null,{"$f":"DB!B1319","v":0}]
[null,null,null,null,null,null,null,null,null,null,null,null,null,null,{"$f":"DB!B1320","v":0}]
[null,null,null,null,null,null,null,null,null,null,null,null,null,null,{"$f":"DB!B1321","v":0}]
[null,null,null,null,null,null,null,null,null,null,null,null,null,null,{"$f":"DB!B1322","v":0}]
[null,null,null,null,null,null,null,null,null,null,null,null,null,null,{"$f":"DB!B1323","v":0}]
[null,null,null,null,null,null,null,null,null,null,null,null,null,null,{"$f":"DB!B1324","v":0}]
[null,null,null,null,null,null,null,null,null,null,null,null,null,null,{"$f":"DB!B1325","v":0}]
[null,null,null,null,null,null,null,null,null,null,null,null,null,null,{"$f":"DB!B1326","v":0}]
[null,null,null,null,null,null,null,null,null,null,null,null,null,null,{"$f":"DB!B1327","v":0}]
[null,null,null,null,null,null,null,null,null,null,null,null,null,null,{"$f":"DB!B1328","v":0}]
[null,null,null,null,null,null,null,null,null,null,null,null,null,null,{"$f":"DB!B1329","v":0}]
[null,null,null,null,null,null,null,null,null,null,null,null,null,null,{"$f":"DB!B1330","v":0}]
[null,null,null,null,null,null,null,null,null,null,null,null,null,null,{"$f":"DB!B1331","v":0}]
[null,null,null,null,null,null,null,null,null,null,null,null,null,null,{"$f":"DB!B1332","v":0}]
[null,null,null,null,null,null,null,null,null,null,null,null,null,null,{"$f":"DB!B1333","v":0}]
[null,null,null,null,null,null,null,null,null,null,null,null,null,null,{"$f":"DB!B1334","v":0}]
[null,null,null,null,null,null,null,null,null,null,null,null,null,null,{"$f":"DB!B1335","v":0}]
[null,null,null,null,null,null,null,null,null,null,null,null,null,null,{"$f":"DB!B1336","v":0}]
[null,null,null,null,null,null,null,null,null,null,null,null,null,null,{"$f":"DB!B1337","v":0}]
[null,null,null,null,null,null,null,null,null,null,null,null,null,null,{"$f":"DB!B1338","v":0}]
[null,null,null,null,null,null,null,null,null,null,null,null,null,null,{"$f":"DB!B1339","v":0}]
[null,null,null,null,null,null,null,null,null,null,null,null,null,null,{"$f":"DB!B1340","v":0}]
[null,null,null,null,null,null,null,null,null,null,null,null,null,null,{"$f":"DB!B1341","v":0}]
[null,null,null,null,null,null,null,null,null,null,null,null,null,null,{"$f":"DB!B1342","v":0}]
[null,null,null,null,null,null,null,null,null,null,null,null,null,null,{"$f":"DB!B1343","v":0}]
[null,null,null,null,null,null,null,null,null,null,null,null,null,null,{"$f":"DB!B1344","v":0}]
[null,null,null,null,null,null,null,null,null,null,null,null,null,null,{"$f":"DB!B1345","v":0}]
[null,null,null,null,null,null,null,null,null,null,null,null,null,null,{"$f":"DB!B1346","v":0}]
[null,null,null,null,null,null,null,null,null,null,null,null,null,null,{"$f":"DB!B1347","v":0}]
[null,null,null,null,null,null,null,null,null,null,null,null,null,null,{"$f":"DB!B1348","v":0}]
[null,null,null,null,null,null,null,null,null,null,null,null,null,null,{"$f":"DB!B1349","v":0}]
[null,null,null,null,null,null,null,null,null,null,null,null,null,null,{"$f":"DB!B1350","v":0}]
[null,null,null,null,null,null,null,null,null,null,null,null,null,null,{"$f":"DB!B1351","v":0}]
[null,null,null,null,null,null,null,null,null,null,null,null,null,null,{"$f":"DB!B1352","v":0}]
[null,null,null,null,null,null,null,null,null,null,null,null,null,null,{"$f":"DB!B1353","v":0}]
[null,null,null,null,null,null,null,null,null,null,null,null,null,null,{"$f":"DB!B1354","v":0}]
[null,null,null,null,null,null,null,null,null,null,null,null,null,null,{"$f":"DB!B1355","v":0}]
[null,null,null,null,null,null,null,null,null,null,null,null,null,null,{"$f":"DB!B1356","v":0}]
[null,null,null,null,null,null,null,null,null,null,null,null,null,null,{"$f":"DB!B1357","v":0}]
[null,null,null,null,null,null,null,null,null,null,null,null,null,null,{"$f":"DB!B1358","v":0}]
[null,null,null,null,null,null,null,null,null,null,null,null,null,null,{"$f":"DB!B1359","v":0}]
[null,null,null,null,null,null,null,null,null,null,null,null,null,null,{"$f":"DB!B1360","v":0}]
[null,null,null,null,null,null,null,null,null,null,null,null,null,null,{"$f":"DB!B1361","v":0}]
[null,null,null,null,null,null,null,null,null,null,null,null,null,null,{"$f":"DB!B1362","v":0}]
[null,null,null,null,null,null,null,null,null,null,null,null,null,null,{"$f":"DB!B1363","v":0}]
[null,null,null,null,null,null,null,null,null,null,null,null,null,null,{"$f":"DB!B1364","v":0}]
[null,null,null,null,null,null,null,null,null,null,null,null,null,null,{"$f":"DB!B1365","v":0}]
[null,null,null,null,null,null,null,null,null,null,null,null,null,null,{"$f":"DB!B1366","v":0}]
[null,null,null,null,null,null,null,null,null,null,null,null,null,null,{"$f":"DB!B1367","v":0}]
[null,null,null,null,null,null,null,null,null,null,null,null,null,null,{"$f":"DB!B1368","v":0}]
[null,null,null,null,null,null,null,null,null,null,null,null,null,null,{"$f":"DB!B1369","v":0}]
[null,null,null,null,null,null,null,null,null,null,null,null,null,null,{"$f":"DB!B1370","v":0}]
[null,null,null,null,null,null,null,null,null,null,null,null,null,null,{"$f":"DB!B1371","v":0}]
[null,null,null,null,null,null,null,null,null,null,null,null,null,null,{"$f":"DB!B1372","v":0}]
[null,null,null,null,null,null,null,null,null,null,null,null,null,null,{"$f":"DB!B1373","v":0}]
[null,null,null,null,null,null,null,null,null,null,null,null,null,null,{"$f":"DB!B1374","v":0}]
[null,null,null,null,null,null,null,null,null,null,null,null,null,null,{"$f":"DB!B1375","v":0}]
[null,null,null,null,null,null,null,null,null,null,null,null,null,null,{"$f":"DB!B1376","v":0}]
[null,null,null,null,null,null,null,null,null,null,null,null,null,null,{"$f":"DB!B1377","v":0}]
[null,null,null,null,null,null,null,null,null,null,null,null,null,null,{"$f":"DB!B1378","v":0}]
[null,null,null,null,null,null,null,null,null,null,null,null,null,null,{"$f":"DB!B1379","v":0}]
[null,null,null,null,null,null,null,null,null,null,null,null,null,null,{"$f":"DB!B1380","v":0}]
[null,null,null,null,null,null,null,null,null,null,null,null,null,null,{"$f":"DB!B1381","v":0}]
[null,null,null,null,null,null,null,null,null,null,null,null,null,null,{"$f":"DB!B1382","v":0}]
[null,null,null,null,null,null,null,null,null,null,null,null,null,null,{"$f":"DB!B1383","v":0}]
[null,null,null,null,null,null,null,null,null,null,null,null,null,null,{"$f":"DB!B1384","v":0}]
[null,null,null,null,null,null,null,null,null,null,null,null,null,null,{"$f":"DB!B1385","v":0}]
[null,null,null,null,null,null,null,null,null,null,null,null,null,null,{"$f":"DB!B1386","v":0}]
[null,null,null,null,null,null,null,null,null,null,null,null,null,null,{"$f":"DB!B1387","v":0}]
[null,null,null,null,null,null,null,null,null,null,null,null,null,null,{"$f":"DB!B1388","v":0}]
[null,null,null,null,null,null,null,null,null,null,null,null,null,null,{"$f":"DB!B1389","v":0}]
[null,null,null,null,null,null,null,null,null,null,null,null,null,null,{"$f":"DB!B1390","v":0}]
[null,null,null,null,null,null,null,null,null,null,null,null,null,null,{"$f":"DB!B1391","v":0}]
[null,null,null,null,null,null,null,null,null,null,null,null,null,null,{"$f":"DB!B1392","v":0}]
[null,null,null,null,null,null,null,null,null,null,null,null,null,null,{"$f":"DB!B1393","v":0}]
[null,null,null,null,null,null,null,null,null,null,null,null,null,null,{"$f":"DB!B1394","v":0}]
[null,null,null,null,null,null,null,null,null,null,null,null,null,null,{"$f":"DB!B1395","v":0}]
[null,null,null,null,null,null,null,null,null,null,null,null,null,null,{"$f":"DB!B1396","v":0}]
[null,null,null,null,null,null,null,null,null,null,null,null,null,null,{"$f":"DB!B1397","v":0}]
[null,null,null,null,null,null,null,null,null,null,null,null,null,null,{"$f":"DB!B1398","v":0}]
[null,null,null,null,null,null,null,null,null,null,null,null,null,null,{"$f":"DB!B1399","v":0}]
[null,null,null,null,null,null,null,null,null,null,null,null,null,null,{"$f":"DB!B1400","v":0}]
[null,null,null,null,null,null,null,null,null,null,null,null,null,null,{"$f":"DB!B1401","v":0}]
[null,null,null,null,null,null,null,null,null,null,null,null,null,null,{"$f":"DB!B1402","v":0}]
[null,null,null,null,null,null,null,null,null,null,null,null,null,null,{"$f":"DB!B1403","v":0}]
[null,null,null,null,null,null,null,null,null,null,null,null,null,null,{"$f":"DB!B1404","v":0}]
[null,null,null,null,null,null,null,null,null,null,null,null,null,null,{"$f":"DB!B1405","v":0}]
[null,null,null,null,null,null,null,null,null,null,null,null,null,null,{"$f":"DB!B1406","v":0}]
[null,null,null,null,null,null,null,null,null,null,null,null,null,null,{"$f":"DB!B1407","v":0}]
[null,null,null,null,null,null,null,null,null,null,null,null,null,null,{"$f":"DB!B1408","v":0}]
[null,null,null,null,null,null,null,null,null,null,null,null,null,null,{"$f":"DB!B1409","v":0}]
[null,null,null,null,null,null,null,null,null,null,null,null,null,null,{"$f":"DB!B1410","v":0}]
[null,null,null,null,null,null,null,null,null,null,null,null,null,null,{"$f":"DB!B1411","v":0}]
[null,null,null,null,null,null,null,null,null,null,null,null,null,null,{"$f":"DB!B1412","v":0}]
[null,null,null,null,null,null,null,null,null,null,null,null,null,null,{"$f":"DB!B1413","v":0}]
[null,null,null,null,null,null,null,null,null,null,null,null,null,null,{"$f":"DB!B1414","v":0}]
[null,null,null,null,null,null,null,null,null,null,null,null,null,null,{"$f":"DB!B1415","v":0}]
[null,null,null,null,null,null,null,null,null,null,null,null,null,null,{"$f":"DB!B1416","v":0}]
[null,null,null,null,null,null,null,null,null,null,null,null,null,null,{"$f":"DB!B1417","v":0}]
[null,null,null,null,null,null,null,null,null,null,null,null,null,null,{"$f":"DB!B1418","v":0}]
[null,null,null,null,null,null,null,null,null,null,null,null,null,null,{"$f":"DB!B1419","v":0}]
[null,null,null,null,null,null,null,null,null,null,null,null,null,null,{"$f":"DB!B1420","v":0}]
[null,null,null,null,null,null,null,null,null,null,null,null,null,null,{"$f":"DB!B1421","v":0}]
[null,null,null,null,null,null,null,null,null,null,null,null,null,null,{"$f":"DB!B1422","v":0}]
[null,null,null,null,null,null,null,null,null,null,null,null,null,null,{"$f":"DB!B1423","v":0}]
[null,null,null,null,null,null,null,null,null,null,null,null,null,null,{"$f":"DB!B1424","v":0}]
[null,null,null,null,null,null,null,null,null,null,null,null,null,null,{"$f":"DB!B1425","v":0}]
[null,null,null,null,null,null,null,null,null,null,null,null,null,null,{"$f":"DB!B1426","v":0}]
[null,null,null,null,null,null,null,null,null,null,null,null,null,null,{"$f":"DB!B1427","v":0}]
[null,null,null,null,null,null,null,null,null,null,null,null,null,null,{"$f":"DB!B1428","v":0}]
[null,null,null,null,null,null,null,null,null,null,null,null,null,null,{"$f":"DB!B1429","v":0}]
[null,null,null,null,null,null,null,null,null,null,null,null,null,null,{"$f":"DB!B1430","v":0}]
[null,null,null,null,null,null,null,null,null,null,null,null,null,null,{"$f":"DB!B1431","v":0}]
[null,null,null,null,null,null,null,null,null,null,null,null,null,null,{"$f":"DB!B1432","v":0}]
[null,null,null,null,null,null,null,null,null,null,null,null,null,null,{"$f":"DB!B1433","v":0}]
[null,null,null,null,null,null,null,null,null,null,null,null,null,null,{"$f":"DB!B1434","v":0}]
[null,null,null,null,null,null,null,null,null,null,null,null,null,null,{"$f":"DB!B1435","v":0}]
[null,null,null,null,null,null,null,null,null,null,null,null,null,null,{"$f":"DB!B1436","v":0}]
[null,null,null,null,null,null,null,null,null,null,null,null,null,null,{"$f":"DB!B1437","v":0}]
[null,null,null,null,null,null,null,null,null,null,null,null,null,null,{"$f":"DB!B1438","v":0}]
[null,null,null,null,null,null,null,null,null,null,null,null,null,null,{"$f":"DB!B1439","v":0}]
[null,null,null,null,null,null,null,null,null,null,null,null,null,null,{"$f":"DB!B1440","v":0}]
[null,null,null,null,null,null,null,null,null,null,null,null,null,null,{"$f":"DB!B1441","v":0}]
[null,null,null,null,null,null,null,null,null,null,null,null,null,null,{"$f":"DB!B1442","v":0}]
[null,null,null,null,null,null,null,null,null,null,null,null,null,null,{"$f":"DB!B1443","v":0}]
[null,null,null,null,null,null,null,null,null,null,null,null,null,null,{"$f":"DB!B1444","v":0}]
[null,null,null,null,null,null,null,null,null,null,null,null,null,null,{"$f":"DB!B1445","v":0}]
[null,null,null,null,null,null,null,null,null,null,null,null,null,null,{"$f":"DB!B1446","v":0}]
[null,null,null,null,null,null,null,null,null,null,null,null,null,null,{"$f":"DB!B1447","v":0}]
[null,null,null,null,null,null,null,null,null,null,null,null,null,null,{"$f":"DB!B1448","v":0}]
[null,null,null,null,null,null,null,null,null,null,null,null,null,null,{"$f":"DB!B1449","v":0}]
[null,null,null,null,null,null,null,null,null,null,null,null,null,null,{"$f":"DB!B1450","v":0}]
[null,null,null,null,null,null,null,null,null,null,null,null,null,null,{"$f":"DB!B1451","v":0}]
[null,null,null,null,null,null,null,null,null,null,null,null,null,null,{"$f":"DB!B1452","v":0}]
[null,null,null,null,null,null,null,null,null,null,null,null,null,null,{"$f":"DB!B1453","v":0}]
[null,null,null,null,null,null,null,null,null,null,null,null,null,null,{"$f":"DB!B1454","v":0}]
[null,null,null,null,null,null,null,null,null,null,null,null,null,null,{"$f":"DB!B1455","v":0}]
[null,null,null,null,null,null,null,null,null,null,null,null,null,null,{"$f":"DB!B1456","v":0}]
[null,null,null,null,null,null,null,null,null,null,null,null,null,null,{"$f":"DB!B1457","v":0}]
[null,null,null,null,null,null,null,null,null,null,null,null,null,null,{"$f":"DB!B1458","v":0}]
[null,null,null,null,null,null,null,null,null,null,null,null,null,null,{"$f":"DB!B1459","v":0}]
[null,null,null,null,null,null,null,null,null,null,null,null,null,null,{"$f":"DB!B1460","v":0}]
[null,null,null,null,null,null,null,null,null,null,null,null,null,null,{"$f":"DB!B1461","v":0}]
[null,null,null,null,null,null,null,null,null,null,null,null,null,null,{"$f":"DB!B1462","v":0}]
[null,null,null,null,null,null,null,null,null,null,null,null,null,null,{"$f":"DB!B1463","v":0}]
[null,null,null,null,null,null,null,null,null,null,null,null,null,null,{"$f":"DB!B1464","v":0}]
[null,null,null,null,null,null,null,null,null,null,null,null,null,null,{"$f":"DB!B1465","v":0}]
[null,null,null,null,null,null,null,null,null,null,null,null,null,null,{"$f":"DB!B1466","v":0}]
[null,null,null,null,null,null,null,null,null,null,null,null,null,null,{"$f":"DB!B1467","v":0}]
[null,null,null,null,null,null,null,null,null,null,null,null,null,null,{"$f":"DB!B1468","v":0}]
[null,null,null,null,null,null,null,null,null,null,null,null,null,null,{"$f":"DB!B1469","v":0}]
[null,null,null,null,null,null,null,null,null,null,null,null,null,null,{"$f":"DB!B1470","v":0}]
[null,null,null,null,null,null,null,null,null,null,null,null,null,null,{"$f":"DB!B1471","v":0}]
[null,null,null,null,null,null,null,null,null,null,null,null,null,null,{"$f":"DB!B1472","v":0}]
[null,null,null,null,null,null,null,null,null,null,null,null,null,null,{"$f":"DB!B1473","v":0}]
[null,null,null,null,null,null,null,null,null,null,null,null,null,null,{"$f":"DB!B1474","v":0}]
[null,null,null,null,null,null,null,null,null,null,null,null,null,null,{"$f":"DB!B1475","v":0}]
[null,null,null,null,null,null,null,null,null,null,null,null,null,null,{"$f":"DB!B1476","v":0}]
[null,null,null,null,null,null,null,null,null,null,null,null,null,null,{"$f":"DB!B1477","v":0}]
[null,null,null,null,null,null,null,null,null,null,null,null,null,null,{"$f":"DB!B1478","v":0}]
[null,null,null,null,null,null,null,null,null,null,null,null,null,null,{"$f":"DB!B1479","v":0}]
[null,null,null,null,null,null,null,null,null,null,null,null,null,null,{"$f":"DB!B1480","v":0}]
[null,null,null,null,null,null,null,null,null,null,null,null,null,null,{"$f":"DB!B1481","v":0}]
[null,null,null,null,null,null,null,null,null,null,null,null,null,null,{"$f":"DB!B1482","v":0}]
[null,null,null,null,null,null,null,null,null,null,null,null,null,null,{"$f":"DB!B1483","v":0}]
[null,null,null,null,null,null,null,null,null,null,null,null,null,null,{"$f":"DB!B1484","v":0}]
[null,null,null,null,null,null,null,null,null,null,null,null,null,null,{"$f":"DB!B1485","v":0}]
[null,null,null,null,null,null,null,null,null,null,null,null,null,null,{"$f":"DB!B1486","v":0}]
[null,null,null,null,null,null,null,null,null,null,null,null,null,null,{"$f":"DB!B1487","v":0}]
[null,null,null,null,null,null,null,null,null,null,null,null,null,null,{"$f":"DB!B1488","v":0}]
[null,null,null,null,null,null,null,null,null,null,null,null,null,null,{"$f":"DB!B1489","v":0}]
[null,null,null,null,null,null,null,null,null,null,null,null,null,null,{"$f":"DB!B1490","v":0}]
[null,null,null,null,null,null,null,null,null,null,null,null,null,null,{"$f":"DB!B1491","v":0}]
[null,null,null,null,null,null,null,null,null,null,null,null,null,null,{"$f":"DB!B1492","v":0}]
[null,null,null,null,null,null,null,null,null,null,null,null,null,null,{"$f":"DB!B1493","v":0}]
[null,null,null,null,null,null,null,null,null,null,null,null,null,null,{"$f":"DB!B1494","v":0}]
[null,null,null,null,null,null,null,null,null,null,null,null,null,null,{"$f":"DB!B1495","v":0}]
[null,null,null,null,null,null,null,null,null,null,null,null,null,null,{"$f":"DB!B1496","v":0}]
[null,null,null,null,null,null,null,null,null,null,null,null,null,null,{"$f":"DB!B1497","v":0}]
[null,null,null,null,null,null,null,null,null,null,null,null,null,null,{"$f":"DB!B1498","v":0}]
[null,null,null,null,null,null,null,null,null,null,null,null,null,null,{"$f":"DB!B1499","v":0}]
[null,null,null,null,null,null,null,null,null,null,null,null,null,null,{"$f":"DB!B1500","v":0}]
[null,null,null,null,null,null,null,null,null,null,null,null,null,null,{"$f":"DB!B1501","v":0}]
[null,null,null,null,null,null,null,null,null,null,null,null,null,null,{"$f":"DB!B1502","v":0}]
[null,null,null,null,null,null,null,null,null,null,null,null,null,null,{"$f":"DB!B1503","v":0}]
[null,null,null,null,null,null,null,null,null,null,null,null,null,null,{"$f":"DB!B1504","v":0}]
[null,null,null,null,null,null,null,null,null,null,null,null,null,null,{"$f":"DB!B1505","v":0}]
[null,null,null,null,null,null,null,null,null,null,null,null,null,null,{"$f":"DB!B1506","v":0}]
[null,null,null,null,null,null,null,null,null,null,null,null,null,null,{"$f":"DB!B1507","v":0}]
[null,null,null,null,null,null,null,null,null,null,null,null,null,null,{"$f":"DB!B1508","v":0}]
[null,null,null,null,null,null,null,null,null,null,null,null,null,null,{"$f":"DB!B1509","v":0}]
[null,null,null,null,null,null,null,null,null,null,null,null,null,null,{"$f":"DB!B1510","v":0}]
[null,null,null,null,null,null,null,null,null,null,null,null,null,null,{"$f":"DB!B1511","v":0}]
[null,null,null,null,null,null,null,null,null,null,null,null,null,null,{"$f":"DB!B1512","v":0}]
[null,null,null,null,null,null,null,null,null,null,null,null,null,null,{"$f":"DB!B1513","v":0}]
[null,null,null,null,null,null,null,null,null,null,null,null,null,null,{"$f":"DB!B1514","v":0}]
[null,null,null,null,null,null,null,null,null,null,null,null,null,null,{"$f":"DB!B1515","v":0}]
[null,null,null,null,null,null,null,null,null,null,null,null,null,null,{"$f":"DB!B1516","v":0}]
[null,null,null,null,null,null,null,null,null,null,null,null,null,null,{"$f":"DB!B1517","v":0}]
[null,null,null,null,null,null,null,null,null,null,null,null,null,null,{"$f":"DB!B1518","v":0}]
[null,null,null,null,null,null,null,null,null,null,null,null,null,null,{"$f":"DB!B1519","v":0}]
[null,null,null,null,null,null,null,null,null,null,null,null,null,null,{"$f":"DB!B1520","v":0}]
[null,null,null,null,null,null,null,null,null,null,null,null,null,null,{"$f":"DB!B1521","v":0}]
[null,null,null,null,null,null,null,null,null,null,null,null,null,null,{"$f":"DB!B1522","v":0}]
[null,null,null,null,null,null,null,null,null,null,null,null,null,null,{"$f":"DB!B1523","v":0}]
[null,null,null,null,null,null,null,null,null,null,null,null,null,null,{"$f":"DB!B1524","v":0}]
[null,null,null,null,null,null,null,null,null,null,null,null,null,null,{"$f":"DB!B1525","v":0}]
[null,null,null,null,null,null,null,null,null,null,null,null,null,null,{"$f":"DB!B1526","v":0}]
[null,null,null,null,null,null,null,null,null,null,null,null,null,null,{"$f":"DB!B1527","v":0}]
[null,null,null,null,null,null,null,null,null,null,null,null,null,null,{"$f":"DB!B1528","v":0}]
[null,null,null,null,null,null,null,null,null,null,null,null,null,null,{"$f":"DB!B1529","v":0}]
[null,null,null,null,null,null,null,null,null,null,null,null,null,null,{"$f":"DB!B1530","v":0}]
[null,null,null,null,null,null,null,null,null,null,null,null,null,null,{"$f":"DB!B1531","v":0}]
[null,null,null,null,null,null,null,null,null,null,null,null,null,null,{"$f":"DB!B1532","v":0}]
[null,null,null,null,null,null,null,null,null,null,null,null,null,null,{"$f":"DB!B1533","v":0}]
[null,null,null,null,null,null,null,null,null,null,null,null,null,null,{"$f":"DB!B1534","v":0}]
[null,null,null,null,null,null,null,null,null,null,null,null,null,null,{"$f":"DB!B1535","v":0}]
[null,null,null,null,null,null,null,null,null,null,null,null,null,null,{"$f":"DB!B1536","v":0}]
[null,null,null,null,null,null,null,null,null,null,null,null,null,null,{"$f":"DB!B1537","v":0}]
[null,null,null,null,null,null,null,null,null,null,null,null,null,null,{"$f":"DB!B1538","v":0}]
[null,null,null,null,null,null,null,null,null,null,null,null,null,null,{"$f":"DB!B1539","v":0}]
[null,null,null,null,null,null,null,null,null,null,null,null,null,null,{"$f":"DB!B1540","v":0}]
[null,null,null,null,null,null,null,null,null,null,null,null,null,null,{"$f":"DB!B1541","v":0}]
[null,null,null,null,null,null,null,null,null,null,null,null,null,null,{"$f":"DB!B1542","v":0}]
[null,null,null,null,null,null,null,null,null,null,null,null,null,null,{"$f":"DB!B1543","v":0}]
[null,null,null,null,null,null,null,null,null,null,null,null,null,null,{"$f":"DB!B1544","v":0}]
[null,null,null,null,null,null,null,null,null,null,null,null,null,null,{"$f":"DB!B1545","v":0}]
[null,null,null,null,null,null,null,null,null,null,null,null,null,null,{"$f":"DB!B1546","v":0}]
[null,null,null,null,null,null,null,null,null,null,null,null,null,null,{"$f":"DB!B1547","v":0}]
[null,null,null,null,null,null,null,null,null,null,null,null,null,null,{"$f":"DB!B1548","v":0}]
[null,null,null,null,null,null,null,null,null,null,null,null,null,null,{"$f":"DB!B1549","v":0}]
[null,null,null,null,null,null,null,null,null,null,null,null,null,null,{"$f":"DB!B1550","v":0}]
[null,null,null,null,null,null,null,null,null,null,null,null,null,null,{"$f":"DB!B1551","v":0}]
[null,null,null,null,null,null,null,null,null,null,null,null,null,null,{"$f":"DB!B1552","v":0}]
[null,null,null,null,null,null,null,null,null,null,null,null,null,null,{"$f":"DB!B1553","v":0}]
[null,null,null,null,null,null,null,null,null,null,null,null,null,null,{"$f":"DB!B1554","v":0}]
[null,null,null,null,null,null,null,null,null,null,null,null,null,null,{"$f":"DB!B1555","v":0}]
[null,null,null,null,null,null,null,null,null,null,null,null,null,null,{"$f":"DB!B1556","v":0}]
[null,null,null,null,null,null,null,null,null,null,null,null,null,null,{"$f":"DB!B1557","v":0}]
[null,null,null,null,null,null,null,null,null,null,null,null,null,null,{"$f":"DB!B1558","v":0}]
[null,null,null,null,null,null,null,null,null,null,null,null,null,null,{"$f":"DB!B1559","v":0}]
[null,null,null,null,null,null,null,null,null,null,null,null,null,null,{"$f":"DB!B1560","v":0}]
[null,null,null,null,null,null,null,null,null,null,null,null,null,null,{"$f":"DB!B1561","v":0}]
[null,null,null,null,null,null,null,null,null,null,null,null,null,null,{"$f":"DB!B1562","v":0}]
[null,null,null,null,null,null,null,null,null,null,null,null,null,null,{"$f":"DB!B1563","v":0}]
[null,null,null,null,null,null,null,null,null,null,null,null,null,null,{"$f":"DB!B1564","v":0}]
[null,null,null,null,null,null,null,null,null,null,null,null,null,null,{"$f":"DB!B1565","v":0}]
[null,null,null,null,null,null,null,null,null,null,null,null,null,null,{"$f":"DB!B1566","v":0}]
[null,null,null,null,null,null,null,null,null,null,null,null,null,null,{"$f":"DB!B1567","v":0}]
[null,null,null,null,null,null,null,null,null,null,null,null,null,null,{"$f":"DB!B1568","v":0}]
[null,null,null,null,null,null,null,null,null,null,null,null,null,null,{"$f":"DB!B1569","v":0}]
[null,null,null,null,null,null,null,null,null,null,null,null,null,null,{"$f":"DB!B1570","v":0}]
[null,null,null,null,null,null,null,null,null,null,null,null,null,null,{"$f":"DB!B1571","v":0}]
[null,null,null,null,null,null,null,null,null,null,null,null,null,null,{"$f":"DB!B1572","v":0}]
[null,null,null,null,null,null,null,null,null,null,null,null,null,null,{"$f":"DB!B1573","v":0}]
[null,null,null,null,null,null,null,null,null,null,null,null,null,null,{"$f":"DB!B1574","v":0}]
[null,null,null,null,null,null,null,null,null,null,null,null,null,null,{"$f":"DB!B1575","v":0}]
[null,null,null,null,null,null,null,null,null,null,null,null,null,null,{"$f":"DB!B1576","v":0}]
[null,null,null,null,null,null,null,null,null,null,null,null,null,null,{"$f":"DB!B1577","v":0}]
[null,null,null,null,null,null,null,null,null,null,null,null,null,null,{"$f":"DB!B1578","v":0}]
[null,null,null,null,null,null,null,null,null,null,null,null,null,null,{"$f":"DB!B1579","v":0}]
[null,null,null,null,null,null,null,null,null,null,null,null,null,null,{"$f":"DB!B1580","v":0}]
[null,null,null,null,null,null,null,null,null,null,null,null,null,null,{"$f":"DB!B1581","v":0}]
[null,null,null,null,null,null,null,null,null,null,null,null,null,null,{"$f":"DB!B1582","v":0}]
[null,null,null,null,null,null,null,null,null,null,null,null,null,null,{"$f":"DB!B1583","v":0}]
[null,null,null,null,null,null,null,null,null,null,null,null,null,null,{"$f":"DB!B1584","v":0}]
[null,null,null,null,null,null,null,null,null,null,null,null,null,null,{"$f":"DB!B1585","v":0}]
[null,null,null,null,null,null,null,null,null,null,null,null,null,null,{"$f":"DB!B1586","v":0}]
[null,null,null,null,null,null,null,null,null,null,null,null,null,null,{"$f":"DB!B1587","v":0}]
[null,null,null,null,null,null,null,null,null,null,null,null,null,null,{"$f":"DB!B1588","v":0}]
[null,null,null,null,null,null,null,null,null,null,null,null,null,null,{"$f":"DB!B1589","v":0}]
[null,null,null,null,null,null,null,null,null,null,null,null,null,null,{"$f":"DB!B1590","v":0}]
[null,null,null,null,null,null,null,null,null,null,null,null,null,null,{"$f":"DB!B1591","v":0}]
[null,null,null,null,null,null,null,null,null,null,null,null,null,null,{"$f":"DB!B1592","v":0}]
[null,null,null,null,null,null,null,null,null,null,null,null,null,null,{"$f":"DB!B1593","v":0}]
[null,null,null,null,null,null,null,null,null,null,null,null,null,null,{"$f":"DB!B1594","v":0}]
[null,null,null,null,null,null,null,null,null,null,null,null,null,null,{"$f":"DB!B1595","v":0}]
[null,null,null,null,null,null,null,null,null,null,null,null,null,null,{"$f":"DB!B1596","v":0}]
[null,null,null,null,null,null,null,null,null,null,null,null,null,null,{"$f":"DB!B1597","v":0}]
[null,null,null,null,null,null,null,null,null,null,null,null,null,null,{"$f":"DB!B1598","v":0}]
[null,null,null,null,null,null,null,null,null,null,null,null,null,null,{"$f":"DB!B1599","v":0}]
[null,null,null,null,null,null,null,null,null,null,null,null,null,null,{"$f":"DB!B1600","v":0}]
[null,null,null,null,null,null,null,null,null,null,null,null,null,null,{"$f":"DB!B1601","v":0}]
[null,null,null,null,null,null,null,null,null,null,null,null,null,null,{"$f":"DB!B1602","v":0}]
[null,null,null,null,null,null,null,null,null,null,null,null,null,null,{"$f":"DB!B1603","v":0}]
[null,null,null,null,null,null,null,null,null,null,null,null,null,null,{"$f":"DB!B1604","v":0}]
[null,null,null,null,null,null,null,null,null,null,null,null,null,null,{"$f":"DB!B1605","v":0}]
[null,null,null,null,null,null,null,null,null,null,null,null,null,null,{"$f":"DB!B1606","v":0}]
[null,null,null,null,null,null,null,null,null,null,null,null,null,null,{"$f":"DB!B1607","v":0}]
[null,null,null,null,null,null,null,null,null,null,null,null,null,null,{"$f":"DB!B1608","v":0}]
[null,null,null,null,null,null,null,null,null,null,null,null,null,null,{"$f":"DB!B1609","v":0}]
[null,null,null,null,null,null,null,null,null,null,null,null,null,null,{"$f":"DB!B1610","v":0}]
[null,null,null,null,null,null,null,null,null,null,null,null,null,null,{"$f":"DB!B1611","v":0}]
[null,null,null,null,null,null,null,null,null,null,null,null,null,null,{"$f":"DB!B1612","v":0}]
[null,null,null,null,null,null,null,null,null,null,null,null,null,null,{"$f":"DB!B1613","v":0}]
[null,null,null,null,null,null,null,null,null,null,null,null,null,null,{"$f":"DB!B1614","v":0}]
[null,null,null,null,null,null,null,null,null,null,null,null,null,null,{"$f":"DB!B1615","v":0}]
[null,null,null,null,null,null,null,null,null,null,null,null,null,null,{"$f":"DB!B1616","v":0}]
[null,null,null,null,null,null,null,null,null,null,null,null,null,null,{"$f":"DB!B1617","v":0}]
[null,null,null,null,null,null,null,null,null,null,null,null,null,null,{"$f":"DB!B1618","v":0}]
[null,null,null,null,null,null,null,null,null,null,null,null,null,null,{"$f":"DB!B1619","v":0}]
[null,null,null,null,null,null,null,null,null,null,null,null,null,null,{"$f":"DB!B1620","v":0}]
[null,null,null,null,null,null,null,null,null,null,null,null,null,null,{"$f":"DB!B1621","v":0}]
[null,null,null,null,null,null,null,null,null,null,null,null,null,null,{"$f":"DB!B1622","v":0}]
[null,null,null,null,null,null,null,null,null,null,null,null,null,null,{"$f":"DB!B1623","v":0}]
[null,null,null,null,null,null,null,null,null,null,null,null,null,null,{"$f":"DB!B1624","v":0}]
[null,null,null,null,null,null,null,null,null,null,null,null,null,null,{"$f":"DB!B1625","v":0}]
[null,null,null,null,null,null,null,null,null,null,null,null,null,null,{"$f":"DB!B1626","v":0}]
[null,null,null,null,null,null,null,null,null,null,null,null,null,null,{"$f":"DB!B1627","v":0}]
[null,null,null,null,null,null,null,null,null,null,null,null,null,null,{"$f":"DB!B1628","v":0}]
[null,null,null,null,null,null,null,null,null,null,null,null,null,null,{"$f":"DB!B1629","v":0}]
[null,null,null,null,null,null,null,null,null,null,null,null,null,null,{"$f":"DB!B1630","v":0}]
[null,null,null,null,null,null,null,null,null,null,null,null,null,null,{"$f":"DB!B1631","v":0}]
[null,null,null,null,null,null,null,null,null,null,null,null,null,null,{"$f":"DB!B1632","v":0}]
[null,null,null,null,null,null,null,null,null,null,null,null,null,null,{"$f":"DB!B1633","v":0}]
[null,null,null,null,null,null,null,null,null,null,null,null,null,null,{"$f":"DB!B1634","v":0}]
[null,null,null,null,null,null,null,null,null,null,null,null,null,null,{"$f":"DB!B1635","v":0}]
[null,null,null,null,null,null,null,null,null,null,null,null,null,null,{"$f":"DB!B1636","v":0}]
[null,null,null,null,null,null,null,null,null,null,null,null,null,null,{"$f":"DB!B1637","v":0}]
[null,null,null,null,null,null,null,null,null,null,null,null,null,null,{"$f":"DB!B1638","v":0}]
[null,null,null,null,null,null,null,null,null,null,null,null,null,null,{"$f":"DB!B1639","v":0}]
[null,null,null,null,null,null,null,null,null,null,null,null,null,null,{"$f":"DB!B1640","v":0}]
[null,null,null,null,null,null,null,null,null,null,null,null,null,null,{"$f":"DB!B1641","v":0}]
[null,null,null,null,null,null,null,null,null,null,null,null,null,null,{"$f":"DB!B1642","v":0}]
[null,null,null,null,null,null,null,null,null,null,null,null,null,null,{"$f":"DB!B1643","v":0}]
[null,null,null,null,null,null,null,null,null,null,null,null,null,null,{"$f":"DB!B1644","v":0}]
[null,null,null,null,null,null,null,null,null,null,null,null,null,null,{"$f":"DB!B1645","v":0}]
[null,null,null,null,null,null,null,null,null,null,null,null,null,null,{"$f":"DB!B1646","v":0}]
[null,null,null,null,null,null,null,null,null,null,null,null,null,null,{"$f":"DB!B1647","v":0}]
[null,null,null,null,null,null,null,null,null,null,null,null,null,null,{"$f":"DB!B1648","v":0}]
[null,null,null,null,null,null,null,null,null,null,null,null,null,null,{"$f":"DB!B1649","v":0}]
[null,null,null,null,null,null,null,null,null,null,null,null,null,null,{"$f":"DB!B1650","v":0}]
[null,null,null,null,null,null,null,null,null,null,null,null,null,null,{"$f":"DB!B1651","v":0}]
[null,null,null,null,null,null,null,null,null,null,null,null,null,null,{"$f":"DB!B1652","v":0}]
[null,null,null,null,null,null,null,null,null,null,null,null,null,null,{"$f":"DB!B1653","v":0}]
[null,null,null,null,null,null,null,null,null,null,null,null,null,null,{"$f":"DB!B1654","v":0}]
[null,null,null,null,null,null,null,null,null,null,null,null,null,null,{"$f":"DB!B1655","v":0}]
[null,null,null,null,null,null,null,null,null,null,null,null,null,null,{"$f":"DB!B1656","v":0}]
[null,null,null,null,null,null,null,null,null,null,null,null,null,null,{"$f":"DB!B1657","v":0}]
[null,null,null,null,null,null,null,null,null,null,null,null,null,null,{"$f":"DB!B1658","v":0}]
[null,null,null,null,null,null,null,null,null,null,null,null,null,null,{"$f":"DB!B1659","v":0}]
[null,null,null,null,null,null,null,null,null,null,null,null,null,null,{"$f":"DB!B1660","v":0}]
[null,null,null,null,null,null,null,null,null,null,null,null,null,null,{"$f":"DB!B1661","v":0}]
[null,null,null,null,null,null,null,null,null,null,null,null,null,null,{"$f":"DB!B1662","v":0}]
[null,null,null,null,null,null,null,null,null,null,null,null,null,null,{"$f":"DB!B1663","v":0}]
[null,null,null,null,null,null,null,null,null,null,null,null,null,null,{"$f":"DB!B1664","v":0}]
[null,null,null,null,null,null,null,null,null,null,null,null,null,null,{"$f":"DB!B1665","v":0}]
[null,null,null,null,null,null,null,null,null,null,null,null,null,null,{"$f":"DB!B1666","v":0}]
[null,null,null,null,null,null,null,null,null,null,null,null,null,null,{"$f":"DB!B1667","v":0}]
[null,null,null,null,null,null,null,null,null,null,null,null,null,null,{"$f":"DB!B1668","v":0}]
[null,null,null,null,null,null,null,null,null,null,null,null,null,null,{"$f":"DB!B1669","v":0}]
[null,null,null,null,null,null,null,null,null,null,null,null,null,null,{"$f":"DB!B1670","v":0}]
[null,null,null,null,null,null,null,null,null,null,null,null,null,null,{"$f":"DB!B1671","v":0}]
[null,null,null,null,null,null,null,null,null,null,null,null,null,null,{"$f":"DB!B1672","v":0}]
[null,null,null,null,null,null,null,null,null,null,null,null,null,null,{"$f":"DB!B1673","v":0}]
[null,null,null,null,null,null,null,null,null,null,null,null,null,null,{"$f":"DB!B1674","v":0}]
[null,null,null,null,null,null,null,null,null,null,null,null,null,null,{"$f":"DB!B1675","v":0}]
[null,null,null,null,null,null,null,null,null,null,null,null,null,null,{"$f":"DB!B1676","v":0}]
[null,null,null,null,null,null,null,null,null,null,null,null,null,null,{"$f":"DB!B1677","v":0}]
[null,null,null,null,null,null,null,null,null,null,null,null,null,null,{"$f":"DB!B1678","v":0}]
[null,null,null,null,null,null,null,null,null,null,null,null,null,null,{"$f":"DB!B1679","v":0}]
[null,null,null,null,null,null,null,null,null,null,null,null,null,null,{"$f":"DB!B1680","v":0}]
[null,null,null,null,null,null,null,null,null,null,null,null,null,null,{"$f":"DB!B1681","v":0}]
[null,null,null,null,null,null,null,null,null,null,null,null,null,null,{"$f":"DB!B1682","v":0}]
[null,null,null,null,null,null,null,null,null,null,null,null,null,null,{"$f":"DB!B1683","v":0}]
[null,null,null,null,null,null,null,null,null,null,null,null,null,null,{"$f":"DB!B1684","v":0}]
[null,null,null,null,null,null,null,null,null,null,null,null,null,null,{"$f":"DB!B1685","v":0}]
[null,null,null,null,null,null,null,null,null,null,null,null,null,null,{"$f":"DB!B1686","v":0}]
[null,null,null,null,null,null,null,null,null,null,null,null,null,null,{"$f":"DB!B1687","v":0}]
[null,null,null,null,null,null,null,null,null,null,null,null,null,null,{"$f":"DB!B1688","v":0}]
[null,null,null,null,null,null,null,null,null,null,null,null,null,null,{"$f":"DB!B1689","v":0}]
[null,null,null,null,null,null,null,null,null,null,null,null,null,null,{"$f":"DB!B1690","v":0}]
[null,null,null,null,null,null,null,null,null,null,null,null,null,null,{"$f":"DB!B1691","v":0}]
[null,null,null,null,null,null,null,null,null,null,null,null,null,null,{"$f":"DB!B1692","v":0}]
[null,null,null,null,null,null,null,null,null,null,null,null,null,null,{"$f":"DB!B1693","v":0}]
[null,null,null,null,null,null,null,null,null,null,null,null,null,null,{"$f":"DB!B1694","v":0}]
[null,null,null,null,null,null,null,null,null,null,null,null,null,null,{"$f":"DB!B1695","v":0}]
[null,null,null,null,null,null,null,null,null,null,null,null,null,null,{"$f":"DB!B1696","v":0}]
[null,null,null,null,null,null,null,null,null,null,null,null,null,null,{"$f":"DB!B1697","v":0}]
[null,null,null,null,null,null,null,null,null,null,null,null,null,null,{"$f":"DB!B1698","v":0}]
[null,null,null,null,null,null,null,null,null,null,null,null,null,null,{"$f":"DB!B1699","v":0}]
[null,null,null,null,null,null,null,null,null,null,null,null,null,null,{"$f":"DB!B1700","v":0}]
[null,null,null,null,null,null,null,null,null,null,null,null,null,null,{"$f":"DB!B1701","v":0}]
[null,null,null,null,null,null,null,null,null,null,null,null,null,null,{"$f":"DB!B1702","v":0}]
[null,null,null,null,null,null,null,null,null,null,null,null,null,null,{"$f":"DB!B1703","v":0}]
[null,null,null,null,null,null,null,null,null,null,null,null,null,null,{"$f":"DB!B1704","v":0}]
[null,null,null,null,null,null,null,null,null,null,null,null,null,null,{"$f":"DB!B1705","v":0}]
[null,null,null,null,null,null,null,null,null,null,null,null,null,null,{"$f":"DB!B1706","v":0}]
[null,null,null,null,null,null,null,null,null,null,null,null,null,null,{"$f":"DB!B1707","v":0}]
[null,null,null,null,null,null,null,null,null,null,null,null,null,null,{"$f":"DB!B1708","v":0}]
[null,null,null,null,null,null,null,null,null,null,null,null,null,null,{"$f":"DB!B1709","v":0}]
[null,null,null,null,null,null,null,null,null,null,null,null,null,null,{"$f":"DB!B1710","v":0}]
[null,null,null,null,null,null,null,null,null,null,null,null,null,null,{"$f":"DB!B1711","v":0}]
[null,null,null,null,null,null,null,null,null,null,null,null,null,null,{"$f":"DB!B1712","v":0}]
[null,null,null,null,null,null,null,null,null,null,null,null,null,null,{"$f":"DB!B1713","v":0}]
[null,null,null,null,null,null,null,null,null,null,null,null,null,null,{"$f":"DB!B1714","v":0}]
[null,null,null,null,null,null,null,null,null,null,null,null,null,null,{"$f":"DB!B1715","v":0}]
[null,null,null,null,null,null,null,null,null,null,null,null,null,null,{"$f":"DB!B1716","v":0}]
[null,null,null,null,null,null,null,null,null,null,null,null,null,null,{"$f":"DB!B1717","v":0}]
[null,null,null,null,null,null,null,null,null,null,null,null,null,null,{"$f":"DB!B1718","v":0}]
[null,null,null,null,null,null,null,null,null,null,null,null,null,null,{"$f":"DB!B1719","v":0}]
[null,null,null,null,null,null,null,null,null,null,null,null,null,null,{"$f":"DB!B1720","v":0}]
[null,null,null,null,null,null,null,null,null,null,null,null,null,null,{"$f":"DB!B1721","v":0}]
[null,null,null,null,null,null,null,null,null,null,null,null,null,null,{"$f":"DB!B1722","v":0}]
[null,null,null,null,null,null,null,null,null,null,null,null,null,null,{"$f":"DB!B1723","v":0}]
[null,null,null,null,null,null,null,null,null,null,null,null,null,null,{"$f":"DB!B1724","v":0}]
[null,null,null,null,null,null,null,null,null,null,null,null,null,null,{"$f":"DB!B1725","v":0}]
[null,null,null,null,null,null,null,null,null,null,null,null,null,null,{"$f":"DB!B1726","v":0}]
[null,null,null,null,null,null,null,null,null,null,null,null,null,null,{"$f":"DB!B1727","v":0}]
[null,null,null,null,null,null,null,null,null,null,null,null,null,null,{"$f":"DB!B1728","v":0}]
[null,null,null,null,null,null,null,null,null,null,null,null,null,null,{"$f":"DB!B1729","v":0}]
[null,null,null,null,null,null,null,null,null,null,null,null,null,null,{"$f":"DB!B1730","v":0}]
[null,null,null,null,null,null,null,null,null,null,null,null,null,null,{"$f":"DB!B1731","v":0}]
[null,null,null,null,null,null,null,null,null,null,null,null,null,null,{"$f":"DB!B1732","v":0}]
[null,null,null,null,null,null,null,null,null,null,null,null,null,null,{"$f":"DB!B1733","v":0}]
[null,null,null,null,null,null,null,null,null,null,null,null,null,null,{"$f":"DB!B1734","v":0}]
[null,null,null,null,null,null,null,null,null,null,null,null,null,null,{"$f":"DB!B1735","v":0}]
[null,null,null,null,null,null,null,null,null,null,null,null,null,null,{"$f":"DB!B1736","v":0}]
[null,null,null,null,null,null,null,null,null,null,null,null,null,null,{"$f":"DB!B1737","v":0}]
[null,null,null,null,null,null,null,null,null,null,null,null,null,null,{"$f":"DB!B1738","v":0}]
[null,null,null,null,null,null,null,null,null,null,null,null,null,null,{"$f":"DB!B1739","v":0}]
[null,null,null,null,null,null,null,null,null,null,null,null,null,null,{"$f":"DB!B1740","v":0}]
[null,null,null,null,null,null,null,null,null,null,null,null,null,null,{"$f":"DB!B1741","v":0}]
[null,null,null,null,null,null,null,null,null,null,null,null,null,null,{"$f":"DB!B1742","v":0}]
[null,null,null,null,null,null,null,null,null,null,null,null,null,null,{"$f":"DB!B1743","v":0}]
[null,null,null,null,null,null,null,null,null,null,null,null,null,null,{"$f":"DB!B1744","v":0}]
[null,null,null,null,null,null,null,null,null,null,null,null,null,null,{"$f":"DB!B1745","v":0}]
[null,null,null,null,null,null,null,null,null,null,null,null,null,null,{"$f":"DB!B1746","v":0}]
[null,null,null,null,null,null,null,null,null,null,null,null,null,null,{"$f":"DB!B1747","v":0}]
[null,null,null,null,null,null,null,null,null,null,null,null,null,null,{"$f":"DB!B1748","v":0}]
[null,null,null,null,null,null,null,null,null,null,null,null,null,null,{"$f":"DB!B1749","v":0}]
[null,null,null,null,null,null,null,null,null,null,null,null,null,null,{"$f":"DB!B1750","v":0}]
[null,null,null,null,null,null,null,null,null,null,null,null,null,null,{"$f":"DB!B1751","v":0}]
[null,null,null,null,null,null,null,null,null,null,null,null,null,null,{"$f":"DB!B1752","v":0}]
[null,null,null,null,null,null,null,null,null,null,null,null,null,null,{"$f":"DB!B1753","v":0}]
[null,null,null,null,null,null,null,null,null,null,null,null,null,null,{"$f":"DB!B1754","v":0}]
[null,null,null,null,null,null,null,null,null,null,null,null,null,null,{"$f":"DB!B1755","v":0}]
[null,null,null,null,null,null,null,null,null,null,null,null,null,null,{"$f":"DB!B1756","v":0}]
[null,null,null,null,null,null,null,null,null,null,null,null,null,null,{"$f":"DB!B1757","v":0}]
[null,null,null,null,null,null,null,null,null,null,null,null,null,null,{"$f":"DB!B1758","v":0}]
[null,null,null,null,null,null,null,null,null,null,null,null,null,null,{"$f":"DB!B1759","v":0}]
[null,null,null,null,null,null,null,null,null,null,null,null,null,null,{"$f":"DB!B1760","v":0}]
[null,null,null,null,null,null,null,null,null,null,null,null,null,null,{"$f":"DB!B1761","v":0}]
[null,null,null,null,null,null,null,null,null,null,null,null,null,null,{"$f":"DB!B1762","v":0}]
[null,null,null,null,null,null,null,null,null,null,null,null,null,null,{"$f":"DB!B1763","v":0}]
[null,null,null,null,null,null,null,null,null,null,null,null,null,null,{"$f":"DB!B1764","v":0}]
[null,null,null,null,null,null,null,null,null,null,null,null,null,null,{"$f":"DB!B1765","v":0}]
[null,null,null,null,null,null,null,null,null,null,null,null,null,null,{"$f":"DB!B1766","v":0}]
[null,null,null,null,null,null,null,null,null,null,null,null,null,null,{"$f":"DB!B1767","v":0}]
[null,null,null,null,null,null,null,null,null,null,null,null,null,null,{"$f":"DB!B1768","v":0}]
[null,null,null,null,null,null,null,null,null,null,null,null,null,null,{"$f":"DB!B1769","v":0}]
[null,null,null,null,null,null,null,null,null,null,null,null,null,null,{"$f":"DB!B1770","v":0}]
[null,null,null,null,null,null,null,null,null,null,null,null,null,null,{"$f":"DB!B1771","v":0}]
[null,null,null,null,null,null,null,null,null,null,null,null,null,null,{"$f":"DB!B1772","v":0}]
[null,null,null,null,null,null,null,null,null,null,null,null,null,null,{"$f":"DB!B1773","v":0}]
[null,null,null,null,null,null,null,null,null,null,null,null,null,null,{"$f":"DB!B1774","v":0}]
[null,null,null,null,null,null,null,null,null,null,null,null,null,null,{"$f":"DB!B1775","v":0}]
[null,null,null,null,null,null,null,null,null,null,null,null,null,null,{"$f":"DB!B1776","v":0}]
[null,null,null,null,null,null,null,null,null,null,null,null,null,null,{"$f":"DB!B1777","v":0}]
[null,null,null,null,null,null,null,null,null,null,null,null,null,null,{"$f":"DB!B1778","v":0}]
[null,null,null,null,null,null,null,null,null,null,null,null,null,null,{"$f":"DB!B1779","v":0}]
[null,null,null,null,null,null,null,null,null,null,null,null,null,null,{"$f":"DB!B1780","v":0}]
[null,null,null,null,null,null,null,null,null,null,null,null,null,null,{"$f":"DB!B1781","v":0}]
[null,null,null,null,null,null,null,null,null,null,null,null,null,null,{"$f":"DB!B1782","v":0}]
[null,null,null,null,null,null,null,null,null,null,null,null,null,null,{"$f":"DB!B1783","v":0}]
[null,null,null,null,null,null,null,null,null,null,null,null,null,null,{"$f":"DB!B1784","v":0}]
[null,null,null,null,null,null,null,null,null,null,null,null,null,null,{"$f":"DB!B1785","v":0}]
[null,null,null,null,null,null,null,null,null,null,null,null,null,null,{"$f":"DB!B1786","v":0}]
[null,null,null,null,null,null,null,null,null,null,null,null,null,null,{"$f":"DB!B1787","v":0}]
[null,null,null,null,null,null,null,null,null,null,null,null,null,null,{"$f":"DB!B1788","v":0}]
[null,null,null,null,null,null,null,null,null,null,null,null,null,null,{"$f":"DB!B1789","v":0}]
[null,null,null,null,null,null,null,null,null,null,null,null,null,null,{"$f":"DB!B1790","v":0}]
[null,null,null,null,null,null,null,null,null,null,null,null,null,null,{"$f":"DB!B1791","v":0}]
[null,null,null,null,null,null,null,null,null,null,null,null,null,null,{"$f":"DB!B1792","v":0}]
[null,null,null,null,null,null,null,null,null,null,null,null,null,null,{"$f":"DB!B1793","v":0}]
[null,null,null,null,null,null,null,null,null,null,null,null,null,null,{"$f":"DB!B1794","v":0}]
[null,null,null,null,null,null,null,null,null,null,null,null,null,null,{"$f":"DB!B1795","v":0}]
[null,null,null,null,null,null,null,null,null,null,null,null,null,null,{"$f":"DB!B1796","v":0}]
[null,null,null,null,null,null,null,null,null,null,null,null,null,null,{"$f":"DB!B1797","v":0}]
[null,null,null,null,null,null,null,null,null,null,null,null,null,null,{"$f":"DB!B1798","v":0}]
[null,null,null,null,null,null,null,null,null,null,null,null,null,null,{"$f":"DB!B1799","v":0}]
[null,null,null,null,null,null,null,null,null,null,null,null,null,null,{"$f":"DB!B1800","v":0}]
[null,null,null,null,null,null,null,null,null,null,null,null,null,null,{"$f":"DB!B1801","v":0}]
[null,null,null,null,null,null,null,null,null,null,null,null,null,null,{"$f":"DB!B1802","v":0}]
[null,null,null,null,null,null,null,null,null,null,null,null,null,null,{"$f":"DB!B1803","v":0}]
[null,null,null,null,null,null,null,null,null,null,null,null,null,null,{"$f":"DB!B1804","v":0}]
[null,null,null,null,null,null,null,null,null,null,null,null,null,null,{"$f":"DB!B1805","v":0}]
[null,null,null,null,null,null,null,null,null,null,null,null,null,null,{"$f":"DB!B1806","v":0}]
[null,null,null,null,null,null,null,null,null,null,null,null,null,null,{"$f":"DB!B1807","v":0}]
[null,null,null,null,null,null,null,null,null,null,null,null,null,null,{"$f":"DB!B1808","v":0}]
[null,null,null,null,null,null,null,null,null,null,null,null,null,null,{"$f":"DB!B1809","v":0}]
[null,null,null,null,null,null,null,null,null,null,null,null,null,null,{"$f":"DB!B1810","v":0}]
[null,null,null,null,null,null,null,null,null,null,null,null,null,null,{"$f":"DB!B1811","v":0}]
[null,null,null,null,null,null,null,null,null,null,null,null,null,null,{"$f":"DB!B1812","v":0}]
[null,null,null,null,null,null,null,null,null,null,null,null,null,null,{"$f":"DB!B1813","v":0}]
[null,null,null,null,null,null,null,null,null,null,null,null,null,null,{"$f":"DB!B1814","v":0}]
[null,null,null,null,null,null,null,null,null,null,null,null,null,null,{"$f":"DB!B1815","v":0}]
[null,null,null,null,null,null,null,null,null,null,null,null,null,null,{"$f":"DB!B1816","v":0}]
[null,null,null,null,null,null,null,null,null,null,null,null,null,null,{"$f":"DB!B1817","v":0}]
[null,null,null,null,null,null,null,null,null,null,null,null,null,null,{"$f":"DB!B1818","v":0}]
[null,null,null,null,null,null,null,null,null,null,null,null,null,null,{"$f":"DB!B1819","v":0}]
[null,null,null,null,null,null,null,null,null,null,null,null,null,null,{"$f":"DB!B1820","v":0}]
[null,null,null,null,null,null,null,null,null,null,null,null,null,null,{"$f":"DB!B1821","v":0}]
[null,null,null,null,null,null,null,null,null,null,null,null,null,null,{"$f":"DB!B1822","v":0}]
[null,null,null,null,null,null,null,null,null,null,null,null,null,null,{"$f":"DB!B1823","v":0}]
[null,null,null,null,null,null,null,null,null,null,null,null,null,null,{"$f":"DB!B1824","v":0}]
[null,null,null,null,null,null,null,null,null,null,null,null,null,null,{"$f":"DB!B1825","v":0}]
[null,null,null,null,null,null,null,null,null,null,null,null,null,null,{"$f":"DB!B1826","v":0}]
[null,null,null,null,null,null,null,null,null,null,null,null,null,null,{"$f":"DB!B1827","v":0}]
[null,null,null,null,null,null,null,null,null,null,null,null,null,null,{"$f":"DB!B1828","v":0}]
[null,null,null,null,null,null,null,null,null,null,null,null,null,null,{"$f":"DB!B1829","v":0}]
[null,null,null,null,null,null,null,null,null,null,null,null,null,null,{"$f":"DB!B1830","v":0}]
[null,null,null,null,null,null,null,null,null,null,null,null,null,null,{"$f":"DB!B1831","v":0}]
[null,null,null,null,null,null,null,null,null,null,null,null,null,null,{"$f":"DB!B1832","v":0}]
[null,null,null,null,null,null,null,null,null,null,null,null,null,null,{"$f":"DB!B1833","v":0}]
[null,null,null,null,null,null,null,null,null,null,null,null,null,null,{"$f":"DB!B1834","v":0}]
[null,null,null,null,null,null,null,null,null,null,null,null,null,null,{"$f":"DB!B1835","v":0}]
[null,null,null,null,null,null,null,null,null,null,null,null,null,null,{"$f":"DB!B1836","v":0}]
[null,null,null,null,null,null,null,null,null,null,null,null,null,null,{"$f":"DB!B1837","v":0}]
[null,null,null,null,null,null,null,null,null,null,null,null,null,null,{"$f":"DB!B1838","v":0}]
[null,null,null,null,null,null,null,null,null,null,null,null,null,null,{"$f":"DB!B1839","v":0}]
[null,null,null,null,null,null,null,null,null,null,null,null,null,null,{"$f":"DB!B1840","v":0}]
[null,null,null,null,null,null,null,null,null,null,null,null,null,null,{"$f":"DB!B1841","v":0}]
[null,null,null,null,null,null,null,null,null,null,null,null,null,null,{"$f":"DB!B1842","v":0}]
[null,null,null,null,null,null,null,null,null,null,null,null,null,null,{"$f":"DB!B1843","v":0}]
[null,null,null,null,null,null,null,null,null,null,null,null,null,null,{"$f":"DB!B1844","v":0}]
[null,null,null,null,null,null,null,null,null,null,null,null,null,null,{"$f":"DB!B1845","v":0}]
[null,null,null,null,null,null,null,null,null,null,null,null,null,null,{"$f":"DB!B1846","v":0}]
[null,null,null,null,null,null,null,null,null,null,null,null,null,null,{"$f":"DB!B1847","v":0}]
[null,null,null,null,null,null,null,null,null,null,null,null,null,null,{"$f":"DB!B1848","v":0}]
[null,null,null,null,null,null,null,null,null,null,null,null,null,null,{"$f":"DB!B1849","v":0}]
[null,null,null,null,null,null,null,null,null,null,null,null,null,null,{"$f":"DB!B1850","v":0}]
[null,null,null,null,null,null,null,null,null,null,null,null,null,null,{"$f":"DB!B1851","v":0}]
[null,null,null,null,null,null,null,null,null,null,null,null,null,null,{"$f":"DB!B1852","v":0}]
[null,null,null,null,null,null,null,null,null,null,null,null,null,null,{"$f":"DB!B1853","v":0}]
[null,null,null,null,null,null,null,null,null,null,null,null,null,null,{"$f":"DB!B1854","v":0}]
[null,null,null,null,null,null,null,null,null,null,null,null,null,null,{"$f":"DB!B1855","v":0}]
[null,null,null,null,null,null,null,null,null,null,null,null,null,null,{"$f":"DB!B1856","v":0}]
[null,null,null,null,null,null,null,null,null,null,null,null,null,null,{"$f":"DB!B1857","v":0}]
[null,null,null,null,null,null,null,null,null,null,null,null,null,null,{"$f":"DB!B1858","v":0}]
[null,null,null,null,null,null,null,null,null,null,null,null,null,null,{"$f":"DB!B1859","v":0}]
[null,null,null,null,null,null,null,null,null,null,null,null,null,null,{"$f":"DB!B1860","v":0}]
[null,null,null,null,null,null,null,null,null,null,null,null,null,null,{"$f":"DB!B1861","v":0}]
[null,null,null,null,null,null,null,null,null,null,null,null,null,null,{"$f":"DB!B1862","v":0}]
[null,null,null,null,null,null,null,null,null,null,null,null,null,null,{"$f":"DB!B1863","v":0}]
[null,null,null,null,null,null,null,null,null,null,null,null,null,null,{"$f":"DB!B1864","v":0}]
[null,null,null,null,null,null,null,null,null,null,null,null,null,null,{"$f":"DB!B1865","v":0}]
[null,null,null,null,null,null,null,null,null,null,null,null,null,null,{"$f":"DB!B1866","v":0}]
[null,null,null,null,null,null,null,null,null,null,null,null,null,null,{"$f":"DB!B1867","v":0}]
[null,null,null,null,null,null,null,null,null,null,null,null,null,null,{"$f":"DB!B1868","v":0}]
[null,null,null,null,null,null,null,null,null,null,null,null,null,null,{"$f":"DB!B1869","v":0}]
[null,null,null,null,null,null,null,null,null,null,null,null,null,null,{"$f":"DB!B1870","v":0}]
[null,null,null,null,null,null,null,null,null,null,null,null,null,null,{"$f":"DB!B1871","v":0}]
[null,null,null,null,null,null,null,null,null,null,null,null,null,null,{"$f":"DB!B1872","v":0}]
[null,null,null,null,null,null,null,null,null,null,null,null,null,null,{"$f":"DB!B1873","v":0}]
[null,null,null,null,null,null,null,null,null,null,null,null,null,null,{"$f":"DB!B1874","v":0}]
[null,null,null,null,null,null,null,null,null,null,null,null,null,null,{"$f":"DB!B1875","v":0}]
[null,null,null,null,null,null,null,null,null,null,null,null,null,null,{"$f":"DB!B1876","v":0}]
[null,null,null,null,null,null,null,null,null,null,null,null,null,null,{"$f":"DB!B1877","v":0}]
[null,null,null,null,null,null,null,null,null,null,null,null,null,null,{"$f":"DB!B1878","v":0}]
[null,null,null,null,null,null,null,null,null,null,null,null,null,null,{"$f":"DB!B1879","v":0}]
[null,null,null,null,null,null,null,null,null,null,null,null,null,null,{"$f":"DB!B1880","v":0}]
[null,null,null,null,null,null,null,null,null,null,null,null,null,null,{"$f":"DB!B1881","v":0}]
[null,null,null,null,null,null,null,null,null,null,null,null,null,null,{"$f":"DB!B1882","v":0}]
[null,null,null,null,null,null,null,null,null,null,null,null,null,null,{"$f":"DB!B1883","v":0}]
[null,null,null,null,null,null,null,null,null,null,null,null,null,null,{"$f":"DB!B1884","v":0}]
[null,null,null,null,null,null,null,null,null,null,null,null,null,null,{"$f":"DB!B1885","v":0}]
[null,null,null,null,null,null,null,null,null,null,null,null,null,null,{"$f":"DB!B1886","v":0}]
[null,null,null,null,null,null,null,null,null,null,null,null,null,null,{"$f":"DB!B1887","v":0}]
[null,null,null,null,null,null,null,null,null,null,null,null,null,null,{"$f":"DB!B1888","v":0}]
[null,null,null,null,null,null,null,null,null,null,null,null,null,null,{"$f":"DB!B1889","v":0}]
[null,null,null,null,null,null,null,null,null,null,null,null,null,null,{"$f":"DB!B1890","v":0}]
[null,null,null,null,null,null,null,null,null,null,null,null,null,null,{"$f":"DB!B1891","v":0}]
[null,null,null,null,null,null,null,null,null,null,null,null,null,null,{"$f":"DB!B1892","v":0}]
[null,null,null,null,null,null,null,null,null,null,null,null,null,null,{"$f":"DB!B1893","v":0}]
[null,null,null,null,null,null,null,null,null,null,null,null,null,null,{"$f":"DB!B1894","v":0}]
[null,null,null,null,null,null,null,null,null,null,null,null,null,null,{"$f":"DB!B1895","v":0}]
[null,null,null,null,null,null,null,null,null,null,null,null,null,null,{"$f":"DB!B1896","v":0}]
[null,null,null,null,null,null,null,null,null,null,null,null,null,null,{"$f":"DB!B1897","v":0}]
[null,null,null,null,null,null,null,null,null,null,null,null,null,null,{"$f":"DB!B1898","v":0}]
[null,null,null,null,null,null,null,null,null,null,null,null,null,null,{"$f":"DB!B1899","v":0}]
[null,null,null,null,null,null,null,null,null,null,null,null,null,null,{"$f":"DB!B1900","v":0}]
[null,null,null,null,null,null,null,null,null,null,null,null,null,null,{"$f":"DB!B1901","v":0}]
[null,null,null,null,null,null,null,null,null,null,null,null,null,null,{"$f":"DB!B1902","v":0}]
[null,null,null,null,null,null,null,null,null,null,null,null,null,null,{"$f":"DB!B1903","v":0}]
[null,null,null,null,null,null,null,null,null,null,null,null,null,null,{"$f":"DB!B1904","v":0}]
[null,null,null,null,null,null,null,null,null,null,null,null,null,null,{"$f":"DB!B1905","v":0}]
[null,null,null,null,null,null,null,null,null,null,null,null,null,null,{"$f":"DB!B1906","v":0}]
[null,null,null,null,null,null,null,null,null,null,null,null,null,null,{"$f":"DB!B1907","v":0}]
[null,null,null,null,null,null,null,null,null,null,null,null,null,null,{"$f":"DB!B1908","v":0}]
[null,null,null,null,null,null,null,null,null,null,null,null,null,null,{"$f":"DB!B1909","v":0}]
[null,null,null,null,null,null,null,null,null,null,null,null,null,null,{"$f":"DB!B1910","v":0}]
[null,null,null,null,null,null,null,null,null,null,null,null,null,null,{"$f":"DB!B1911","v":0}]
[null,null,null,null,null,null,null,null,null,null,null,null,null,null,{"$f":"DB!B1912","v":0}]
[null,null,null,null,null,null,null,null,null,null,null,null,null,null,{"$f":"DB!B1913","v":0}]
[null,null,null,null,null,null,null,null,null,null,null,null,null,null,{"$f":"DB!B1914","v":0}]
[null,null,null,null,null,null,null,null,null,null,null,null,null,null,{"$f":"DB!B1915","v":0}]
[null,null,null,null,null,null,null,null,null,null,null,null,null,null,{"$f":"DB!B1916","v":0}]
[null,null,null,null,null,null,null,null,null,null,null,null,null,null,{"$f":"DB!B1917","v":0}]
[null,null,null,null,null,null,null,null,null,null,null,null,null,null,{"$f":"DB!B1918","v":0}]
[null,null,null,null,null,null,null,null,null,null,null,null,null,null,{"$f":"DB!B1919","v":0}]
[null,null,null,null,null,null,null,null,null,null,null,null,null,null,{"$f":"DB!B1920","v":0}]
[null,null,null,null,null,null,null,null,null,null,null,null,null,null,{"$f":"DB!B1921","v":0}]
[null,null,null,null,null,null,null,null,null,null,null,null,null,null,{"$f":"DB!B1922","v":0}]
[null,null,null,null,null,null,null,null,null,null,null,null,null,null,{"$f":"DB!B1923","v":0}]
[null,null,null,null,null,null,null,null,null,null,null,null,null,null,{"$f":"DB!B1924","v":0}]
[null,null,null,null,null,null,null,null,null,null,null,null,null,null,{"$f":"DB!B1925","v":0}]
[null,null,null,null,null,null,null,null,null,null,null,null,null,null,{"$f":"DB!B1926","v":0}]
[null,null,null,null,null,null,null,null,null,null,null,null,null,null,{"$f":"DB!B1927","v":0}]
[null,null,null,null,null,null,null,null,null,null,null,null,null,null,{"$f":"DB!B1928","v":0}]
[null,null,null,null,null,null,null,null,null,null,null,null,null,null,{"$f":"DB!B1929","v":0}]
[null,null,null,null,null,null,null,null,null,null,null,null,null,null,{"$f":"DB!B1930","v":0}]
[null,null,null,null,null,null,null,null,null,null,null,null,null,null,{"$f":"DB!B1931","v":0}]
[null,null,null,null,null,null,null,null,null,null,null,null,null,null,{"$f":"DB!B1932","v":0}]
[null,null,null,null,null,null,null,null,null,null,null,null,null,null,{"$f":"DB!B1933","v":0}]
[null,null,null,null,null,null,null,null,null,null,null,null,null,null,{"$f":"DB!B1934","v":0}]
[null,null,null,null,null,null,null,null,null,null,null,null,null,null,{"$f":"DB!B1935","v":0}]
[null,null,null,null,null,null,null,null,null,null,null,null,null,null,{"$f":"DB!B1936","v":0}]
[null,null,null,null,null,null,null,null,null,null,null,null,null,null,{"$f":"DB!B1937","v":0}]
[null,null,null,null,null,null,null,null,null,null,null,null,null,null,{"$f":"DB!B1938","v":0}]
[null,null,null,null,null,null,null,null,null,null,null,null,null,null,{"$f":"DB!B1939","v":0}]
[null,null,null,null,null,null,null,null,null,null,null,null,null,null,{"$f":"DB!B1940","v":0}]
[null,null,null,null,null,null,null,null,null,null,null,null,null,null,{"$f":"DB!B1941","v":0}]
[null,null,null,null,null,null,null,null,null,null,null,null,null,null,{"$f":"DB!B1942","v":0}]
[null,null,null,null,null,null,null,null,null,null,null,null,null,null,{"$f":"DB!B1943","v":0}]
[null,null,null,null,null,null,null,null,null,null,null,null,null,null,{"$f":"DB!B1944","v":0}]
[null,null,null,null,null,null,null,null,null,null,null,null,null,null,{"$f":"DB!B1945","v":0}]
[null,null,null,null,null,null,null,null,null,null,null,null,null,null,{"$f":"DB!B1946","v":0}]
[null,null,null,null,null,null,null,null,null,null,null,null,null,null,{"$f":"DB!B1947","v":0}]
[null,null,null,null,null,null,null,null,null,null,null,null,null,null,{"$f":"DB!B1948","v":0}]
[null,null,null,null,null,null,null,null,null,null,null,null,null,null,{"$f":"DB!B1949","v":0}]
[null,null,null,null,null,null,null,null,null,null,null,null,null,null,{"$f":"DB!B1950","v":0}]
[null,null,null,null,null,null,null,null,null,null,null,null,null,null,{"$f":"DB!B1951","v":0}]
[null,null,null,null,null,null,null,null,null,null,null,null,null,null,{"$f":"DB!B1952","v":0}]
[null,null,null,null,null,null,null,null,null,null,null,null,null,null,{"$f":"DB!B1953","v":0}]
[null,null,null,null,null,null,null,null,null,null,null,null,null,null,{"$f":"DB!B1954","v":0}]
[null,null,null,null,null,null,null,null,null,null,null,null,null,null,{"$f":"DB!B1955","v":0}]
[null,null,null,null,null,null,null,null,null,null,null,null,null,null,{"$f":"DB!B1956","v":0}]
[null,null,null,null,null,null,null,null,null,null,null,null,null,null,{"$f":"DB!B1957","v":0}]
[null,null,null,null,null,null,null,null,null,null,null,null,null,null,{"$f":"DB!B1958","v":0}]
[null,null,null,null,null,null,null,null,null,null,null,null,null,null,{"$f":"DB!B1959","v":0}]
[null,null,null,null,null,null,null,null,null,null,null,null,null,null,{"$f":"DB!B1960","v":0}]
[null,null,null,null,null,null,null,null,null,null,null,null,null,null,{"$f":"DB!B1961","v":0}]
[null,null,null,null,null,null,null,null,null,null,null,null,null,null,{"$f":"DB!B1962","v":0}]
[null,null,null,null,null,null,null,null,null,null,null,null,null,null,{"$f":"DB!B1963","v":0}]
[null,null,null,null,null,null,null,null,null,null,null,null,null,null,{"$f":"DB!B1964","v":0}]
[null,null,null,null,null,null,null,null,null,null,null,null,null,null,{"$f":"DB!B1965","v":0}]
[null,null,null,null,null,null,null,null,null,null,null,null,null,null,{"$f":"DB!B1966","v":0}]
[null,null,null,null,null,null,null,null,null,null,null,null,null,null,{"$f":"DB!B1967","v":0}]
[null,null,null,null,null,null,null,null,null,null,null,null,null,null,{"$f":"DB!B1968","v":0}]
[null,null,null,null,null,null,null,null,null,null,null,null,null,null,{"$f":"DB!B1969","v":0}]
[null,null,null,null,null,null,null,null,null,null,null,null,null,null,{"$f":"DB!B1970","v":0}]
[null,null,null,null,null,null,null,null,null,null,null,null,null,null,{"$f":"DB!B1971","v":0}]
[null,null,null,null,null,null,null,null,null,null,null,null,null,null,{"$f":"DB!B1972","v":0}]
[null,null,null,null,null,null,null,null,null,null,null,null,null,null,{"$f":"DB!B1973","v":0}]
[null,null,null,null,null,null,null,null,null,null,null,null,null,null,{"$f":"DB!B1974","v":0}]
[null,null,null,null,null,null,null,null,null,null,null,null,null,null,{"$f":"DB!B1975","v":0}]
[null,null,null,null,null,null,null,null,null,null,null,null,null,null,{"$f":"DB!B1976","v":0}]
[null,null,null,null,null,null,null,null,null,null,null,null,null,null,{"$f":"DB!B1977","v":0}]
[null,null,null,null,null,null,null,null,null,null,null,null,null,null,{"$f":"DB!B1978","v":0}]
[null,null,null,null,null,null,null,null,null,null,null,null,null,null,{"$f":"DB!B1979","v":0}]
[null,null,null,null,null,null,null,null,null,null,null,null,null,null,{"$f":"DB!B1980","v":0}]
[null,null,null,null,null,null,null,null,null,null,null,null,null,null,{"$f":"DB!B1981","v":0}]
[null,null,null,null,null,null,null,null,null,null,null,null,null,null,{"$f":"DB!B1982","v":0}]
[null,null,null,null,null,null,null,null,null,null,null,null,null,null,{"$f":"DB!B1983","v":0}]
[null,null,null,null,null,null,null,null,null,null,null,null,null,null,{"$f":"DB!B1984","v":0}]
[null,null,null,null,null,null,null,null,null,null,null,null,null,null,{"$f":"DB!B1985","v":0}]
[null,null,null,null,null,null,null,null,null,null,null,null,null,null,{"$f":"DB!B1986","v":0}]
[null,null,null,null,null,null,null,null,null,null,null,null,null,null,{"$f":"DB!B1987","v":0}]
[null,null,null,null,null,null,null,null,null,null,null,null,null,null,{"$f":"DB!B1988","v":0}]
[null,null,null,null,null,null,null,null,null,null,null,null,null,null,{"$f":"DB!B1989","v":0}]
[null,null,null,null,null,null,null,null,null,null,null,null,null,null,{"$f":"DB!B1990","v":0}]
[null,null,null,null,null,null,null,null,null,null,null,null,null,null,{"$f":"DB!B1991","v":0}]
[null,null,null,null,null,null,null,null,null,null,null,null,null,null,{"$f":"DB!B1992","v":0}]
[null,null,null,null,null,null,null,null,null,null,null,null,null,null,{"$f":"DB!B1993","v":0}]
[null,null,null,null,null,null,null,null,null,null,null,null,null,null,{"$f":"DB!B1994","v":0}]
[null,null,null,null,null,null,null,null,null,null,null,null,null,null,{"$f":"DB!B1995","v":0}]
[null,null,null,null,null,null,null,null,null,null,null,null,null,null,{"$f":"DB!B1996","v":0}]
[null,null,null,null,null,null,null,null,null,null,null,null,null,null,{"$f":"DB!B1997","v":0}]
[null,null,null,null,null,null,null,null,null,null,null,null,null,null,{"$f":"DB!B1998","v":0}]
[null,null,null,null,null,null,null,null,null,null,null,null,null,null,{"$f":"DB!B1999","v":0}]
[null,null,null,null,null,null,null,null,null,null,null,null,null,null,{"$f":"DB!B2000","v":0}]
[null,null,null,null,null,null,null,null,null,null,null,null,null,null,{"$f":"DB!B2001","v":0}]
[null,null,null,null,null,null,null,null,null,null,null,null,null,null,{"$f":"DB!B2002","v":0}]
[null,null,null,null,null,null,null,null,null,null,null,null,null,null,{"$f":"DB!B2003","v":0}]
[null,null,null,null,null,null,null,null,null,null,null,null,null,null,{"$f":"DB!B2004","v":0}]
[null,null,null,null,null,null,null,null,null,null,null,null,null,null,{"$f":"DB!B2005","v":0}]
[null,null,null,null,null,null,null,null,null,null,null,null,null,null,{"$f":"DB!B2006","v":0}]
[null,null,null,null,null,null,null,null,null,null,null,null,null,null,{"$f":"DB!B2007","v":0}]
[null,null,null,null,null,null,null,null,null,null,null,null,null,null,{"$f":"DB!B2008","v":0}]
[null,null,null,null,null,null,null,null,null,null,null,null,null,null,{"$f":"DB!B2009","v":0}]
[null,null,null,null,null,null,null,null,null,null,null,null,null,null,{"$f":"DB!B2010","v":0}]
[null,null,null,null,null,null,null,null,null,null,null,null,null,null,{"$f":"DB!B2011","v":0}]
[null,null,null,null,null,null,null,null,null,null,null,null,null,null,{"$f":"DB!B2012","v":0}]
[null,null,null,null,null,null,null,null,null,null,null,null,null,null,{"$f":"DB!B2013","v":0}]
[null,null,null,null,null,null,null,null,null,null,null,null,null,null,{"$f":"DB!B2014","v":0}]
[null,null,null,null,null,null,null,null,null,null,null,null,null,null,{"$f":"DB!B2015","v":0}]
[null,null,null,null,null,null,null,null,null,null,null,null,null,null,{"$f":"DB!B2016","v":0}]
[null,null,null,null,null,null,null,null,null,null,null,null,null,null,{"$f":"DB!B2017","v":0}]
[null,null,null,null,null,null,null,null,null,null,null,null,null,null,{"$f":"DB!B2018","v":0}]
[null,null,null,null,null,null,null,null,null,null,null,null,null,null,{"$f":"DB!B2019","v":0}]
[null,null,null,null,null,null,null,null,null,null,null,null,null,null,{"$f":"DB!B2020","v":0}]
[null,null,null,null,null,null,null,null,null,null,null,null,null,null,{"$f":"DB!B2021","v":0}]
[null,null,null,null,null,null,null,null,null,null,null,null,null,null,{"$f":"DB!B2022","v":0}]
[null,null,null,null,null,null,null,null,null,null,null,null,null,null,{"$f":"DB!B2023","v":0}]
[null,null,null,null,null,null,null,null,null,null,null,null,null,null,{"$f":"DB!B2024","v":0}]
[null,null,null,null,null,null,null,null,null,null,null,null,null,null,{"$f":"DB!B2025","v":0}]
[null,null,null,null,null,null,null,null,null,null,null,null,null,null,{"$f":"DB!B2026","v":0}]
[null,null,null,null,null,null,null,null,null,null,null,null,null,null,{"$f":"DB!B2027","v":0}]
[null,null,null,null,null,null,null,null,null,null,null,null,null,null,{"$f":"DB!B2028","v":0}]
[null,null,null,null,null,null,null,null,null,null,null,null,null,null,{"$f":"DB!B2029","v":0}]
[null,null,null,null,null,null,null,null,null,null,null,null,null,null,{"$f":"DB!B2030","v":0}]
[null,null,null,null,null,null,null,null,null,null,null,null,null,null,{"$f":"DB!B2031","v":0}]
[null,null,null,null,null,null,null,null,null,null,null,null,null,null,{"$f":"DB!B2032","v":0}]
[null,null,null,null,null,null,null,null,null,null,null,null,null,null,{"$f":"DB!B2033","v":0}]
[null,null,null,null,null,null,null,null,null,null,null,null,null,null,{"$f":"DB!B2034","v":0}]
[null,null,null,null,null,null,null,null,null,null,null,null,null,null,{"$f":"DB!B2035","v":0}]
[null,null,null,null,null,null,null,null,null,null,null,null,null,null,{"$f":"DB!B2036","v":0}]
[null,null,null,null,null,null,null,null,null,null,null,null,null,null,{"$f":"DB!B2037","v":0}]
[null,null,null,null,null,null,null,null,null,null,null,null,null,null,{"$f":"DB!B2038","v":0}]
[null,null,null,null,null,null,null,null,null,null,null,null,null,null,{"$f":"DB!B2039","v":0}]
[null,null,null,null,null,null,null,null,null,null,null,null,null,null,{"$f":"DB!B2040","v":0}]
[null,null,null,null,null,null,null,null,null,null,null,null,null,null,{"$f":"DB!B2041","v":0}]
[null,null,null,null,null,null,null,null,null,null,null,null,null,null,{"$f":"DB!B2042","v":0}]
[null,null,null,null,null,null,null,null,null,null,null,null,null,null,{"$f":"DB!B2043","v":0}]
[null,null,null,null,null,null,null,null,null,null,null,null,null,null,{"$f":"DB!B2044","v":0}]
[null,null,null,null,null,null,null,null,null,null,null,null,null,null,{"$f":"DB!B2045","v":0}]
[null,null,null,null,null,null,null,null,null,null,null,null,null,null,{"$f":"DB!B2046","v":0}]
[null,null,null,null,null,null,null,null,null,null,null,null,null,null,{"$f":"DB!B2047","v":0}]
[null,null,null,null,null,null,null,null,null,null,null,null,null,null,{"$f":"DB!B2048","v":0}]
[null,null,null,null,null,null,null,null,null,null,null,null,null,null,{"$f":"DB!B2049","v":0}]
[null,null,null,null,null,null,null,null,null,null,null,null,null,null,{"$f":"DB!B2050","v":0}]
[null,null,null,null,null,null,null,null,null,null,null,null,null,null,{"$f":"DB!B2051","v":0}]
[null,null,null,null,null,null,null,null,null,null,null,null,null,null,{"$f":"DB!B2052","v":0}]
[null,null,null,null,null,null,null,null,null,null,null,null,null,null,{"$f":"DB!B2053","v":0}]
[null,null,null,null,null,null,null,null,null,null,null,null,null,null,{"$f":"DB!B2054","v":0}]
[null,null,null,null,null,null,null,null,null,null,null,null,null,null,{"$f":"DB!B2055","v":0}]
[null,null,null,null,null,null,null,null,null,null,null,null,null,null,{"$f":"DB!B2056","v":0}]
[null,null,null,null,null,null,null,null,null,null,null,null,null,null,{"$f":"DB!B2057","v":0}]
[null,null,null,null,null,null,null,null,null,null,null,null,null,null,{"$f":"DB!B2058","v":0}]
[null,null,null,null,null,null,null,null,null,null,null,null,null,null,{"$f":"DB!B2059","v":0}]
[null,null,null,null,null,null,null,null,null,null,null,null,null,null,{"$f":"DB!B2060","v":0}]
[null,null,null,null,null,null,null,null,null,null,null,null,null,null,{"$f":"DB!B2061","v":0}]
[null,null,null,null,null,null,null,null,null,null,null,null,null,null,{"$f":"DB!B2062","v":0}]
[null,null,null,null,null,null,null,null,null,null,null,null,null,null,{"$f":"DB!B2063","v":0}]
[null,null,null,null,null,null,null,null,null,null,null,null,null,null,{"$f":"DB!B2064","v":0}]
[null,null,null,null,null,null,null,null,null,null,null,null,null,null,{"$f":"DB!B2065","v":0}]
[null,null,null,null,null,null,null,null,null,null,null,null,null,null,{"$f":"DB!B2066","v":0}]
[null,null,null,null,null,null,null,null,null,null,null,null,null,null,{"$f":"DB!B2067","v":0}]
[null,null,null,null,null,null,null,null,null,null,null,null,null,null,{"$f":"DB!B2068","v":0}]
[null,null,null,null,null,null,null,null,null,null,null,null,null,null,{"$f":"DB!B2069","v":0}]
[null,null,null,null,null,null,null,null,null,null,null,null,null,null,{"$f":"DB!B2070","v":0}]
[null,null,null,null,null,null,null,null,null,null,null,null,null,null,{"$f":"DB!B2071","v":0}]
[null,null,null,null,null,null,null,null,null,null,null,null,null,null,{"$f":"DB!B2072","v":0}]
[null,null,null,null,null,null,null,null,null,null,null,null,null,null,{"$f":"DB!B2073","v":0}]
[null,null,null,null,null,null,null,null,null,null,null,null,null,null,{"$f":"DB!B2074","v":0}]
[null,null,null,null,null,null,null,null,null,null,null,null,null,null,{"$f":"DB!B2075","v":0}]
[null,null,null,null,null,null,null,null,null,null,null,null,null,null,{"$f":"DB!B2076","v":0}]
[null,null,null,null,null,null,null,null,null,null,null,null,null,null,{"$f":"DB!B2077","v":0}]
[null,null,null,null,null,null,null,null,null,null,null,null,null,null,{"$f":"DB!B2078","v":0}]
[null,null,null,null,null,null,null,null,null,null,null,null,null,null,{"$f":"DB!B2079","v":0}]
[null,null,null,null,null,null,null,null,null,null,null,null,null,null,{"$f":"DB!B2080","v":0}]
[null,null,null,null,null,null,null,null,null,null,null,null,null,null,{"$f":"DB!B2081","v":0}]
[null,null,null,null,null,null,null,null,null,null,null,null,null,null,{"$f":"DB!B2082","v":0}]
[null,null,null,null,null,null,null,null,null,null,null,null,null,null,{"$f":"DB!B2083","v":0}]
[null,null,null,null,null,null,null,null,null,null,null,null,null,null,{"$f":"DB!B2084","v":0}]
[null,null,null,null,null,null,null,null,null,null,null,null,null,null,{"$f":"DB!B2085","v":0}]
[null,null,null,null,null,null,null,null,null,null,null,null,null,null,{"$f":"DB!B2086","v":0}]
[null,null,null,null,null,null,null,null,null,null,null,null,null,null,{"$f":"DB!B2087","v":0}]
[null,null,null,null,null,null,null,null,null,null,null,null,null,null,{"$f":"DB!B2088","v":0}]
[null,null,null,null,null,null,null,null,null,null,null,null,null,null,{"$f":"DB!B2089","v":0}]
[null,null,null,null,null,null,null,null,null,null,null,null,null,null,{"$f":"DB!B2090","v":0}]
[null,null,null,null,null,null,null,null,null,null,null,null,null,null,{"$f":"DB!B2091","v":0}]
[null,null,null,null,null,null,null,null,null,null,null,null,null,null,{"$f":"DB!B2092","v":0}]
[null,null,null,null,null,null,null,null,null,null,null,null,null,null,{"$f":"DB!B2093","v":0}]
[null,null,null,null,null,null,null,null,null,null,null,null,null,null,{"$f":"DB!B2094","v":0}]
[null,null,null,null,null,null,null,null,null,null,null,null,null,null,{"$f":"DB!B2095","v":0}]
[null,null,null,null,null,null,null,null,null,null,null,null,null,null,{"$f":"DB!B2096","v":0}]
[null,null,null,null,null,null,null,null,null,null,null,null,null,null,{"$f":"DB!B2097","v":0}]
[null,null,null,null,null,null,null,null,null,null,null,null,null,null,{"$f":"DB!B2098","v":0}]
[null,null,null,null,null,null,null,null,null,null,null,null,null,null,{"$f":"DB!B2099","v":0}]
[null,null,null,null,null,null,null,null,null,null,null,null,null,null,{"$f":"DB!B2100","v":0}]
[null,null,null,null,null,null,null,null,null,null,null,null,null,null,{"$f":"DB!B2101","v":0}]
[null,null,null,null,null,null,null,null,null,null,null,null,null,null,{"$f":"DB!B2102","v":0}]
[null,null,null,null,null,null,null,null,null,null,null,null,null,null,{"$f":"DB!B2103","v":0}]
[null,null,null,null,null,null,null,null,null,null,null,null,null,null,{"$f":"DB!B2104","v":0}]
[null,null,null,null,null,null,null,null,null,null,null,null,null,null,{"$f":"DB!B2105","v":0}]
[null,null,null,null,null,null,null,null,null,null,null,null,null,null,{"$f":"DB!B2106","v":0}]
[null,null,null,null,null,null,null,null,null,null,null,null,null,null,{"$f":"DB!B2107","v":0}]
[null,null,null,null,null,null,null,null,null,null,null,null,null,null,{"$f":"DB!B2108","v":0}]
[null,null,null,null,null,null,null,null,null,null,null,null,null,null,{"$f":"DB!B2109","v":0}]
[null,null,null,null,null,null,null,null,null,null,null,null,null,null,{"$f":"DB!B2110","v":0}]
[null,null,null,null,null,null,null,null,null,null,null,null,null,null,{"$f":"DB!B2111","v":0}]
[null,null,null,null,null,null,null,null,null,null,null,null,null,null,{"$f":"DB!B2112","v":0}]
[null,null,null,null,null,null,null,null,null,null,null,null,null,null,{"$f":"DB!B2113","v":0}]
[null,null,null,null,null,null,null,null,null,null,null,null,null,null,{"$f":"DB!B2114","v":0}]
[null,null,null,null,null,null,null,null,null,null,null,null,null,null,{"$f":"DB!B2115","v":0}]
[null,null,null,null,null,null,null,null,null,null,null,null,null,null,{"$f":"DB!B2116","v":0}]
[null,null,null,null,null,null,null,null,null,null,null,null,null,null,{"$f":"DB!B2117","v":0}]
[null,null,null,null,null,null,null,null,null,null,null,null,null,null,{"$f":"DB!B2118","v":0}]
[null,null,null,null,null,null,null,null,null,null,null,null,null,null,{"$f":"DB!B2119","v":0}]
[null,null,null,null,null,null,null,null,null,null,null,null,null,null,{"$f":"DB!B2120","v":0}]
[null,null,null,null,null,null,null,null,null,null,null,null,null,null,{"$f":"DB!B2121","v":0}]
[null,null,null,null,null,null,null,null,null,null,null,null,null,null,{"$f":"DB!B2122","v":0}]
[null,null,null,null,null,null,null,null,null,null,null,null,null,null,{"$f":"DB!B2123","v":0}]
[null,null,null,null,null,null,null,null,null,null,null,null,null,null,{"$f":"DB!B2124","v":0}]
[null,null,null,null,null,null,null,null,null,null,null,null,null,null,{"$f":"DB!B2125","v":0}]
[null,null,null,null,null,null,null,null,null,null,null,null,null,null,{"$f":"DB!B2126","v":0}]
[null,null,null,null,null,null,null,null,null,null,null,null,null,null,{"$f":"DB!B2127","v":0}]
[null,null,null,null,null,null,null,null,null,null,null,null,null,null,{"$f":"DB!B2128","v":0}]
[null,null,null,null,null,null,null,null,null,null,null,null,null,null,{"$f":"DB!B2129","v":0}]
[null,null,null,null,null,null,null,null,null,null,null,null,null,null,{"$f":"DB!B2130","v":0}]
[null,null,null,null,null,null,null,null,null,null,null,null,null,null,{"$f":"DB!B2131","v":0}]
[null,null,null,null,null,null,null,null,null,null,null,null,null,null,{"$f":"DB!B2132","v":0}]
[null,null,null,null,null,null,null,null,null,null,null,null,null,null,{"$f":"DB!B2133","v":0}]
[null,null,null,null,null,null,null,null,null,null,null,null,null,null,{"$f":"DB!B2134","v":0}]
[null,null,null,null,null,null,null,null,null,null,null,null,null,null,{"$f":"DB!B2135","v":0}]
[null,null,null,null,null,null,null,null,null,null,null,null,null,null,{"$f":"DB!B2136","v":0}]
[null,null,null,null,null,null,null,null,null,null,null,null,null,null,{"$f":"DB!B2137","v":0}]
[null,null,null,null,null,null,null,null,null,null,null,null,null,null,{"$f":"DB!B2138","v":0}]
[null,null,null,null,null,null,null,null,null,null,null,null,null,null,{"$f":"DB!B2139","v":0}]
[null,null,null,null,null,null,null,null,null,null,null,null,null,null,{"$f":"DB!B2140","v":0}]
[null,null,null,null,null,null,null,null,null,null,null,null,null,null,{"$f":"DB!B2141","v":0}]
[null,null,null,null,null,null,null,null,null,null,null,null,null,null,{"$f":"DB!B2142","v":0}]
[null,null,null,null,null,null,null,null,null,null,null,null,null,null,{"$f":"DB!B2143","v":0}]
[null,null,null,null,null,null,null,null,null,null,null,null,null,null,{"$f":"DB!B2144","v":0}]
[null,null,null,null,null,null,null,null,null,null,null,null,null,null,{"$f":"DB!B2145","v":0}]
[null,null,null,null,null,null,null,null,null,null,null,null,null,null,{"$f":"DB!B2146","v":0}]
[null,null,null,null,null,null,null,null,null,null,null,null,null,null,{"$f":"DB!B2147","v":0}]
[null,null,null,null,null,null,null,null,null,null,null,null,null,null,{"$f":"DB!B2148","v":0}]
[null,null,null,null,null,null,null,null,null,null,null,null,null,null,{"$f":"DB!B2149","v":0}]
[null,null,null,null,null,null,null,null,null,null,null,null,null,null,{"$f":"DB!B2150","v":0}]
[null,null,null,null,null,null,null,null,null,null,null,null,null,null,{"$f":"DB!B2151","v":0}]
[null,null,null,null,null,null,null,null,null,null,null,null,null,null,{"$f":"DB!B2152","v":0}]
[null,null,null,null,null,null,null,null,null,null,null,null,null,null,{"$f":"DB!B2153","v":0}]
[null,null,null,null,null,null,null,null,null,null,null,null,null,null,{"$f":"DB!B2154","v":0}]
[null,null,null,null,null,null,null,null,null,null,null,null,null,null,{"$f":"DB!B2155","v":0}]
[null,null,null,null,null,null,null,null,null,null,null,null,null,null,{"$f":"DB!B2156","v":0}]
[null,null,null,null,null,null,null,null,null,null,null,null,null,null,{"$f":"DB!B2157","v":0}]
[null,null,null,null,null,null,null,null,null,null,null,null,null,null,{"$f":"DB!B2158","v":0}]
[null,null,null,null,null,null,null,null,null,null,null,null,null,null,{"$f":"DB!B2159","v":0}]
[null,null,null,null,null,null,null,null,null,null,null,null,null,null,{"$f":"DB!B2160","v":0}]
[null,null,null,null,null,null,null,null,null,null,null,null,null,null,{"$f":"DB!B2161","v":0}]
[null,null,null,null,null,null,null,null,null,null,null,null,null,null,{"$f":"DB!B2162","v":0}]
[null,null,null,null,null,null,null,null,null,null,null,null,null,null,{"$f":"DB!B2163","v":0}]
[null,null,null,null,null,null,null,null,null,null,null,null,null,null,{"$f":"DB!B2164","v":0}]
[null,null,null,null,null,null,null,null,null,null,null,null,null,null,{"$f":"DB!B2165","v":0}]
[null,null,null,null,null,null,null,null,null,null,null,null,null,null,{"$f":"DB!B2166","v":0}]
[null,null,null,null,null,null,null,null,null,null,null,null,null,null,{"$f":"DB!B2167","v":0}]
[null,null,null,null,null,null,null,null,null,null,null,null,null,null,{"$f":"DB!B2168","v":0}]
[null,null,null,null,null,null,null,null,null,null,null,null,null,null,{"$f":"DB!B2169","v":0}]
[null,null,null,null,null,null,null,null,null,null,null,null,null,null,{"$f":"DB!B2170","v":0}]
[null,null,null,null,null,null,null,null,null,null,null,null,null,null,{"$f":"DB!B2171","v":0}]
[null,null,null,null,null,null,null,null,null,null,null,null,null,null,{"$f":"DB!B2172","v":0}]
[null,null,null,null,null,null,null,null,null,null,null,null,null,null,{"$f":"DB!B2173","v":0}]
[null,null,null,null,null,null,null,null,null,null,null,null,null,null,{"$f":"DB!B2174","v":0}]
[null,null,null,null,null,null,null,null,null,null,null,null,null,null,{"$f":"DB!B2175","v":0}]
[null,null,null,null,null,null,null,null,null,null,null,null,null,null,{"$f":"DB!B2176","v":0}]
[null,null,null,null,null,null,null,null,null,null,null,null,null,null,{"$f":"DB!B2177","v":0}]
[null,null,null,null,null,null,null,null,null,null,null,null,null,null,{"$f":"DB!B2178","v":0}]
[null,null,null,null,null,null,null,null,null,null,null,null,null,null,{"$f":"DB!B2179","v":0}]
[null,null,null,null,null,null,null,null,null,null,null,null,null,null,{"$f":"DB!B2180","v":0}]
[null,null,null,null,null,null,null,null,null,null,null,null,null,null,{"$f":"DB!B2181","v":0}]
[null,null,null,null,null,null,null,null,null,null,null,null,null,null,{"$f":"DB!B2182","v":0}]
[null,null,null,null,null,null,null,null,null,null,null,null,null,null,{"$f":"DB!B2183","v":0}]
[null,null,null,null,null,null,null,null,null,null,null,null,null,null,{"$f":"DB!B2184","v":0}]
[null,null,null,null,null,null,null,null,null,null,null,null,null,null,{"$f":"DB!B2185","v":0}]
[null,null,null,null,null,null,null,null,null,null,null,null,null,null,{"$f":"DB!B2186","v":0}]
[null,null,null,null,null,null,null,null,null,null,null,null,null,null,{"$f":"DB!B2187","v":0}]
[null,null,null,null,null,null,null,null,null,null,null,null,null,null,{"$f":"DB!B2188","v":0}]
[null,null,null,null,null,null,null,null,null,null,null,null,null,null,{"$f":"DB!B2189","v":0}]
[null,null,null,null,null,null,null,null,null,null,null,null,null,null,{"$f":"DB!B2190","v":0}]
[null,null,null,null,null,null,null,null,null,null,null,null,null,null,{"$f":"DB!B2191","v":0}]
[null,null,null,null,null,null,null,null,null,null,null,null,null,null,{"$f":"DB!B2192","v":0}]
[null,null,null,null,null,null,null,null,null,null,null,null,null,null,{"$f":"DB!B2193","v":0}]
[null,null,null,null,null,null,null,null,null,null,null,null,null,null,{"$f":"DB!B2194","v":0}]
[null,null,null,null,null,null,null,null,null,null,null,null,null,null,{"$f":"DB!B2195","v":0}]
[null,null,null,null,null,null,null,null,null,null,null,null,null,null,{"$f":"DB!B2196","v":0}]
[null,null,null,null,null,null,null,null,null,null,null,null,null,null,{"$f":"DB!B2197","v":0}]
[null,null,null,null,null,null,null,null,null,null,null,null,null,null,{"$f":"DB!B2198","v":0}]
[null,null,null,null,null,null,null,null,null,null,null,null,null,null,{"$f":"DB!B2199","v":0}]
[null,null,null,null,null,null,null,null,null,null,null,null,null,null,{"$f":"DB!B2200","v":0}]
[null,null,null,null,null,null,null,null,null,null,null,null,null,null,{"$f":"DB!B2201","v":0}]
[null,null,null,null,null,null,null,null,null,null,null,null,null,null,{"$f":"DB!B2202","v":0}]
[null,null,null,null,null,null,null,null,null,null,null,null,null,null,{"$f":"DB!B2203","v":0}]
[null,null,null,null,null,null,null,null,null,null,null,null,null,null,{"$f":"DB!B2204","v":0}]
[null,null,null,null,null,null,null,null,null,null,null,null,null,null,{"$f":"DB!B2205","v":0}]
[null,null,null,null,null,null,null,null,null,null,null,null,null,null,{"$f":"DB!B2206","v":0}]
[null,null,null,null,null,null,null,null,null,null,null,null,null,null,{"$f":"DB!B2207","v":0}]
[null,null,null,null,null,null,null,null,null,null,null,null,null,null,{"$f":"DB!B2208","v":0}]
[null,null,null,null,null,null,null,null,null,null,null,null,null,null,{"$f":"DB!B2209","v":0}]
[null,null,null,null,null,null,null,null,null,null,null,null,null,null,{"$f":"DB!B2210","v":0}]
[null,null,null,null,null,null,null,null,null,null,null,null,null,null,{"$f":"DB!B2211","v":0}]
[null,null,null,null,null,null,null,null,null,null,null,null,null,null,{"$f":"DB!B2212","v":0}]
[null,null,null,null,null,null,null,null,null,null,null,null,null,null,{"$f":"DB!B2213","v":0}]
[null,null,null,null,null,null,null,null,null,null,null,null,null,null,{"$f":"DB!B2214","v":0}]
[null,null,null,null,null,null,null,null,null,null,null,null,null,null,{"$f":"DB!B2215","v":0}]
[null,null,null,null,null,null,null,null,null,null,null,null,null,null,{"$f":"DB!B2216","v":0}]
[null,null,null,null,null,null,null,null,null,null,null,null,null,null,{"$f":"DB!B2217","v":0}]
[null,null,null,null,null,null,null,null,null,null,null,null,null,null,{"$f":"DB!B2218","v":0}]
[null,null,null,null,null,null,null,null,null,null,null,null,null,null,{"$f":"DB!B2219","v":0}]
[null,null,null,null,null,null,null,null,null,null,null,null,null,null,{"$f":"DB!B2220","v":0}]
[null,null,null,null,null,null,null,null,null,null,null,null,null,null,{"$f":"DB!B2221","v":0}]
[null,null,null,null,null,null,null,null,null,null,null,null,null,null,{"$f":"DB!B2222","v":0}]
[null,null,null,null,null,null,null,null,null,null,null,null,null,null,{"$f":"DB!B2223","v":0}]
[null,null,null,null,null,null,null,null,null,null,null,null,null,null,{"$f":"DB!B2224","v":0}]
[null,null,null,null,null,null,null,null,null,null,null,null,null,null,{"$f":"DB!B2225","v":0}]
[null,null,null,null,null,null,null,null,null,null,null,null,null,null,{"$f":"DB!B2226","v":0}]
[null,null,null,null,null,null,null,null,null,null,null,null,null,null,{"$f":"DB!B2227","v":0}]
[null,null,null,null,null,null,null,null,null,null,null,null,null,null,{"$f":"DB!B2228","v":0}]
[null,null,null,null,null,null,null,null,null,null,null,null,null,null,{"$f":"DB!B2229","v":0}]
[null,null,null,null,null,null,null,null,null,null,null,null,null,null,{"$f":"DB!B2230","v":0}]
[null,null,null,null,null,null,null,null,null,null,null,null,null,null,{"$f":"DB!B2231","v":0}]
[null,null,null,null,null,null,null,null,null,null,null,null,null,null,{"$f":"DB!B2232","v":0}]
[null,null,null,null,null,null,null,null,null,null,null,null,null,null,{"$f":"DB!B2233","v":0}]
[null,null,null,null,null,null,null,null,null,null,null,null,null,null,{"$f":"DB!B2234","v":0}]
[null,null,null,null,null,null,null,null,null,null,null,null,null,null,{"$f":"DB!B2235","v":0}]
[null,null,null,null,null,null,null,null,null,null,null,null,null,null,{"$f":"DB!B2236","v":0}]
[null,null,null,null,null,null,null,null,null,null,null,null,null,null,{"$f":"DB!B2237","v":0}]
[null,null,null,null,null,null,null,null,null,null,null,null,null,null,{"$f":"DB!B2238","v":0}]
[null,null,null,null,null,null,null,null,null,null,null,null,null,null,{"$f":"DB!B2239","v":0}]
[null,null,null,null,null,null,null,null,null,null,null,null,null,null,{"$f":"DB!B2240","v":0}]
[null,null,null,null,null,null,null,null,null,null,null,null,null,null,{"$f":"DB!B2241","v":0}]
[null,null,null,null,null,null,null,null,null,null,null,null,null,null,{"$f":"DB!B2242","v":0}]
[null,null,null,null,null,null,null,null,null,null,null,null,null,null,{"$f":"DB!B2243","v":0}]
[null,null,null,null,null,null,null,null,null,null,null,null,null,null,{"$f":"DB!B2244","v":0}]
[null,null,null,null,null,null,null,null,null,null,null,null,null,null,{"$f":"DB!B2245","v":0}]
[null,null,null,null,null,null,null,null,null,null,null,null,null,null,{"$f":"DB!B2246","v":0}]
[null,null,null,null,null,null,null,null,null,null,null,null,null,null,{"$f":"DB!B2247","v":0}]
[null,null,null,null,null,null,null,null,null,null,null,null,null,null,{"$f":"DB!B2248","v":0}]
[null,null,null,null,null,null,null,null,null,null,null,null,null,null,{"$f":"DB!B2249","v":0}]
[null,null,null,null,null,null,null,null,null,null,null,null,null,null,{"$f":"DB!B2250","v":0}]
[null,null,null,null,null,null,null,null,null,null,null,null,null,null,{"$f":"DB!B2251","v":0}]
[null,null,null,null,null,null,null,null,null,null,null,null,null,null,{"$f":"DB!B2252","v":0}]
[null,null,null,null,null,null,null,null,null,null,null,null,null,null,{"$f":"DB!B2253","v":0}]
[null,null,null,null,null,null,null,null,null,null,null,null,null,null,{"$f":"DB!B2254","v":0}]
[null,null,null,null,null,null,null,null,null,null,null,null,null,null,{"$f":"DB!B2255","v":0}]
[null,null,null,null,null,null,null,null,null,null,null,null,null,null,{"$f":"DB!B2256","v":0}]
[null,null,null,null,null,null,null,null,null,null,null,null,null,null,{"$f":"DB!B2257","v":0}]
[null,null,null,null,null,null,null,null,null,null,null,null,null,null,{"$f":"DB!B2258","v":0}]
[null,null,null,null,null,null,null,null,null,null,null,null,null,null,{"$f":"DB!B2259","v":0}]
[null,null,null,null,null,null,null,null,null,null,null,null,null,null,{"$f":"DB!B2260","v":0}]
[null,null,null,null,null,null,null,null,null,null,null,null,null,null,{"$f":"DB!B2261","v":0}]
[null,null,null,null,null,null,null,null,null,null,null,null,null,null,{"$f":"DB!B2262","v":0}]
[null,null,null,null,null,null,null,null,null,null,null,null,null,null,{"$f":"DB!B2263","v":0}]
[null,null,null,null,null,null,null,null,null,null,null,null,null,null,{"$f":"DB!B2264","v":0}]
[null,null,null,null,null,null,null,null,null,null,null,null,null,null,{"$f":"DB!B2265","v":0}]
[null,null,null,null,null,null,null,null,null,null,null,null,null,null,{"$f":"DB!B2266","v":0}]
[null,null,null,null,null,null,null,null,null,null,null,null,null,null,{"$f":"DB!B2267","v":0}]
[null,null,null,null,null,null,null,null,null,null,null,null,null,null,{"$f":"DB!B2268","v":0}]
[null,null,null,null,null,null,null,null,null,null,null,null,null,null,{"$f":"DB!B2269","v":0}]
[null,null,null,null,null,null,null,null,null,null,null,null,null,null,{"$f":"DB!B2270","v":0}]
[null,null,null,null,null,null,null,null,null,null,null,null,null,null,{"$f":"DB!B2271","v":0}]
[null,null,null,null,null,null,null,null,null,null,null,null,null,null,{"$f":"DB!B2272","v":0}]
[null,null,null,null,null,null,null,null,null,null,null,null,null,null,{"$f":"DB!B2273","v":0}]
[null,null,null,null,null,null,null,null,null,null,null,null,null,null,{"$f":"DB!B2274","v":0}]
[null,null,null,null,null,null,null,null,null,null,null,null,null,null,{"$f":"DB!B2275","v":0}]
[null,null,null,null,null,null,null,null,null,null,null,null,null,null,{"$f":"DB!B2276","v":0}]
[null,null,null,null,null,null,null,null,null,null,null,null,null,null,{"$f":"DB!B2277","v":0}]
[null,null,null,null,null,null,null,null,null,null,null,null,null,null,{"$f":"DB!B2278","v":0}]
[null,null,null,null,null,null,null,null,null,null,null,null,null,null,{"$f":"DB!B2279","v":0}]
[null,null,null,null,null,null,null,null,null,null,null,null,null,null,{"$f":"DB!B2280","v":0}]
[null,null,null,null,null,null,null,null,null,null,null,null,null,null,{"$f":"DB!B2281","v":0}]
[null,null,null,null,null,null,null,null,null,null,null,null,null,null,{"$f":"DB!B2282","v":0}]
[null,null,null,null,null,null,null,null,null,null,null,null,null,null,{"$f":"DB!B2283","v":0}]
[null,null,null,null,null,null,null,null,null,null,null,null,null,null,{"$f":"DB!B2284","v":0}]
[null,null,null,null,null,null,null,null,null,null,null,null,null,null,{"$f":"DB!B2285","v":0}]
[null,null,null,null,null,null,null,null,null,null,null,null,null,null,{"$f":"DB!B2286","v":0}]
[null,null,null,null,null,null,null,null,null,null,null,null,null,null,{"$f":"DB!B2287","v":0}]
[null,null,null,null,null,null,null,null,null,null,null,null,null,null,{"$f":"DB!B2288","v":0}]
[null,null,null,null,null,null,null,null,null,null,null,null,null,null,{"$f":"DB!B2289","v":0}]
[null,null,null,null,null,null,null,null,null,null,null,null,null,null,{"$f":"DB!B2290","v":0}]
[null,null,null,null,null,null,null,null,null,null,null,null,null,null,{"$f":"DB!B2291","v":0}]
[null,null,null,null,null,null,null,null,null,null,null,null,null,null,{"$f":"DB!B2292","v":0}]
[null,null,null,null,null,null,null,null,null,null,null,null,null,null,{"$f":"DB!B2293","v":0}]
[null,null,null,null,null,null,null,null,null,null,null,null,null,null,{"$f":"DB!B2294","v":0}]
[null,null,null,null,null,null,null,null,null,null,null,null,null,null,{"$f":"DB!B2295","v":0}]
[null,null,null,null,null,null,null,null,null,null,null,null,null,null,{"$f":"DB!B2296","v":0}]
[null,null,null,null,null,null,null,null,null,null,null,null,null,null,{"$f":"DB!B2297","v":0}]
[null,null,null,null,null,null,null,null,null,null,null,null,null,null,{"$f":"DB!B2298","v":0}]
[null,null,null,null,null,null,null,null,null,null,null,null,null,null,{"$f":"DB!B2299","v":0}]
[null,null,null,null,null,null,null,null,null,null,null,null,null,null,{"$f":"DB!B2300","v":0}]
[null,null,null,null,null,null,null,null,null,null,null,null,null,null,{"$f":"DB!B2301","v":0}]
[null,null,null,null,null,null,null,null,null,null,null,null,null,null,{"$f":"DB!B2302","v":0}]
[null,null,null,null,null,null,null,null,null,null,null,null,null,null,{"$f":"DB!B2303","v":0}]
[null,null,null,null,null,null,null,null,null,null,null,null,null,null,{"$f":"DB!B2304","v":0}]
[null,null,null,null,null,null,null,null,null,null,null,null,null,null,{"$f":"DB!B2305","v":0}]
[null,null,null,null,null,null,null,null,null,null,null,null,null,null,{"$f":"DB!B2306","v":0}]
[null,null,null,null,null,null,null,null,null,null,null,null,null,null,{"$f":"DB!B2307","v":0}]
[null,null,null,null,null,null,null,null,null,null,null,null,null,null,{"$f":"DB!B2308","v":0}]
[null,null,null,null,null,null,null,null,null,null,null,null,null,null,{"$f":"DB!B2309","v":0}]
[null,null,null,null,null,null,null,null,null,null,null,null,null,null,{"$f":"DB!B2310","v":0}]
[null,null,null,null,null,null,null,null,null,null,null,null,null,null,{"$f":"DB!B2311","v":0}]
[null,null,null,null,null,null,null,null,null,null,null,null,null,null,{"$f":"DB!B2312","v":0}]
[null,null,null,null,null,null,null,null,null,null,null,null,null,null,{"$f":"DB!B2313","v":0}]
[null,null,null,null,null,null,null,null,null,null,null,null,null,null,{"$f":"DB!B2314","v":0}]
[null,null,null,null,null,null,null,null,null,null,null,null,null,null,{"$f":"DB!B2315","v":0}]
[null,null,null,null,null,null,null,null,null,null,null,null,null,null,{"$f":"DB!B2316","v":0}]
[null,null,null,null,null,null,null,null,null,null,null,null,null,null,{"$f":"DB!B2317","v":0}]
[null,null,null,null,null,null,null,null,null,null,null,null,null,null,{"$f":"DB!B2318","v":0}]
[null,null,null,null,null,null,null,null,null,null,null,null,null,null,{"$f":"DB!B2319","v":0}]
[null,null,null,null,null,null,null,null,null,null,null,null,null,null,{"$f":"DB!B2320","v":0}]
[null,null,null,null,null,null,null,null,null,null,null,null,null,null,{"$f":"DB!B2321","v":0}]
[null,null,null,null,null,null,null,null,null,null,null,null,null,null,{"$f":"DB!B2322","v":0}]
[null,null,null,null,null,null,null,null,null,null,null,null,null,null,{"$f":"DB!B2323","v":0}]
[null,null,null,null,null,null,null,null,null,null,null,null,null,null,{"$f":"DB!B2324","v":0}]
[null,null,null,null,null,null,null,null,null,null,null,null,null,null,{"$f":"DB!B2325","v":0}]
[null,null,null,null,null,null,null,null,null,null,null,null,null,null,{"$f":"DB!B2326","v":0}]
[null,null,null,null,null,null,null,null,null,null,null,null,null,null,{"$f":"DB!B2327","v":0}]
[null,null,null,null,null,null,null,null,null,null,null,null,null,null,{"$f":"DB!B2328","v":0}]
[null,null,null,null,null,null,null,null,null,null,null,null,null,null,{"$f":"DB!B2329","v":0}]
[null,null,null,null,null,null,null,null,null,null,null,null,null,null,{"$f":"DB!B2330","v":0}]
[null,null,null,null,null,null,null,null,null,null,null,null,null,null,{"$f":"DB!B2331","v":0}]
[null,null,null,null,null,null,null,null,null,null,null,null,null,null,{"$f":"DB!B2332","v":0}]
[null,null,null,null,null,null,null,null,null,null,null,null,null,null,{"$f":"DB!B2333","v":0}]
[null,null,null,null,null,null,null,null,null,null,null,null,null,null,{"$f":"DB!B2334","v":0}]
[null,null,null,null,null,null,null,null,null,null,null,null,null,null,{"$f":"DB!B2335","v":0}]
[null,null,null,null,null,null,null,null,null,null,null,null,null,null,{"$f":"DB!B2336","v":0}]
[null,null,null,null,null,null,null,null,null,null,null,null,null,null,{"$f":"DB!B2337","v":0}]
[null,null,null,null,null,null,null,null,null,null,null,null,null,null,{"$f":"DB!B2338","v":0}]
[null,null,null,null,null,null,null,null,null,null,null,null,null,null,{"$f":"DB!B2339","v":0}]
[null,null,null,null,null,null,null,null,null,null,null,null,null,null,{"$f":"DB!B2340","v":0}]
[null,null,null,null,null,null,null,null,null,null,null,null,null,null,{"$f":"DB!B2341","v":0}]
[null,null,null,null,null,null,null,null,null,null,null,null,null,null,{"$f":"DB!B2342","v":0}]
[null,null,null,null,null,null,null,null,null,null,null,null,null,null,{"$f":"DB!B2343","v":0}]
[null,null,null,null,null,null,null,null,null,null,null,null,null,null,{"$f":"DB!B2344","v":0}]
[null,null,null,null,null,null,null,null,null,null,null,null,null,null,{"$f":"DB!B2345","v":0}]
[null,null,null,null,null,null,null,null,null,null,null,null,null,null,{"$f":"DB!B2346","v":0}]
[null,null,null,null,null,null,null,null,null,null,null,null,null,null,{"$f":"DB!B2347","v":0}]
[null,null,null,null,null,null,null,null,null,null,null,null,null,null,{"$f":"DB!B2348","v":0}]
[null,null,null,null,null,null,null,null,null,null,null,null,null,null,{"$f":"DB!B2349","v":0}]
[null,null,null,null,null,null,null,null,null,null,null,null,null,null,{"$f":"DB!B2350","v":0}]
[null,null,null,null,null,null,null,null,null,null,null,null,null,null,{"$f":"DB!B2351","v":0}]
[null,null,null,null,null,null,null,null,null,null,null,null,null,null,{"$f":"DB!B2352","v":0}]
[null,null,null,null,null,null,null,null,null,null,null,null,null,null,{"$f":"DB!B2353","v":0}]
[null,null,null,null,null,null,null,null,null,null,null,null,null,null,{"$f":"DB!B2354","v":0}]
[null,null,null,null,null,null,null,null,null,null,null,null,null,null,{"$f":"DB!B2355","v":0}]
[null,null,null,null,null,null,null,null,null,null,null,null,null,null,{"$f":"DB!B2356","v":0}]
[null,null,null,null,null,null,null,null,null,null,null,null,null,null,{"$f":"DB!B2357","v":0}]
[null,null,null,null,null,null,null,null,null,null,null,null,null,null,{"$f":"DB!B2358","v":0}]
[null,null,null,null,null,null,null,null,null,null,null,null,null,null,{"$f":"DB!B2359","v":0}]
[null,null,null,null,null,null,null,null,null,null,null,null,null,null,{"$f":"DB!B2360","v":0}]
[null,null,null,null,null,null,null,null,null,null,null,null,null,null,{"$f":"DB!B2361","v":0}]
[null,null,null,null,null,null,null,null,null,null,null,null,null,null,{"$f":"DB!B2362","v":0}]
[null,null,null,null,null,null,null,null,null,null,null,null,null,null,{"$f":"DB!B2363","v":0}]
[null,null,null,null,null,null,null,null,null,null,null,null,null,null,{"$f":"DB!B2364","v":0}]
[null,null,null,null,null,null,null,null,null,null,null,null,null,null,{"$f":"DB!B2365","v":0}]
[null,null,null,null,null,null,null,null,null,null,null,null,null,null,{"$f":"DB!B2366","v":0}]
[null,null,null,null,null,null,null,null,null,null,null,null,null,null,{"$f":"DB!B2367","v":0}]
[null,null,null,null,null,null,null,null,null,null,null,null,null,null,{"$f":"DB!B2368","v":0}]
[null,null,null,null,null,null,null,null,null,null,null,null,null,null,{"$f":"DB!B2369","v":0}]
[null,null,null,null,null,null,null,null,null,null,null,null,null,null,{"$f":"DB!B2370","v":0}]
[null,null,null,null,null,null,null,null,null,null,null,null,null,null,{"$f":"DB!B2371","v":0}]
[null,null,null,null,null,null,null,null,null,null,null,null,null,null,{"$f":"DB!B2372","v":0}]
[null,null,null,null,null,null,null,null,null,null,null,null,null,null,{"$f":"DB!B2373","v":0}]
[null,null,null,null,null,null,null,null,null,null,null,null,null,null,{"$f":"DB!B2374","v":0}]
[null,null,null,null,null,null,null,null,null,null,null,null,null,null,{"$f":"DB!B2375","v":0}]
[null,null,null,null,null,null,null,null,null,null,null,null,null,null,{"$f":"DB!B2376","v":0}]
[null,null,null,null,null,null,null,null,null,null,null,null,null,null,{"$f":"DB!B2377","v":0}]
[null,null,null,null,null,null,null,null,null,null,null,null,null,null,{"$f":"DB!B2378","v":0}]
[null,null,null,null,null,null,null,null,null,null,null,null,null,null,{"$f":"DB!B2379","v":0}]
[null,null,null,null,null,null,null,null,null,null,null,null,null,null,{"$f":"DB!B2380","v":0}]
[null,null,null,null,null,null,null,null,null,null,null,null,null,null,{"$f":"DB!B2381","v":0}]
[null,null,null,null,null,null,null,null,null,null,null,null,null,null,{"$f":"DB!B2382","v":0}]
[null,null,null,null,null,null,null,null,null,null,null,null,null,null,{"$f":"DB!B2383","v":0}]
[null,null,null,null,null,null,null,null,null,null,null,null,null,null,{"$f":"DB!B2384","v":0}]
[null,null,null,null,null,null,null,null,null,null,null,null,null,null,{"$f":"DB!B2385","v":0}]
[null,null,null,null,null,null,null,null,null,null,null,null,null,null,{"$f":"DB!B2386","v":0}]
[null,null,null,null,null,null,null,null,null,null,null,null,null,null,{"$f":"DB!B2387","v":0}]
[null,null,null,null,null,null,null,null,null,null,null,null,null,null,{"$f":"DB!B2388","v":0}]
[null,null,null,null,null,null,null,null,null,null,null,null,null,null,{"$f":"DB!B2389","v":0}]
[null,null,null,null,null,null,null,null,null,null,null,null,null,null,{"$f":"DB!B2390","v":0}]
[null,null,null,null,null,null,null,null,null,null,null,null,null,null,{"$f":"DB!B2391","v":0}]
[null,null,null,null,null,null,null,null,null,null,null,null,null,null,{"$f":"DB!B2392","v":0}]
[null,null,null,null,null,null,null,null,null,null,null,null,null,null,{"$f":"DB!B2393","v":0}]
[null,null,null,null,null,null,null,null,null,null,null,null,null,null,{"$f":"DB!B2394","v":0}]
[null,null,null,null,null,null,null,null,null,null,null,null,null,null,{"$f":"DB!B2395","v":0}]
[null,null,null,null,null,null,null,null,null,null,null,null,null,null,{"$f":"DB!B2396","v":0}]
[null,null,null,null,null,null,null,null,null,null,null,null,null,null,{"$f":"DB!B2397","v":0}]
[null,null,null,null,null,null,null,null,null,null,null,null,null,null,{"$f":"DB!B2398","v":0}]
[null,null,null,null,null,null,null,null,null,null,null,null,null,null,{"$f":"DB!B2399","v":0}]
[null,null,null,null,null,null,null,null,null,null,null,null,null,null,{"$f":"DB!B2400","v":0}]
[null,null,null,null,null,null,null,null,null,null,null,null,null,null,{"$f":"DB!B2401","v":0}]
[null,null,null,null,null,null,null,null,null,null,null,null,null,null,{"$f":"DB!B2402","v":0}]
[null,null,null,null,null,null,null,null,null,null,null,null,null,null,{"$f":"DB!B2403","v":0}]
[null,null,null,null,null,null,null,null,null,null,null,null,null,null,{"$f":"DB!B2404","v":0}]
[null,null,null,null,null,null,null,null,null,null,null,null,null,null,{"$f":"DB!B2405","v":0}]
[null,null,null,null,null,null,null,null,null,null,null,null,null,null,{"$f":"DB!B2406","v":0}]
[null,null,null,null,null,null,null,null,null,null,null,null,null,null,{"$f":"DB!B2407","v":0}]
[null,null,null,null,null,null,null,null,null,null,null,null,null,null,{"$f":"DB!B2408","v":0}]
[null,null,null,null,null,null,null,null,null,null,null,null,null,null,{"$f":"DB!B2409","v":0}]
[null,null,null,null,null,null,null,null,null,null,null,null,null,null,{"$f":"DB!B2410","v":0}]
[null,null,null,null,null,null,null,null,null,null,null,null,null,null,{"$f":"DB!B2411","v":0}]
[null,null,null,null,null,null,null,null,null,null,null,null,null,null,{"$f":"DB!B2412","v":0}]
[null,null,null,null,null,null,null,null,null,null,null,null,null,null,{"$f":"DB!B2413","v":0}]
[null,null,null,null,null,null,null,null,null,null,null,null,null,null,{"$f":"DB!B2414","v":0}]
[null,null,null,null,null,null,null,null,null,null,null,null,null,null,{"$f":"DB!B2415","v":0}]
[null,null,null,null,null,null,null,null,null,null,null,null,null,null,{"$f":"DB!B2416","v":0}]
[null,null,null,null,null,null,null,null,null,null,null,null,null,null,{"$f":"DB!B2417","v":0}]
[null,null,null,null,null,null,null,null,null,null,null,null,null,null,{"$f":"DB!B2418","v":0}]
[null,null,null,null,null,null,null,null,null,null,null,null,null,null,{"$f":"DB!B2419","v":0}]
[null,null,null,null,null,null,null,null,null,null,null,null,null,null,{"$f":"DB!B2420","v":0}]
[null,null,null,null,null,null,null,null,null,null,null,null,null,null,{"$f":"DB!B2421","v":0}]
[null,null,null,null,null,null,null,null,null,null,null,null,null,null,{"$f":"DB!B2422","v":0}]
[null,null,null,null,null,null,null,null,null,null,null,null,null,null,{"$f":"DB!B2423","v":0}]
[null,null,null,null,null,null,null,null,null,null,null,null,null,null,{"$f":"DB!B2424","v":0}]
[null,null,null,null,null,null,null,null,null,null,null,null,null,null,{"$f":"DB!B2425","v":0}]
[null,null,null,null,null,null,null,null,null,null,null,null,null,null,{"$f":"DB!B2426","v":0}]
[null,null,null,null,null,null,null,null,null,null,null,null,null,null,{"$f":"DB!B2427","v":0}]
[null,null,null,null,null,null,null,null,null,null,null,null,null,null,{"$f":"DB!B2428","v":0}]
[null,null,null,null,null,null,null,null,null,null,null,null,null,null,{"$f":"DB!B2429","v":0}]
[null,null,null,null,null,null,null,null,null,null,null,null,null,null,{"$f":"DB!B2430","v":0}]
[null,null,null,null,null,null,null,null,null,null,null,null,null,null,{"$f":"DB!B2431","v":0}]
[null,null,null,null,null,null,null,null,null,null,null,null,null,null,{"$f":"DB!B2432","v":0}]
[null,null,null,null,null,null,null,null,null,null,null,null,null,null,{"$f":"DB!B2433","v":0}]
[null,null,null,null,null,null,null,null,null,null,null,null,null,null,{"$f":"DB!B2434","v":0}]
[null,null,null,null,null,null,null,null,null,null,null,null,null,null,{"$f":"DB!B2435","v":0}]
[null,null,null,null,null,null,null,null,null,null,null,null,null,null,{"$f":"DB!B2436","v":0}]
[null,null,null,null,null,null,null,null,null,null,null,null,null,null,{"$f":"DB!B2437","v":0}]
[null,null,null,null,null,null,null,null,null,null,null,null,null,null,{"$f":"DB!B2438","v":0}]
[null,null,null,null,null,null,null,null,null,null,null,null,null,null,{"$f":"DB!B2439","v":0}]
[null,null,null,null,null,null,null,null,null,null,null,null,null,null,{"$f":"DB!B2440","v":0}]
[null,null,null,null,null,null,null,null,null,null,null,null,null,null,{"$f":"DB!B2441","v":0}]
[null,null,null,null,null,null,null,null,null,null,null,null,null,null,{"$f":"DB!B2442","v":0}]
[null,null,null,null,null,null,null,null,null,null,null,null,null,null,{"$f":"DB!B2443","v":0}]
[null,null,null,null,null,null,null,null,null,null,null,null,null,null,{"$f":"DB!B2444","v":0}]
[null,null,null,null,null,null,null,null,null,null,null,null,null,null,{"$f":"DB!B2445","v":0}]
[null,null,null,null,null,null,null,null,null,null,null,null,null,null,{"$f":"DB!B2446","v":0}]
[null,null,null,null,null,null,null,null,null,null,null,null,null,null,{"$f":"DB!B2447","v":0}]
[null,null,null,null,null,null,null,null,null,null,null,null,null,null,{"$f":"DB!B2448","v":0}]
[null,null,null,null,null,null,null,null,null,null,null,null,null,null,{"$f":"DB!B2449","v":0}]
[null,null,null,null,null,null,null,null,null,null,null,null,null,null,{"$f":"DB!B2450","v":0}]
[null,null,null,null,null,null,null,null,null,null,null,null,null,null,{"$f":"DB!B2451","v":0}]
[null,null,null,null,null,null,null,null,null,null,null,null,null,null,{"$f":"DB!B2452","v":0}]
[null,null,null,null,null,null,null,null,null,null,null,null,null,null,{"$f":"DB!B2453","v":0}]
[null,null,null,null,null,null,null,null,null,null,null,null,null,null,{"$f":"DB!B2454","v":0}]
[null,null,null,null,null,null,null,null,null,null,null,null,null,null,{"$f":"DB!B2455","v":0}]
[null,null,null,null,null,null,null,null,null,null,null,null,null,null,{"$f":"DB!B2456","v":0}]
[null,null,null,null,null,null,null,null,null,null,null,null,null,null,{"$f":"DB!B2457","v":0}]
[null,null,null,null,null,null,null,null,null,null,null,null,null,null,{"$f":"DB!B2458","v":0}]
[null,null,null,null,null,null,null,null,null,null,null,null,null,null,{"$f":"DB!B2459","v":0}]
[null,null,null,null,null,null,null,null,null,null,null,null,null,null,{"$f":"DB!B2460","v":0}]
[null,null,null,null,null,null,null,null,null,null,null,null,null,null,{"$f":"DB!B2461","v":0}]
[null,null,null,null,null,null,null,null,null,null,null,null,null,null,{"$f":"DB!B2462","v":0}]
[null,null,null,null,null,null,null,null,null,null,null,null,null,null,{"$f":"DB!B2463","v":0}]
[null,null,null,null,null,null,null,null,null,null,null,null,null,null,{"$f":"DB!B2464","v":0}]
[null,null,null,null,null,null,null,null,null,null,null,null,null,null,{"$f":"DB!B2465","v":0}]
[null,null,null,null,null,null,null,null,null,null,null,null,null,null,{"$f":"DB!B2466","v":0}]
[null,null,null,null,null,null,null,null,null,null,null,null,null,null,{"$f":"DB!B2467","v":0}]
[null,null,null,null,null,null,null,null,null,null,null,null,null,null,{"$f":"DB!B2468","v":0}]
[null,null,null,null,null,null,null,null,null,null,null,null,null,null,{"$f":"DB!B2469","v":0}]
[null,null,null,null,null,null,null,null,null,null,null,null,null,null,{"$f":"DB!B2470","v":0}]
[null,null,null,null,null,null,null,null,null,null,null,null,null,null,{"$f":"DB!B2471","v":0}]
[null,null,null,null,null,null,null,null,null,null,null,null,null,null,{"$f":"DB!B2472","v":0}]
[null,null,null,null,null,null,null,null,null,null,null,null,null,null,{"$f":"DB!B2473","v":0}]
[null,null,null,null,null,null,null,null,null,null,null,null,null,null,{"$f":"DB!B2474","v":0}]
[null,null,null,null,null,null,null,null,null,null,null,null,null,null,{"$f":"DB!B2475","v":0}]
[null,null,null,null,null,null,null,null,null,null,null,null,null,null,{"$f":"DB!B2476","v":0}]
[null,null,null,null,null,null,null,null,null,null,null,null,null,null,{"$f":"DB!B2477","v":0}]
[null,null,null,null,null,null,null,null,null,null,null,null,null,null,{"$f":"DB!B2478","v":0}]
[null,null,null,null,null,null,null,null,null,null,null,null,null,null,{"$f":"DB!B2479","v":0}]
[null,null,null,null,null,null,null,null,null,null,null,null,null,null,{"$f":"DB!B2480","v":0}]
[null,null,null,null,null,null,null,null,null,null,null,null,null,null,{"$f":"DB!B2481","v":0}]
[null,null,null,null,null,null,null,null,null,null,null,null,null,null,{"$f":"DB!B2482","v":0}]
[null,null,null,null,null,null,null,null,null,null,null,null,null,null,{"$f":"DB!B2483","v":0}]
[null,null,null,null,null,null,null,null,null,null,null,null,null,null,{"$f":"DB!B2484","v":0}]
[null,null,null,null,null,null,null,null,null,null,null,null,null,null,{"$f":"DB!B2485","v":0}]
[null,null,null,null,null,null,null,null,null,null,null,null,null,null,{"$f":"DB!B2486","v":0}]
[null,null,null,null,null,null,null,null,null,null,null,null,null,null,{"$f":"DB!B2487","v":0}]
[null,null,null,null,null,null,null,null,null,null,null,null,null,null,{"$f":"DB!B2488","v":0}]
[null,null,null,null,null,null,null,null,null,null,null,null,null,null,{"$f":"DB!B2489","v":0}]
[null,null,null,null,null,null,null,null,null,null,null,null,null,null,{"$f":"DB!B2490","v":0}]
[null,null,null,null,null,null,null,null,null,null,null,null,null,null,{"$f":"DB!B2491","v":0}]
[null,null,null,null,null,null,null,null,null,null,null,null,null,null,{"$f":"DB!B2492","v":0}]
[null,null,null,null,null,null,null,null,null,null,null,null,null,null,{"$f":"DB!B2493","v":0}]
[null,null,null,null,null,null,null,null,null,null,null,null,null,null,{"$f":"DB!B2494","v":0}]
[null,null,null,null,null,null,null,null,null,null,null,null,null,null,{"$f":"DB!B2495","v":0}]
[null,null,null,null,null,null,null,null,null,null,null,null,null,null,{"$f":"DB!B2496","v":0}]
[null,null,null,null,null,null,null,null,null,null,null,null,null,null,{"$f":"DB!B2497","v":0}]
[null,null,null,null,null,null,null,null,null,null,null,null,null,null,{"$f":"DB!B2498","v":0}]
[null,null,null,null,null,null,null,null,null,null,null,null,null,null,{"$f":"DB!B2499","v":0}]
[null,null,null,null,null,null,null,null,null,null,null,null,null,null,{"$f":"DB!B2500","v":0}]
[null,null,null,null,null,null,null,null,null,null,null,null,null,null,{"$f":"DB!B2501","v":0}]
[null,null,null,null,null,null,null,null,null,null,null,null,null,null,{"$f":"DB!B2502","v":0}]
[null,null,null,null,null,null,null,null,null,null,null,null,null,null,{"$f":"DB!B2503","v":0}]
[null,null,null,null,null,null,null,null,null,null,null,null,null,null,{"$f":"DB!B2504","v":0}]
[null,null,null,null,null,null,null,null,null,null,null,null,null,null,{"$f":"DB!B2505","v":0}]
[null,null,null,null,null,null,null,null,null,null,null,null,null,null,{"$f":"DB!B2506","v":0}]
[null,null,null,null,null,null,null,null,null,null,null,null,null,null,{"$f":"DB!B2507","v":0}]
[null,null,null,null,null,null,null,null,null,null,null,null,null,null,{"$f":"DB!B2508","v":0}]
[null,null,null,null,null,null,null,null,null,null,null,null,null,null,{"$f":"DB!B2509","v":0}]
[null,null,null,null,null,null,null,null,null,null,null,null,null,null,{"$f":"DB!B2510","v":0}]
[null,null,null,null,null,null,null,null,null,null,null,null,null,null,{"$f":"DB!B2511","v":0}]
[null,null,null,null,null,null,null,null,null,null,null,null,null,null,{"$f":"DB!B2512","v":0}]
[null,null,null,null,null,null,null,null,null,null,null,null,null,null,{"$f":"DB!B2513","v":0}]
[null,null,null,null,null,null,null,null,null,null,null,null,null,null,{"$f":"DB!B2514","v":0}]

{"sheet":"DB","index":4,"n_rows":4,"n_cols":7,"rows_kept":4,"cut":false,"hidden":false,"merged":[[0,0,0,6],[1,0,1,6]]}
["DAFTAR WAJIB PAJAK"]
[{"$f":"ISIAN!C3","v":"DESA CARUL"}]
["NO","NOMOR  WAJIP PAJAK ","NOMOR BLOK","NAMA WAJIB PAJAK","BAKU PAJAK","DESA","RT/RW"]
[1,"00.01.0005","c.02b","ratmo",75000,"Carul","02/03"]

{"sheet":"TBL_BYR","index":5,"n_rows":8,"n_cols":8,"rows_kept":8,"cut":false,"hidden":false,"merged":[[3,2,3,3],[0,0,0,7],[1,0,1,7]]}
["TABEL PEMBAYARAN PBB"]
[{"$f":"ISIAN!C3","v":"DESA CARUL"}]
["JUMLAH WAJIB PAJAK YANG MASUK",null,{"$f":"COUNT(E6:E4000)","v":3}]
["TOTAL UANG YANG MASUK",null,{"$f":"SUM(E6:E4000)","v":251000}]
["TANGGAL","NOMOR  WAJIP PAJAK ","NOMOR BLOK","NAMA WAJIB PAJAK","BAKU PAJAK","DESA","RT/RW","KET"]
["2017-05-03","00.01.0005","c.02b","ratmo",75000,"Carul","02/03","LUNAS"]
["2017-06-04","00.01.0003","D.02f","Jono",80000,"suka sari","01/05","LUNAS"]
["2017-07-03","00.01.0004","c.04b","ratmo",96000,"Suka maju","02/03","LUNAS"]

{"sheet":"PO","index":6,"n_rows":36,"n_cols":7,"rows_kept":36,"cut":false,"hidden":false,"merged":[[0,0,0,4],[1,0,1,4],[34,0,34,3],[35,0,35,3]]}
["LAPORAN PEMBAYARAN HARIAN"]
[{"$f":"ISIAN!C3","v":"DESA CARUL"}]
["TANGGAL","NOMOR  WAJIP PAJAK ","NOMOR","NAMA WAJIB PAJAK","DIBAYAR"]
["BAYAR","(NOP)","BLOK","(NWP)","(Rp)"]
[{"$f":"IF(COUNTA($A$4:A4)<=COUNTIF(Tgl,$G$7),INDEX(TBL_BYR!A:A,MATCH($G$7,TBL_BYR!A:A,0)+ROW()-5),\"\")","v":"2017-05-03"},{"$f":"IF(COUNTA($A$4:A4)<=COUNTIF(Tgl,$G$7),INDEX(TBL_BYR!B:B,MATCH($G$7,TBL_BYR!A:A,0)+ROW()-5),\"\")","v":"00.01.0005"},{"$f":"IF(COUNTA($A$4:A4)<=COUNTIF(Tgl,$G$7),INDEX(TBL_BYR!C:C,MATCH($G$7,TBL_BYR!A:A,0)+ROW()-5),\"\")","v":"c.02b"},{"$f":"IF(COUNTA($A$4:A4)<=COUNTIF(Tgl,$G$7),INDEX(TBL_BYR!D:D,MATCH($G$7,TBL_BYR!A:A,0)+ROW()-5),\"\")","v":"ratmo"},{"$f":"IF(COUNTA($A$4:A4)<=COUNTIF(Tgl,$G$7),INDEX(TBL_BYR!E:E,MATCH($G$7,TBL_BYR!A:A,0)+ROW()-5),\"\")","v":75000},null,"MASUKAN TANGGAL"]
[{"$f":"IF(COUNTA($A$4:A5)<=COUNTIF(Tgl,$G$7),INDEX(TBL_BYR!A:A,MATCH($G$7,TBL_BYR!A:A,0)+ROW()-5),\"\")","v":""},{"$f":"IF(COUNTA($A$4:A5)<=COUNTIF(Tgl,$G$7),INDEX(TBL_BYR!B:B,MATCH($G$7,TBL_BYR!A:A,0)+ROW()-5),\"\")","v":""},{"$f":"IF(COUNTA($A$4:A5)<=COUNTIF(Tgl,$G$7),INDEX(TBL_BYR!C:C,MATCH($G$7,TBL_BYR!A:A,0)+ROW()-5),\"\")","v":""},{"$f":"IF(COUNTA($A$4:A5)<=COUNTIF(Tgl,$G$7),INDEX(TBL_BYR!D:D,MATCH($G$7,TBL_BYR!A:A,0)+ROW()-5),\"\")","v":""},{"$f":"IF(COUNTA($A$4:A5)<=COUNTIF(Tgl,$G$7),INDEX(TBL_BYR!E:E,MATCH($G$7,TBL_BYR!A:A,0)+ROW()-5),\"\")","v":""},null,"YANG AKAN DI CETAK"]
[{"$f":"IF(COUNTA($A$4:A6)<=COUNTIF(Tgl,$G$7),INDEX(TBL_BYR!A:A,MATCH($G$7,TBL_BYR!A:A,0)+ROW()-5),\"\")","v":""},{"$f":"IF(COUNTA($A$4:A6)<=COUNTIF(Tgl,$G$7),INDEX(TBL_BYR!B:B,MATCH($G$7,TBL_BYR!A:A,0)+ROW()-5),\"\")","v":""},{"$f":"IF(COUNTA($A$4:A6)<=COUNTIF(Tgl,$G$7),INDEX(TBL_BYR!C:C,MATCH($G$7,TBL_BYR!A:A,0)+ROW()-5),\"\")","v":""},{"$f":"IF(COUNTA($A$4:A6)<=COUNTIF(Tgl,$G$7),INDEX(TBL_BYR!D:D,MATCH($G$7,TBL_BYR!A:A,0)+ROW()-5),\"\")","v":""},{"$f":"IF(COUNTA($A$4:A6)<=COUNTIF(Tgl,$G$7),INDEX(TBL_BYR!E:E,MATCH($G$7,TBL_BYR!A:A,0)+ROW()-5),\"\")","v":""},null,"2017-05-03"]
[{"$f":"IF(COUNTA($A$4:A7)<=COUNTIF(Tgl,$G$7),INDEX(TBL_BYR!A:A,MATCH($G$7,TBL_BYR!A:A,0)+ROW()-5),\"\")","v":""},{"$f":"IF(COUNTA($A$4:A7)<=COUNTIF(Tgl,$G$7),INDEX(TBL_BYR!B:B,MATCH($G$7,TBL_BYR!A:A,0)+ROW()-5),\"\")","v":""},{"$f":"IF(COUNTA($A$4:A7)<=COUNTIF(Tgl,$G$7),INDEX(TBL_BYR!C:C,MATCH($G$7,TBL_BYR!A:A,0)+ROW()-5),\"\")","v":""},{"$f":"IF(COUNTA($A$4:A7)<=COUNTIF(Tgl,$G$7),INDEX(TBL_BYR!D:D,MATCH($G$7,TBL_BYR!A:A,0)+ROW()-5),\"\")","v":""},{"$f":"IF(COUNTA($A$4:A7)<=COUNTIF(Tgl,$G$7),INDEX(TBL_BYR!E:E,MATCH($G$7,TBL_BYR!A:A,0)+ROW()-5),\"\")","v":""},null,"dd/mm/yy"]
[{"$f":"IF(COUNTA($A$4:A8)<=COUNTIF(Tgl,$G$7),INDEX(TBL_BYR!A:A,MATCH($G$7,TBL_BYR!A:A,0)+ROW()-5),\"\")","v":""},{"$f":"IF(COUNTA($A$4:A8)<=COUNTIF(Tgl,$G$7),INDEX(TBL_BYR!B:B,MATCH($G$7,TBL_BYR!A:A,0)+ROW()-5),\"\")","v":""},{"$f":"IF(COUNTA($A$4:A8)<=COUNTIF(Tgl,$G$7),INDEX(TBL_BYR!C:C,MATCH($G$7,TBL_BYR!A:A,0)+ROW()-5),\"\")","v":""},{"$f":"IF(COUNTA($A$4:A8)<=COUNTIF(Tgl,$G$7),INDEX(TBL_BYR!D:D,MATCH($G$7,TBL_BYR!A:A,0)+ROW()-5),\"\")","v":""},{"$f":"IF(COUNTA($A$4:A8)<=COUNTIF(Tgl,$G$7),INDEX(TBL_BYR!E:E,MATCH($G$7,TBL_BYR!A:A,0)+ROW()-5),\"\")","v":""}]
[{"$f":"IF(COUNTA($A$4:A9)<=COUNTIF(Tgl,$G$7),INDEX(TBL_BYR!A:A,MATCH($G$7,TBL_BYR!A:A,0)+ROW()-5),\"\")","v":""},{"$f":"IF(COUNTA($A$4:A9)<=COUNTIF(Tgl,$G$7),INDEX(TBL_BYR!B:B,MATCH($G$7,TBL_BYR!A:A,0)+ROW()-5),\"\")","v":""},{"$f":"IF(COUNTA($A$4:A9)<=COUNTIF(Tgl,$G$7),INDEX(TBL_BYR!C:C,MATCH($G$7,TBL_BYR!A:A,0)+ROW()-5),\"\")","v":""},{"$f":"IF(COUNTA($A$4:A9)<=COUNTIF(Tgl,$G$7),INDEX(TBL_BYR!D:D,MATCH($G$7,TBL_BYR!A:A,0)+ROW()-5),\"\")","v":""},{"$f":"IF(COUNTA($A$4:A9)<=COUNTIF(Tgl,$G$7),INDEX(TBL_BYR!E:E,MATCH($G$7,TBL_BYR!A:A,0)+ROW()-5),\"\")","v":""}]
[{"$f":"IF(COUNTA($A$4:A10)<=COUNTIF(Tgl,$G$7),INDEX(TBL_BYR!A:A,MATCH($G$7,TBL_BYR!A:A,0)+ROW()-5),\"\")","v":""},{"$f":"IF(COUNTA($A$4:A10)<=COUNTIF(Tgl,$G$7),INDEX(TBL_BYR!B:B,MATCH($G$7,TBL_BYR!A:A,0)+ROW()-5),\"\")","v":""},{"$f":"IF(COUNTA($A$4:A10)<=COUNTIF(Tgl,$G$7),INDEX(TBL_BYR!C:C,MATCH($G$7,TBL_BYR!A:A,0)+ROW()-5),\"\")","v":""},{"$f":"IF(COUNTA($A$4:A10)<=COUNTIF(Tgl,$G$7),INDEX(TBL_BYR!D:D,MATCH($G$7,TBL_BYR!A:A,0)+ROW()-5),\"\")","v":""},{"$f":"IF(COUNTA($A$4:A10)<=COUNTIF(Tgl,$G$7),INDEX(TBL_BYR!E:E,MATCH($G$7,TBL_BYR!A:A,0)+ROW()-5),\"\")","v":""}]
[{"$f":"IF(COUNTA($A$4:A11)<=COUNTIF(Tgl,$G$7),INDEX(TBL_BYR!A:A,MATCH($G$7,TBL_BYR!A:A,0)+ROW()-5),\"\")","v":""},{"$f":"IF(COUNTA($A$4:A11)<=COUNTIF(Tgl,$G$7),INDEX(TBL_BYR!B:B,MATCH($G$7,TBL_BYR!A:A,0)+ROW()-5),\"\")","v":""},{"$f":"IF(COUNTA($A$4:A11)<=COUNTIF(Tgl,$G$7),INDEX(TBL_BYR!C:C,MATCH($G$7,TBL_BYR!A:A,0)+ROW()-5),\"\")","v":""},{"$f":"IF(COUNTA($A$4:A11)<=COUNTIF(Tgl,$G$7),INDEX(TBL_BYR!D:D,MATCH($G$7,TBL_BYR!A:A,0)+ROW()-5),\"\")","v":""},{"$f":"IF(COUNTA($A$4:A11)<=COUNTIF(Tgl,$G$7),INDEX(TBL_BYR!E:E,MATCH($G$7,TBL_BYR!A:A,0)+ROW()-5),\"\")","v":""}]
[{"$f":"IF(COUNTA($A$4:A12)<=COUNTIF(Tgl,$G$7),INDEX(TBL_BYR!A:A,MATCH($G$7,TBL_BYR!A:A,0)+ROW()-5),\"\")","v":""},{"$f":"IF(COUNTA($A$4:A12)<=COUNTIF(Tgl,$G$7),INDEX(TBL_BYR!B:B,MATCH($G$7,TBL_BYR!A:A,0)+ROW()-5),\"\")","v":""},{"$f":"IF(COUNTA($A$4:A12)<=COUNTIF(Tgl,$G$7),INDEX(TBL_BYR!C:C,MATCH($G$7,TBL_BYR!A:A,0)+ROW()-5),\"\")","v":""},{"$f":"IF(COUNTA($A$4:A12)<=COUNTIF(Tgl,$G$7),INDEX(TBL_BYR!D:D,MATCH($G$7,TBL_BYR!A:A,0)+ROW()-5),\"\")","v":""},{"$f":"IF(COUNTA($A$4:A12)<=COUNTIF(Tgl,$G$7),INDEX(TBL_BYR!E:E,MATCH($G$7,TBL_BYR!A:A,0)+ROW()-5),\"\")","v":""}]
[{"$f":"IF(COUNTA($A$4:A13)<=COUNTIF(Tgl,$G$7),INDEX(TBL_BYR!A:A,MATCH($G$7,TBL_BYR!A:A,0)+ROW()-5),\"\")","v":""},{"$f":"IF(COUNTA($A$4:A13)<=COUNTIF(Tgl,$G$7),INDEX(TBL_BYR!B:B,MATCH($G$7,TBL_BYR!A:A,0)+ROW()-5),\"\")","v":""},{"$f":"IF(COUNTA($A$4:A13)<=COUNTIF(Tgl,$G$7),INDEX(TBL_BYR!C:C,MATCH($G$7,TBL_BYR!A:A,0)+ROW()-5),\"\")","v":""},{"$f":"IF(COUNTA($A$4:A13)<=COUNTIF(Tgl,$G$7),INDEX(TBL_BYR!D:D,MATCH($G$7,TBL_BYR!A:A,0)+ROW()-5),\"\")","v":""},{"$f":"IF(COUNTA($A$4:A13)<=COUNTIF(Tgl,$G$7),INDEX(TBL_BYR!E:E,MATCH($G$7,TBL_BYR!A:A,0)+ROW()-5),\"\")","v":""}]
[{"$f":"IF(COUNTA($A$4:A14)<=COUNTIF(Tgl,$G$7),INDEX(TBL_BYR!A:A,MATCH($G$7,TBL_BYR!A:A,0)+ROW()-5),\"\")","v":""},{"$f":"IF(COUNTA($A$4:A14)<=COUNTIF(Tgl,$G$7),INDEX(TBL_BYR!B:B,MATCH($G$7,TBL_BYR!A:A,0)+ROW()-5),\"\")","v":""},{"$f":"IF(COUNTA($A$4:A14)<=COUNTIF(Tgl,$G$7),INDEX(TBL_BYR!C:C,MATCH($G$7,TBL_BYR!A:A,0)+ROW()-5),\"\")","v":""},{"$f":"IF(COUNTA($A$4:A14)<=COUNTIF(Tgl,$G$7),INDEX(TBL_BYR!D:D,MATCH($G$7,TBL_BYR!A:A,0)+ROW()-5),\"\")","v":""},{"$f":"IF(COUNTA($A$4:A14)<=COUNTIF(Tgl,$G$7),INDEX(TBL_BYR!E:E,MATCH($G$7,TBL_BYR!A:A,0)+ROW()-5),\"\")","v":""}]
[{"$f":"IF(COUNTA($A$4:A15)<=COUNTIF(Tgl,$G$7),INDEX(TBL_BYR!A:A,MATCH($G$7,TBL_BYR!A:A,0)+ROW()-5),\"\")","v":""},{"$f":"IF(COUNTA($A$4:A15)<=COUNTIF(Tgl,$G$7),INDEX(TBL_BYR!B:B,MATCH($G$7,TBL_BYR!A:A,0)+ROW()-5),\"\")","v":""},{"$f":"IF(COUNTA($A$4:A15)<=COUNTIF(Tgl,$G$7),INDEX(TBL_BYR!C:C,MATCH($G$7,TBL_BYR!A:A,0)+ROW()-5),\"\")","v":""},{"$f":"IF(COUNTA($A$4:A15)<=COUNTIF(Tgl,$G$7),INDEX(TBL_BYR!D:D,MATCH($G$7,TBL_BYR!A:A,0)+ROW()-5),\"\")","v":""},{"$f":"IF(COUNTA($A$4:A15)<=COUNTIF(Tgl,$G$7),INDEX(TBL_BYR!E:E,MATCH($G$7,TBL_BYR!A:A,0)+ROW()-5),\"\")","v":""}]
[{"$f":"IF(COUNTA($A$4:A16)<=COUNTIF(Tgl,$G$7),INDEX(TBL_BYR!A:A,MATCH($G$7,TBL_BYR!A:A,0)+ROW()-5),\"\")","v":""},{"$f":"IF(COUNTA($A$4:A16)<=COUNTIF(Tgl,$G$7),INDEX(TBL_BYR!B:B,MATCH($G$7,TBL_BYR!A:A,0)+ROW()-5),\"\")","v":""},{"$f":"IF(COUNTA($A$4:A16)<=COUNTIF(Tgl,$G$7),INDEX(TBL_BYR!C:C,MATCH($G$7,TBL_BYR!A:A,0)+ROW()-5),\"\")","v":""},{"$f":"IF(COUNTA($A$4:A16)<=COUNTIF(Tgl,$G$7),INDEX(TBL_BYR!D:D,MATCH($G$7,TBL_BYR!A:A,0)+ROW()-5),\"\")","v":""},{"$f":"IF(COUNTA($A$4:A16)<=COUNTIF(Tgl,$G$7),INDEX(TBL_BYR!E:E,MATCH($G$7,TBL_BYR!A:A,0)+ROW()-5),\"\")","v":""}]
[{"$f":"IF(COUNTA($A$4:A17)<=COUNTIF(Tgl,$G$7),INDEX(TBL_BYR!A:A,MATCH($G$7,TBL_BYR!A:A,0)+ROW()-5),\"\")","v":""},{"$f":"IF(COUNTA($A$4:A17)<=COUNTIF(Tgl,$G$7),INDEX(TBL_BYR!B:B,MATCH($G$7,TBL_BYR!A:A,0)+ROW()-5),\"\")","v":""},{"$f":"IF(COUNTA($A$4:A17)<=COUNTIF(Tgl,$G$7),INDEX(TBL_BYR!C:C,MATCH($G$7,TBL_BYR!A:A,0)+ROW()-5),\"\")","v":""},{"$f":"IF(COUNTA($A$4:A17)<=COUNTIF(Tgl,$G$7),INDEX(TBL_BYR!D:D,MATCH($G$7,TBL_BYR!A:A,0)+ROW()-5),\"\")","v":""},{"$f":"IF(COUNTA($A$4:A17)<=COUNTIF(Tgl,$G$7),INDEX(TBL_BYR!E:E,MATCH($G$7,TBL_BYR!A:A,0)+ROW()-5),\"\")","v":""}]
[{"$f":"IF(COUNTA($A$4:A18)<=COUNTIF(Tgl,$G$7),INDEX(TBL_BYR!A:A,MATCH($G$7,TBL_BYR!A:A,0)+ROW()-5),\"\")","v":""},{"$f":"IF(COUNTA($A$4:A18)<=COUNTIF(Tgl,$G$7),INDEX(TBL_BYR!B:B,MATCH($G$7,TBL_BYR!A:A,0)+ROW()-5),\"\")","v":""},{"$f":"IF(COUNTA($A$4:A18)<=COUNTIF(Tgl,$G$7),INDEX(TBL_BYR!C:C,MATCH($G$7,TBL_BYR!A:A,0)+ROW()-5),\"\")","v":""},{"$f":"IF(COUNTA($A$4:A18)<=COUNTIF(Tgl,$G$7),INDEX(TBL_BYR!D:D,MATCH($G$7,TBL_BYR!A:A,0)+ROW()-5),\"\")","v":""},{"$f":"IF(COUNTA($A$4:A18)<=COUNTIF(Tgl,$G$7),INDEX(TBL_BYR!E:E,MATCH($G$7,TBL_BYR!A:A,0)+ROW()-5),\"\")","v":""}]
[{"$f":"IF(COUNTA($A$4:A19)<=COUNTIF(Tgl,$G$7),INDEX(TBL_BYR!A:A,MATCH($G$7,TBL_BYR!A:A,0)+ROW()-5),\"\")","v":""},{"$f":"IF(COUNTA($A$4:A19)<=COUNTIF(Tgl,$G$7),INDEX(TBL_BYR!B:B,MATCH($G$7,TBL_BYR!A:A,0)+ROW()-5),\"\")","v":""},{"$f":"IF(COUNTA($A$4:A19)<=COUNTIF(Tgl,$G$7),INDEX(TBL_BYR!C:C,MATCH($G$7,TBL_BYR!A:A,0)+ROW()-5),\"\")","v":""},{"$f":"IF(COUNTA($A$4:A19)<=COUNTIF(Tgl,$G$7),INDEX(TBL_BYR!D:D,MATCH($G$7,TBL_BYR!A:A,0)+ROW()-5),\"\")","v":""},{"$f":"IF(COUNTA($A$4:A19)<=COUNTIF(Tgl,$G$7),INDEX(TBL_BYR!E:E,MATCH($G$7,TBL_BYR!A:A,0)+ROW()-5),\"\")","v":""}]
[{"$f":"IF(COUNTA($A$4:A20)<=COUNTIF(Tgl,$G$7),INDEX(TBL_BYR!A:A,MATCH($G$7,TBL_BYR!A:A,0)+ROW()-5),\"\")","v":""},{"$f":"IF(COUNTA($A$4:A20)<=COUNTIF(Tgl,$G$7),INDEX(TBL_BYR!B:B,MATCH($G$7,TBL_BYR!A:A,0)+ROW()-5),\"\")","v":""},{"$f":"IF(COUNTA($A$4:A20)<=COUNTIF(Tgl,$G$7),INDEX(TBL_BYR!C:C,MATCH($G$7,TBL_BYR!A:A,0)+ROW()-5),\"\")","v":""},{"$f":"IF(COUNTA($A$4:A20)<=COUNTIF(Tgl,$G$7),INDEX(TBL_BYR!D:D,MATCH($G$7,TBL_BYR!A:A,0)+ROW()-5),\"\")","v":""},{"$f":"IF(COUNTA($A$4:A20)<=COUNTIF(Tgl,$G$7),INDEX(TBL_BYR!E:E,MATCH($G$7,TBL_BYR!A:A,0)+ROW()-5),\"\")","v":""}]
[{"$f":"IF(COUNTA($A$4:A21)<=COUNTIF(Tgl,$G$7),INDEX(TBL_BYR!A:A,MATCH($G$7,TBL_BYR!A:A,0)+ROW()-5),\"\")","v":""},{"$f":"IF(COUNTA($A$4:A21)<=COUNTIF(Tgl,$G$7),INDEX(TBL_BYR!B:B,MATCH($G$7,TBL_BYR!A:A,0)+ROW()-5),\"\")","v":""},{"$f":"IF(COUNTA($A$4:A21)<=COUNTIF(Tgl,$G$7),INDEX(TBL_BYR!C:C,MATCH($G$7,TBL_BYR!A:A,0)+ROW()-5),\"\")","v":""},{"$f":"IF(COUNTA($A$4:A21)<=COUNTIF(Tgl,$G$7),INDEX(TBL_BYR!D:D,MATCH($G$7,TBL_BYR!A:A,0)+ROW()-5),\"\")","v":""},{"$f":"IF(COUNTA($A$4:A21)<=COUNTIF(Tgl,$G$7),INDEX(TBL_BYR!E:E,MATCH($G$7,TBL_BYR!A:A,0)+ROW()-5),\"\")","v":""}]
[{"$f":"IF(COUNTA($A$4:A22)<=COUNTIF(Tgl,$G$7),INDEX(TBL_BYR!A:A,MATCH($G$7,TBL_BYR!A:A,0)+ROW()-5),\"\")","v":""},{"$f":"IF(COUNTA($A$4:A22)<=COUNTIF(Tgl,$G$7),INDEX(TBL_BYR!B:B,MATCH($G$7,TBL_BYR!A:A,0)+ROW()-5),\"\")","v":""},{"$f":"IF(COUNTA($A$4:A22)<=COUNTIF(Tgl,$G$7),INDEX(TBL_BYR!C:C,MATCH($G$7,TBL_BYR!A:A,0)+ROW()-5),\"\")","v":""},{"$f":"IF(COUNTA($A$4:A22)<=COUNTIF(Tgl,$G$7),INDEX(TBL_BYR!D:D,MATCH($G$7,TBL_BYR!A:A,0)+ROW()-5),\"\")","v":""},{"$f":"IF(COUNTA($A$4:A22)<=COUNTIF(Tgl,$G$7),INDEX(TBL_BYR!E:E,MATCH($G$7,TBL_BYR!A:A,0)+ROW()-5),\"\")","v":""}]
[{"$f":"IF(COUNTA($A$4:A23)<=COUNTIF(Tgl,$G$7),INDEX(TBL_BYR!A:A,MATCH($G$7,TBL_BYR!A:A,0)+ROW()-5),\"\")","v":""},{"$f":"IF(COUNTA($A$4:A23)<=COUNTIF(Tgl,$G$7),INDEX(TBL_BYR!B:B,MATCH($G$7,TBL_BYR!A:A,0)+ROW()-5),\"\")","v":""},{"$f":"IF(COUNTA($A$4:A23)<=COUNTIF(Tgl,$G$7),INDEX(TBL_BYR!C:C,MATCH($G$7,TBL_BYR!A:A,0)+ROW()-5),\"\")","v":""},{"$f":"IF(COUNTA($A$4:A23)<=COUNTIF(Tgl,$G$7),INDEX(TBL_BYR!D:D,MATCH($G$7,TBL_BYR!A:A,0)+ROW()-5),\"\")","v":""},{"$f":"IF(COUNTA($A$4:A23)<=COUNTIF(Tgl,$G$7),INDEX(TBL_BYR!E:E,MATCH($G$7,TBL_BYR!A:A,0)+ROW()-5),\"\")","v":""}]
[{"$f":"IF(COUNTA($A$4:A24)<=COUNTIF(Tgl,$G$7),INDEX(TBL_BYR!A:A,MATCH($G$7,TBL_BYR!A:A,0)+ROW()-5),\"\")","v":""},{"$f":"IF(COUNTA($A$4:A24)<=COUNTIF(Tgl,$G$7),INDEX(TBL_BYR!B:B,MATCH($G$7,TBL_BYR!A:A,0)+ROW()-5),\"\")","v":""},{"$f":"IF(COUNTA($A$4:A24)<=COUNTIF(Tgl,$G$7),INDEX(TBL_BYR!C:C,MATCH($G$7,TBL_BYR!A:A,0)+ROW()-5),\"\")","v":""},{"$f":"IF(COUNTA($A$4:A24)<=COUNTIF(Tgl,$G$7),INDEX(TBL_BYR!D:D,MATCH($G$7,TBL_BYR!A:A,0)+ROW()-5),\"\")","v":""},{"$f":"IF(COUNTA($A$4:A24)<=COUNTIF(Tgl,$G$7),INDEX(TBL_BYR!E:E,MATCH($G$7,TBL_BYR!A:A,0)+ROW()-5),\"\")","v":""}]
[{"$f":"IF(COUNTA($A$4:A25)<=COUNTIF(Tgl,$G$7),INDEX(TBL_BYR!A:A,MATCH($G$7,TBL_BYR!A:A,0)+ROW()-5),\"\")","v":""},{"$f":"IF(COUNTA($A$4:A25)<=COUNTIF(Tgl,$G$7),INDEX(TBL_BYR!B:B,MATCH($G$7,TBL_BYR!A:A,0)+ROW()-5),\"\")","v":""},{"$f":"IF(COUNTA($A$4:A25)<=COUNTIF(Tgl,$G$7),INDEX(TBL_BYR!C:C,MATCH($G$7,TBL_BYR!A:A,0)+ROW()-5),\"\")","v":""},{"$f":"IF(COUNTA($A$4:A25)<=COUNTIF(Tgl,$G$7),INDEX(TBL_BYR!D:D,MATCH($G$7,TBL_BYR!A:A,0)+ROW()-5),\"\")","v":""},{"$f":"IF(COUNTA($A$4:A25)<=COUNTIF(Tgl,$G$7),INDEX(TBL_BYR!E:E,MATCH($G$7,TBL_BYR!A:A,0)+ROW()-5),\"\")","v":""}]
[{"$f":"IF(COUNTA($A$4:A26)<=COUNTIF(Tgl,$G$7),INDEX(TBL_BYR!A:A,MATCH($G$7,TBL_BYR!A:A,0)+ROW()-5),\"\")","v":""},{"$f":"IF(COUNTA($A$4:A26)<=COUNTIF(Tgl,$G$7),INDEX(TBL_BYR!B:B,MATCH($G$7,TBL_BYR!A:A,0)+ROW()-5),\"\")","v":""},{"$f":"IF(COUNTA($A$4:A26)<=COUNTIF(Tgl,$G$7),INDEX(TBL_BYR!C:C,MATCH($G$7,TBL_BYR!A:A,0)+ROW()-5),\"\")","v":""},{"$f":"IF(COUNTA($A$4:A26)<=COUNTIF(Tgl,$G$7),INDEX(TBL_BYR!D:D,MATCH($G$7,TBL_BYR!A:A,0)+ROW()-5),\"\")","v":""},{"$f":"IF(COUNTA($A$4:A26)<=COUNTIF(Tgl,$G$7),INDEX(TBL_BYR!E:E,MATCH($G$7,TBL_BYR!A:A,0)+ROW()-5),\"\")","v":""}]
[{"$f":"IF(COUNTA($A$4:A27)<=COUNTIF(Tgl,$G$7),INDEX(TBL_BYR!A:A,MATCH($G$7,TBL_BYR!A:A,0)+ROW()-5),\"\")","v":""},{"$f":"IF(COUNTA($A$4:A27)<=COUNTIF(Tgl,$G$7),INDEX(TBL_BYR!B:B,MATCH($G$7,TBL_BYR!A:A,0)+ROW()-5),\"\")","v":""},{"$f":"IF(COUNTA($A$4:A27)<=COUNTIF(Tgl,$G$7),INDEX(TBL_BYR!C:C,MATCH($G$7,TBL_BYR!A:A,0)+ROW()-5),\"\")","v":""},{"$f":"IF(COUNTA($A$4:A27)<=COUNTIF(Tgl,$G$7),INDEX(TBL_BYR!D:D,MATCH($G$7,TBL_BYR!A:A,0)+ROW()-5),\"\")","v":""},{"$f":"IF(COUNTA($A$4:A27)<=COUNTIF(Tgl,$G$7),INDEX(TBL_BYR!E:E,MATCH($G$7,TBL_BYR!A:A,0)+ROW()-5),\"\")","v":""}]
[{"$f":"IF(COUNTA($A$4:A28)<=COUNTIF(Tgl,$G$7),INDEX(TBL_BYR!A:A,MATCH($G$7,TBL_BYR!A:A,0)+ROW()-5),\"\")","v":""},{"$f":"IF(COUNTA($A$4:A28)<=COUNTIF(Tgl,$G$7),INDEX(TBL_BYR!B:B,MATCH($G$7,TBL_BYR!A:A,0)+ROW()-5),\"\")","v":""},{"$f":"IF(COUNTA($A$4:A28)<=COUNTIF(Tgl,$G$7),INDEX(TBL_BYR!C:C,MATCH($G$7,TBL_BYR!A:A,0)+ROW()-5),\"\")","v":""},{"$f":"IF(COUNTA($A$4:A28)<=COUNTIF(Tgl,$G$7),INDEX(TBL_BYR!D:D,MATCH($G$7,TBL_BYR!A:A,0)+ROW()-5),\"\")","v":""},{"$f":"IF(COUNTA($A$4:A28)<=COUNTIF(Tgl,$G$7),INDEX(TBL_BYR!E:E,MATCH($G$7,TBL_BYR!A:A,0)+ROW()-5),\"\")","v":""}]
[{"$f":"IF(COUNTA($A$4:A29)<=COUNTIF(Tgl,$G$7),INDEX(TBL_BYR!A:A,MATCH($G$7,TBL_BYR!A:A,0)+ROW()-5),\"\")","v":""},{"$f":"IF(COUNTA($A$4:A29)<=COUNTIF(Tgl,$G$7),INDEX(TBL_BYR!B:B,MATCH($G$7,TBL_BYR!A:A,0)+ROW()-5),\"\")","v":""},{"$f":"IF(COUNTA($A$4:A29)<=COUNTIF(Tgl,$G$7),INDEX(TBL_BYR!C:C,MATCH($G$7,TBL_BYR!A:A,0)+ROW()-5),\"\")","v":""},{"$f":"IF(COUNTA($A$4:A29)<=COUNTIF(Tgl,$G$7),INDEX(TBL_BYR!D:D,MATCH($G$7,TBL_BYR!A:A,0)+ROW()-5),\"\")","v":""},{"$f":"IF(COUNTA($A$4:A29)<=COUNTIF(Tgl,$G$7),INDEX(TBL_BYR!E:E,MATCH($G$7,TBL_BYR!A:A,0)+ROW()-5),\"\")","v":""}]
[{"$f":"IF(COUNTA($A$4:A30)<=COUNTIF(Tgl,$G$7),INDEX(TBL_BYR!A:A,MATCH($G$7,TBL_BYR!A:A,0)+ROW()-5),\"\")","v":""},{"$f":"IF(COUNTA($A$4:A30)<=COUNTIF(Tgl,$G$7),INDEX(TBL_BYR!B:B,MATCH($G$7,TBL_BYR!A:A,0)+ROW()-5),\"\")","v":""},{"$f":"IF(COUNTA($A$4:A30)<=COUNTIF(Tgl,$G$7),INDEX(TBL_BYR!C:C,MATCH($G$7,TBL_BYR!A:A,0)+ROW()-5),\"\")","v":""},{"$f":"IF(COUNTA($A$4:A30)<=COUNTIF(Tgl,$G$7),INDEX(TBL_BYR!D:D,MATCH($G$7,TBL_BYR!A:A,0)+ROW()-5),\"\")","v":""},{"$f":"IF(COUNTA($A$4:A30)<=COUNTIF(Tgl,$G$7),INDEX(TBL_BYR!E:E,MATCH($G$7,TBL_BYR!A:A,0)+ROW()-5),\"\")","v":""}]
[{"$f":"IF(COUNTA($A$4:A31)<=COUNTIF(Tgl,$G$7),INDEX(TBL_BYR!A:A,MATCH($G$7,TBL_BYR!A:A,0)+ROW()-5),\"\")","v":""},{"$f":"IF(COUNTA($A$4:A31)<=COUNTIF(Tgl,$G$7),INDEX(TBL_BYR!B:B,MATCH($G$7,TBL_BYR!A:A,0)+ROW()-5),\"\")","v":""},{"$f":"IF(COUNTA($A$4:A31)<=COUNTIF(Tgl,$G$7),INDEX(TBL_BYR!C:C,MATCH($G$7,TBL_BYR!A:A,0)+ROW()-5),\"\")","v":""},{"$f":"IF(COUNTA($A$4:A31)<=COUNTIF(Tgl,$G$7),INDEX(TBL_BYR!D:D,MATCH($G$7,TBL_BYR!A:A,0)+ROW()-5),\"\")","v":""},{"$f":"IF(COUNTA($A$4:A31)<=COUNTIF(Tgl,$G$7),INDEX(TBL_BYR!E:E,MATCH($G$7,TBL_BYR!A:A,0)+ROW()-5),\"\")","v":""}]
[{"$f":"IF(COUNTA($A$4:A32)<=COUNTIF(Tgl,$G$7),INDEX(TBL_BYR!A:A,MATCH($G$7,TBL_BYR!A:A,0)+ROW()-5),\"\")","v":""},{"$f":"IF(COUNTA($A$4:A32)<=COUNTIF(Tgl,$G$7),INDEX(TBL_BYR!B:B,MATCH($G$7,TBL_BYR!A:A,0)+ROW()-5),\"\")","v":""},{"$f":"IF(COUNTA($A$4:A32)<=COUNTIF(Tgl,$G$7),INDEX(TBL_BYR!C:C,MATCH($G$7,TBL_BYR!A:A,0)+ROW()-5),\"\")","v":""},{"$f":"IF(COUNTA($A$4:A32)<=COUNTIF(Tgl,$G$7),INDEX(TBL_BYR!D:D,MATCH($G$7,TBL_BYR!A:A,0)+ROW()-5),\"\")","v":""},{"$f":"IF(COUNTA($A$4:A32)<=COUNTIF(Tgl,$G$7),INDEX(TBL_BYR!E:E,MATCH($G$7,TBL_BYR!A:A,0)+ROW()-5),\"\")","v":""}]
[{"$f":"IF(COUNTA($A$4:A33)<=COUNTIF(Tgl,$G$7),INDEX(TBL_BYR!A:A,MATCH($G$7,TBL_BYR!A:A,0)+ROW()-5),\"\")","v":""},{"$f":"IF(COUNTA($A$4:A33)<=COUNTIF(Tgl,$G$7),INDEX(TBL_BYR!B:B,MATCH($G$7,TBL_BYR!A:A,0)+ROW()-5),\"\")","v":""},{"$f":"IF(COUNTA($A$4:A33)<=COUNTIF(Tgl,$G$7),INDEX(TBL_BYR!C:C,MATCH($G$7,TBL_BYR!A:A,0)+ROW()-5),\"\")","v":""},{"$f":"IF(COUNTA($A$4:A33)<=COUNTIF(Tgl,$G$7),INDEX(TBL_BYR!D:D,MATCH($G$7,TBL_BYR!A:A,0)+ROW()-5),\"\")","v":""},{"$f":"IF(COUNTA($A$4:A33)<=COUNTIF(Tgl,$G$7),INDEX(TBL_BYR!E:E,MATCH($G$7,TBL_BYR!A:A,0)+ROW()-5),\"\")","v":""}]
["TOTAL ",null,null,null,{"$f":"SUM(E5:E34)","v":75000}]
["JUMLAH YANG MEMBAYAR",null,null,null,{"$f":"COUNT(E5:E34)","v":1}]

{"sheet":"PO_RT","index":7,"n_rows":36,"n_cols":7,"rows_kept":36,"cut":false,"hidden":false,"merged":[[0,0,0,4],[1,0,1,4],[34,0,34,3],[35,0,35,3]]}
["LAPORAN PEMBAYARAN HARIAN"]
[{"$f":"ISIAN!C3","v":"DESA CARUL"}]
["DATA per","NOMOR  WAJIP PAJAK ","NOMOR","NAMA WAJIB PAJAK","DIBAYAR"]
["RT/RW","(NOP)","BLOK","(NWP)","(Rp)"]
[{"$f":"IF(COUNTA($A$4:A4)<=COUNTIF(RT,$G$7),INDEX(TBL_BYR!A:A,MATCH($G$7,TBL_BYR!G:G,0)+ROW()-5),\"\")","v":"2017-05-03"},{"$f":"IF(COUNTA($A$4:A4)<=COUNTIF(RT,$G$7),INDEX(TBL_BYR!B:B,MATCH($G$7,TBL_BYR!G:G,0)+ROW()-5),\"\")","v":"00.01.0005"},{"$f":"IF(COUNTA($A$4:A4)<=COUNTIF(RT,$G$7),INDEX(TBL_BYR!C:C,MATCH($G$7,TBL_BYR!G:G,0)+ROW()-5),\"\")","v":"c.02b"},{"$f":"IF(COUNTA($A$4:A4)<=COUNTIF(RT,$G$7),INDEX(TBL_BYR!D:D,MATCH($G$7,TBL_BYR!G:G,0)+ROW()-5),\"\")","v":"ratmo"},{"$f":"IF(COUNTA($A$4:A4)<=COUNTIF(RT,$G$7),INDEX(TBL_BYR!E:E,MATCH($G$7,TBL_BYR!G:G,0)+ROW()-5),\"\")","v":75000},null,"MASUKAN RT/RW"]
[{"$f":"IF(COUNTA($A$4:A5)<=COUNTIF(RT,$G$7),INDEX(TBL_BYR!A:A,MATCH($G$7,TBL_BYR!G:G,0)+ROW()-5),\"\")","v":"2017-06-04"},{"$f":"IF(COUNTA($A$4:A5)<=COUNTIF(RT,$G$7),INDEX(TBL_BYR!B:B,MATCH($G$7,TBL_BYR!G:G,0)+ROW()-5),\"\")","v":"00.01.0003"},{"$f":"IF(COUNTA($A$4:A5)<=COUNTIF(RT,$G$7),INDEX(TBL_BYR!C:C,MATCH($G$7,TBL_BYR!G:G,0)+ROW()-5),\"\")","v":"D.02f"},{"$f":"IF(COUNTA($A$4:A5)<=COUNTIF(RT,$G$7),INDEX(TBL_BYR!D:D,MATCH($G$7,TBL_BYR!G:G,0)+ROW()-5),\"\")","v":"Jono"},{"$f":"IF(COUNTA($A$4:A5)<=COUNTIF(RT,$G$7),INDEX(TBL_BYR!E:E,MATCH($G$7,TBL_BYR!G:G,0)+ROW()-5),\"\")","v":80000},null,"YANG AKAN DI CETAK"]
[{"$f":"IF(COUNTA($A$4:A6)<=COUNTIF(RT,$G$7),INDEX(TBL_BYR!A:A,MATCH($G$7,TBL_BYR!G:G,0)+ROW()-5),\"\")","v":""},{"$f":"IF(COUNTA($A$4:A6)<=COUNTIF(RT,$G$7),INDEX(TBL_BYR!B:B,MATCH($G$7,TBL_BYR!G:G,0)+ROW()-5),\"\")","v":""},{"$f":"IF(COUNTA($A$4:A6)<=COUNTIF(RT,$G$7),INDEX(TBL_BYR!C:C,MATCH($G$7,TBL_BYR!G:G,0)+ROW()-5),\"\")","v":""},{"$f":"IF(COUNTA($A$4:A6)<=COUNTIF(RT,$G$7),INDEX(TBL_BYR!D:D,MATCH($G$7,TBL_BYR!G:G,0)+ROW()-5),\"\")","v":""},{"$f":"IF(COUNTA($A$4:A6)<=COUNTIF(RT,$G$7),INDEX(TBL_BYR!E:E,MATCH($G$7,TBL_BYR!G:G,0)+ROW()-5),\"\")","v":""},null,"02/03"]
[{"$f":"IF(COUNTA($A$4:A7)<=COUNTIF(RT,$G$7),INDEX(TBL_BYR!A:A,MATCH($G$7,TBL_BYR!G:G,0)+ROW()-5),\"\")","v":""},{"$f":"IF(COUNTA($A$4:A7)<=COUNTIF(RT,$G$7),INDEX(TBL_BYR!B:B,MATCH($G$7,TBL_BYR!G:G,0)+ROW()-5),\"\")","v":""},{"$f":"IF(COUNTA($A$4:A7)<=COUNTIF(RT,$G$7),INDEX(TBL_BYR!C:C,MATCH($G$7,TBL_BYR!G:G,0)+ROW()-5),\"\")","v":""},{"$f":"IF(COUNTA($A$4:A7)<=COUNTIF(RT,$G$7),INDEX(TBL_BYR!D:D,MATCH($G$7,TBL_BYR!G:G,0)+ROW()-5),\"\")","v":""},{"$f":"IF(COUNTA($A$4:A7)<=COUNTIF(RT,$G$7),INDEX(TBL_BYR!E:E,MATCH($G$7,TBL_BYR!G:G,0)+ROW()-5),\"\")","v":""}]
[{"$f":"IF(COUNTA($A$4:A8)<=COUNTIF(RT,$G$7),INDEX(TBL_BYR!A:A,MATCH($G$7,TBL_BYR!G:G,0)+ROW()-5),\"\")","v":""},{"$f":"IF(COUNTA($A$4:A8)<=COUNTIF(RT,$G$7),INDEX(TBL_BYR!B:B,MATCH($G$7,TBL_BYR!G:G,0)+ROW()-5),\"\")","v":""},{"$f":"IF(COUNTA($A$4:A8)<=COUNTIF(RT,$G$7),INDEX(TBL_BYR!C:C,MATCH($G$7,TBL_BYR!G:G,0)+ROW()-5),\"\")","v":""},{"$f":"IF(COUNTA($A$4:A8)<=COUNTIF(RT,$G$7),INDEX(TBL_BYR!D:D,MATCH($G$7,TBL_BYR!G:G,0)+ROW()-5),\"\")","v":""},{"$f":"IF(COUNTA($A$4:A8)<=COUNTIF(RT,$G$7),INDEX(TBL_BYR!E:E,MATCH($G$7,TBL_BYR!G:G,0)+ROW()-5),\"\")","v":""}]
[{"$f":"IF(COUNTA($A$4:A9)<=COUNTIF(RT,$G$7),INDEX(TBL_BYR!A:A,MATCH($G$7,TBL_BYR!G:G,0)+ROW()-5),\"\")","v":""},{"$f":"IF(COUNTA($A$4:A9)<=COUNTIF(RT,$G$7),INDEX(TBL_BYR!B:B,MATCH($G$7,TBL_BYR!G:G,0)+ROW()-5),\"\")","v":""},{"$f":"IF(COUNTA($A$4:A9)<=COUNTIF(RT,$G$7),INDEX(TBL_BYR!C:C,MATCH($G$7,TBL_BYR!G:G,0)+ROW()-5),\"\")","v":""},{"$f":"IF(COUNTA($A$4:A9)<=COUNTIF(RT,$G$7),INDEX(TBL_BYR!D:D,MATCH($G$7,TBL_BYR!G:G,0)+ROW()-5),\"\")","v":""},{"$f":"IF(COUNTA($A$4:A9)<=COUNTIF(RT,$G$7),INDEX(TBL_BYR!E:E,MATCH($G$7,TBL_BYR!G:G,0)+ROW()-5),\"\")","v":""}]
[{"$f":"IF(COUNTA($A$4:A10)<=COUNTIF(RT,$G$7),INDEX(TBL_BYR!A:A,MATCH($G$7,TBL_BYR!G:G,0)+ROW()-5),\"\")","v":""},{"$f":"IF(COUNTA($A$4:A10)<=COUNTIF(RT,$G$7),INDEX(TBL_BYR!B:B,MATCH($G$7,TBL_BYR!G:G,0)+ROW()-5),\"\")","v":""},{"$f":"IF(COUNTA($A$4:A10)<=COUNTIF(RT,$G$7),INDEX(TBL_BYR!C:C,MATCH($G$7,TBL_BYR!G:G,0)+ROW()-5),\"\")","v":""},{"$f":"IF(COUNTA($A$4:A10)<=COUNTIF(RT,$G$7),INDEX(TBL_BYR!D:D,MATCH($G$7,TBL_BYR!G:G,0)+ROW()-5),\"\")","v":""},{"$f":"IF(COUNTA($A$4:A10)<=COUNTIF(RT,$G$7),INDEX(TBL_BYR!E:E,MATCH($G$7,TBL_BYR!G:G,0)+ROW()-5),\"\")","v":""}]
[{"$f":"IF(COUNTA($A$4:A11)<=COUNTIF(RT,$G$7),INDEX(TBL_BYR!A:A,MATCH($G$7,TBL_BYR!G:G,0)+ROW()-5),\"\")","v":""},{"$f":"IF(COUNTA($A$4:A11)<=COUNTIF(RT,$G$7),INDEX(TBL_BYR!B:B,MATCH($G$7,TBL_BYR!G:G,0)+ROW()-5),\"\")","v":""},{"$f":"IF(COUNTA($A$4:A11)<=COUNTIF(RT,$G$7),INDEX(TBL_BYR!C:C,MATCH($G$7,TBL_BYR!G:G,0)+ROW()-5),\"\")","v":""},{"$f":"IF(COUNTA($A$4:A11)<=COUNTIF(RT,$G$7),INDEX(TBL_BYR!D:D,MATCH($G$7,TBL_BYR!G:G,0)+ROW()-5),\"\")","v":""},{"$f":"IF(COUNTA($A$4:A11)<=COUNTIF(RT,$G$7),INDEX(TBL_BYR!E:E,MATCH($G$7,TBL_BYR!G:G,0)+ROW()-5),\"\")","v":""}]
[{"$f":"IF(COUNTA($A$4:A12)<=COUNTIF(RT,$G$7),INDEX(TBL_BYR!A:A,MATCH($G$7,TBL_BYR!G:G,0)+ROW()-5),\"\")","v":""},{"$f":"IF(COUNTA($A$4:A12)<=COUNTIF(RT,$G$7),INDEX(TBL_BYR!B:B,MATCH($G$7,TBL_BYR!G:G,0)+ROW()-5),\"\")","v":""},{"$f":"IF(COUNTA($A$4:A12)<=COUNTIF(RT,$G$7),INDEX(TBL_BYR!C:C,MATCH($G$7,TBL_BYR!G:G,0)+ROW()-5),\"\")","v":""},{"$f":"IF(COUNTA($A$4:A12)<=COUNTIF(RT,$G$7),INDEX(TBL_BYR!D:D,MATCH($G$7,TBL_BYR!G:G,0)+ROW()-5),\"\")","v":""},{"$f":"IF(COUNTA($A$4:A12)<=COUNTIF(RT,$G$7),INDEX(TBL_BYR!E:E,MATCH($G$7,TBL_BYR!G:G,0)+ROW()-5),\"\")","v":""}]
[{"$f":"IF(COUNTA($A$4:A13)<=COUNTIF(RT,$G$7),INDEX(TBL_BYR!A:A,MATCH($G$7,TBL_BYR!G:G,0)+ROW()-5),\"\")","v":""},{"$f":"IF(COUNTA($A$4:A13)<=COUNTIF(RT,$G$7),INDEX(TBL_BYR!B:B,MATCH($G$7,TBL_BYR!G:G,0)+ROW()-5),\"\")","v":""},{"$f":"IF(COUNTA($A$4:A13)<=COUNTIF(RT,$G$7),INDEX(TBL_BYR!C:C,MATCH($G$7,TBL_BYR!G:G,0)+ROW()-5),\"\")","v":""},{"$f":"IF(COUNTA($A$4:A13)<=COUNTIF(RT,$G$7),INDEX(TBL_BYR!D:D,MATCH($G$7,TBL_BYR!G:G,0)+ROW()-5),\"\")","v":""},{"$f":"IF(COUNTA($A$4:A13)<=COUNTIF(RT,$G$7),INDEX(TBL_BYR!E:E,MATCH($G$7,TBL_BYR!G:G,0)+ROW()-5),\"\")","v":""}]
[{"$f":"IF(COUNTA($A$4:A14)<=COUNTIF(RT,$G$7),INDEX(TBL_BYR!A:A,MATCH($G$7,TBL_BYR!G:G,0)+ROW()-5),\"\")","v":""},{"$f":"IF(COUNTA($A$4:A14)<=COUNTIF(RT,$G$7),INDEX(TBL_BYR!B:B,MATCH($G$7,TBL_BYR!G:G,0)+ROW()-5),\"\")","v":""},{"$f":"IF(COUNTA($A$4:A14)<=COUNTIF(RT,$G$7),INDEX(TBL_BYR!C:C,MATCH($G$7,TBL_BYR!G:G,0)+ROW()-5),\"\")","v":""},{"$f":"IF(COUNTA($A$4:A14)<=COUNTIF(RT,$G$7),INDEX(TBL_BYR!D:D,MATCH($G$7,TBL_BYR!G:G,0)+ROW()-5),\"\")","v":""},{"$f":"IF(COUNTA($A$4:A14)<=COUNTIF(RT,$G$7),INDEX(TBL_BYR!E:E,MATCH($G$7,TBL_BYR!G:G,0)+ROW()-5),\"\")","v":""}]
[{"$f":"IF(COUNTA($A$4:A15)<=COUNTIF(RT,$G$7),INDEX(TBL_BYR!A:A,MATCH($G$7,TBL_BYR!G:G,0)+ROW()-5),\"\")","v":""},{"$f":"IF(COUNTA($A$4:A15)<=COUNTIF(RT,$G$7),INDEX(TBL_BYR!B:B,MATCH($G$7,TBL_BYR!G:G,0)+ROW()-5),\"\")","v":""},{"$f":"IF(COUNTA($A$4:A15)<=COUNTIF(RT,$G$7),INDEX(TBL_BYR!C:C,MATCH($G$7,TBL_BYR!G:G,0)+ROW()-5),\"\")","v":""},{"$f":"IF(COUNTA($A$4:A15)<=COUNTIF(RT,$G$7),INDEX(TBL_BYR!D:D,MATCH($G$7,TBL_BYR!G:G,0)+ROW()-5),\"\")","v":""},{"$f":"IF(COUNTA($A$4:A15)<=COUNTIF(RT,$G$7),INDEX(TBL_BYR!E:E,MATCH($G$7,TBL_BYR!G:G,0)+ROW()-5),\"\")","v":""}]
[{"$f":"IF(COUNTA($A$4:A16)<=COUNTIF(RT,$G$7),INDEX(TBL_BYR!A:A,MATCH($G$7,TBL_BYR!G:G,0)+ROW()-5),\"\")","v":""},{"$f":"IF(COUNTA($A$4:A16)<=COUNTIF(RT,$G$7),INDEX(TBL_BYR!B:B,MATCH($G$7,TBL_BYR!G:G,0)+ROW()-5),\"\")","v":""},{"$f":"IF(COUNTA($A$4:A16)<=COUNTIF(RT,$G$7),INDEX(TBL_BYR!C:C,MATCH($G$7,TBL_BYR!G:G,0)+ROW()-5),\"\")","v":""},{"$f":"IF(COUNTA($A$4:A16)<=COUNTIF(RT,$G$7),INDEX(TBL_BYR!D:D,MATCH($G$7,TBL_BYR!G:G,0)+ROW()-5),\"\")","v":""},{"$f":"IF(COUNTA($A$4:A16)<=COUNTIF(RT,$G$7),INDEX(TBL_BYR!E:E,MATCH($G$7,TBL_BYR!G:G,0)+ROW()-5),\"\")","v":""}]
[{"$f":"IF(COUNTA($A$4:A17)<=COUNTIF(RT,$G$7),INDEX(TBL_BYR!A:A,MATCH($G$7,TBL_BYR!G:G,0)+ROW()-5),\"\")","v":""},{"$f":"IF(COUNTA($A$4:A17)<=COUNTIF(RT,$G$7),INDEX(TBL_BYR!B:B,MATCH($G$7,TBL_BYR!G:G,0)+ROW()-5),\"\")","v":""},{"$f":"IF(COUNTA($A$4:A17)<=COUNTIF(RT,$G$7),INDEX(TBL_BYR!C:C,MATCH($G$7,TBL_BYR!G:G,0)+ROW()-5),\"\")","v":""},{"$f":"IF(COUNTA($A$4:A17)<=COUNTIF(RT,$G$7),INDEX(TBL_BYR!D:D,MATCH($G$7,TBL_BYR!G:G,0)+ROW()-5),\"\")","v":""},{"$f":"IF(COUNTA($A$4:A17)<=COUNTIF(RT,$G$7),INDEX(TBL_BYR!E:E,MATCH($G$7,TBL_BYR!G:G,0)+ROW()-5),\"\")","v":""}]
[{"$f":"IF(COUNTA($A$4:A18)<=COUNTIF(RT,$G$7),INDEX(TBL_BYR!A:A,MATCH($G$7,TBL_BYR!G:G,0)+ROW()-5),\"\")","v":""},{"$f":"IF(COUNTA($A$4:A18)<=COUNTIF(RT,$G$7),INDEX(TBL_BYR!B:B,MATCH($G$7,TBL_BYR!G:G,0)+ROW()-5),\"\")","v":""},{"$f":"IF(COUNTA($A$4:A18)<=COUNTIF(RT,$G$7),INDEX(TBL_BYR!C:C,MATCH($G$7,TBL_BYR!G:G,0)+ROW()-5),\"\")","v":""},{"$f":"IF(COUNTA($A$4:A18)<=COUNTIF(RT,$G$7),INDEX(TBL_BYR!D:D,MATCH($G$7,TBL_BYR!G:G,0)+ROW()-5),\"\")","v":""},{"$f":"IF(COUNTA($A$4:A18)<=COUNTIF(RT,$G$7),INDEX(TBL_BYR!E:E,MATCH($G$7,TBL_BYR!G:G,0)+ROW()-5),\"\")","v":""}]
[{"$f":"IF(COUNTA($A$4:A19)<=COUNTIF(RT,$G$7),INDEX(TBL_BYR!A:A,MATCH($G$7,TBL_BYR!G:G,0)+ROW()-5),\"\")","v":""},{"$f":"IF(COUNTA($A$4:A19)<=COUNTIF(RT,$G$7),INDEX(TBL_BYR!B:B,MATCH($G$7,TBL_BYR!G:G,0)+ROW()-5),\"\")","v":""},{"$f":"IF(COUNTA($A$4:A19)<=COUNTIF(RT,$G$7),INDEX(TBL_BYR!C:C,MATCH($G$7,TBL_BYR!G:G,0)+ROW()-5),\"\")","v":""},{"$f":"IF(COUNTA($A$4:A19)<=COUNTIF(RT,$G$7),INDEX(TBL_BYR!D:D,MATCH($G$7,TBL_BYR!G:G,0)+ROW()-5),\"\")","v":""},{"$f":"IF(COUNTA($A$4:A19)<=COUNTIF(RT,$G$7),INDEX(TBL_BYR!E:E,MATCH($G$7,TBL_BYR!G:G,0)+ROW()-5),\"\")","v":""}]
[{"$f":"IF(COUNTA($A$4:A20)<=COUNTIF(RT,$G$7),INDEX(TBL_BYR!A:A,MATCH($G$7,TBL_BYR!G:G,0)+ROW()-5),\"\")","v":""},{"$f":"IF(COUNTA($A$4:A20)<=COUNTIF(RT,$G$7),INDEX(TBL_BYR!B:B,MATCH($G$7,TBL_BYR!G:G,0)+ROW()-5),\"\")","v":""},{"$f":"IF(COUNTA($A$4:A20)<=COUNTIF(RT,$G$7),INDEX(TBL_BYR!C:C,MATCH($G$7,TBL_BYR!G:G,0)+ROW()-5),\"\")","v":""},{"$f":"IF(COUNTA($A$4:A20)<=COUNTIF(RT,$G$7),INDEX(TBL_BYR!D:D,MATCH($G$7,TBL_BYR!G:G,0)+ROW()-5),\"\")","v":""},{"$f":"IF(COUNTA($A$4:A20)<=COUNTIF(RT,$G$7),INDEX(TBL_BYR!E:E,MATCH($G$7,TBL_BYR!G:G,0)+ROW()-5),\"\")","v":""}]
[{"$f":"IF(COUNTA($A$4:A21)<=COUNTIF(RT,$G$7),INDEX(TBL_BYR!A:A,MATCH($G$7,TBL_BYR!G:G,0)+ROW()-5),\"\")","v":""},{"$f":"IF(COUNTA($A$4:A21)<=COUNTIF(RT,$G$7),INDEX(TBL_BYR!B:B,MATCH($G$7,TBL_BYR!G:G,0)+ROW()-5),\"\")","v":""},{"$f":"IF(COUNTA($A$4:A21)<=COUNTIF(RT,$G$7),INDEX(TBL_BYR!C:C,MATCH($G$7,TBL_BYR!G:G,0)+ROW()-5),\"\")","v":""},{"$f":"IF(COUNTA($A$4:A21)<=COUNTIF(RT,$G$7),INDEX(TBL_BYR!D:D,MATCH($G$7,TBL_BYR!G:G,0)+ROW()-5),\"\")","v":""},{"$f":"IF(COUNTA($A$4:A21)<=COUNTIF(RT,$G$7),INDEX(TBL_BYR!E:E,MATCH($G$7,TBL_BYR!G:G,0)+ROW()-5),\"\")","v":""}]
[{"$f":"IF(COUNTA($A$4:A22)<=COUNTIF(RT,$G$7),INDEX(TBL_BYR!A:A,MATCH($G$7,TBL_BYR!G:G,0)+ROW()-5),\"\")","v":""},{"$f":"IF(COUNTA($A$4:A22)<=COUNTIF(RT,$G$7),INDEX(TBL_BYR!B:B,MATCH($G$7,TBL_BYR!G:G,0)+ROW()-5),\"\")","v":""},{"$f":"IF(COUNTA($A$4:A22)<=COUNTIF(RT,$G$7),INDEX(TBL_BYR!C:C,MATCH($G$7,TBL_BYR!G:G,0)+ROW()-5),\"\")","v":""},{"$f":"IF(COUNTA($A$4:A22)<=COUNTIF(RT,$G$7),INDEX(TBL_BYR!D:D,MATCH($G$7,TBL_BYR!G:G,0)+ROW()-5),\"\")","v":""},{"$f":"IF(COUNTA($A$4:A22)<=COUNTIF(RT,$G$7),INDEX(TBL_BYR!E:E,MATCH($G$7,TBL_BYR!G:G,0)+ROW()-5),\"\")","v":""}]
[{"$f":"IF(COUNTA($A$4:A23)<=COUNTIF(RT,$G$7),INDEX(TBL_BYR!A:A,MATCH($G$7,TBL_BYR!G:G,0)+ROW()-5),\"\")","v":""},{"$f":"IF(COUNTA($A$4:A23)<=COUNTIF(RT,$G$7),INDEX(TBL_BYR!B:B,MATCH($G$7,TBL_BYR!G:G,0)+ROW()-5),\"\")","v":""},{"$f":"IF(COUNTA($A$4:A23)<=COUNTIF(RT,$G$7),INDEX(TBL_BYR!C:C,MATCH($G$7,TBL_BYR!G:G,0)+ROW()-5),\"\")","v":""},{"$f":"IF(COUNTA($A$4:A23)<=COUNTIF(RT,$G$7),INDEX(TBL_BYR!D:D,MATCH($G$7,TBL_BYR!G:G,0)+ROW()-5),\"\")","v":""},{"$f":"IF(COUNTA($A$4:A23)<=COUNTIF(RT,$G$7),INDEX(TBL_BYR!E:E,MATCH($G$7,TBL_BYR!G:G,0)+ROW()-5),\"\")","v":""}]
[{"$f":"IF(COUNTA($A$4:A24)<=COUNTIF(RT,$G$7),INDEX(TBL_BYR!A:A,MATCH($G$7,TBL_BYR!G:G,0)+ROW()-5),\"\")","v":""},{"$f":"IF(COUNTA($A$4:A24)<=COUNTIF(RT,$G$7),INDEX(TBL_BYR!B:B,MATCH($G$7,TBL_BYR!G:G,0)+ROW()-5),\"\")","v":""},{"$f":"IF(COUNTA($A$4:A24)<=COUNTIF(RT,$G$7),INDEX(TBL_BYR!C:C,MATCH($G$7,TBL_BYR!G:G,0)+ROW()-5),\"\")","v":""},{"$f":"IF(COUNTA($A$4:A24)<=COUNTIF(RT,$G$7),INDEX(TBL_BYR!D:D,MATCH($G$7,TBL_BYR!G:G,0)+ROW()-5),\"\")","v":""},{"$f":"IF(COUNTA($A$4:A24)<=COUNTIF(RT,$G$7),INDEX(TBL_BYR!E:E,MATCH($G$7,TBL_BYR!G:G,0)+ROW()-5),\"\")","v":""}]
[{"$f":"IF(COUNTA($A$4:A25)<=COUNTIF(RT,$G$7),INDEX(TBL_BYR!A:A,MATCH($G$7,TBL_BYR!G:G,0)+ROW()-5),\"\")","v":""},{"$f":"IF(COUNTA($A$4:A25)<=COUNTIF(RT,$G$7),INDEX(TBL_BYR!B:B,MATCH($G$7,TBL_BYR!G:G,0)+ROW()-5),\"\")","v":""},{"$f":"IF(COUNTA($A$4:A25)<=COUNTIF(RT,$G$7),INDEX(TBL_BYR!C:C,MATCH($G$7,TBL_BYR!G:G,0)+ROW()-5),\"\")","v":""},{"$f":"IF(COUNTA($A$4:A25)<=COUNTIF(RT,$G$7),INDEX(TBL_BYR!D:D,MATCH($G$7,TBL_BYR!G:G,0)+ROW()-5),\"\")","v":""},{"$f":"IF(COUNTA($A$4:A25)<=COUNTIF(RT,$G$7),INDEX(TBL_BYR!E:E,MATCH($G$7,TBL_BYR!G:G,0)+ROW()-5),\"\")","v":""}]
[{"$f":"IF(COUNTA($A$4:A26)<=COUNTIF(RT,$G$7),INDEX(TBL_BYR!A:A,MATCH($G$7,TBL_BYR!G:G,0)+ROW()-5),\"\")","v":""},{"$f":"IF(COUNTA($A$4:A26)<=COUNTIF(RT,$G$7),INDEX(TBL_BYR!B:B,MATCH($G$7,TBL_BYR!G:G,0)+ROW()-5),\"\")","v":""},{"$f":"IF(COUNTA($A$4:A26)<=COUNTIF(RT,$G$7),INDEX(TBL_BYR!C:C,MATCH($G$7,TBL_BYR!G:G,0)+ROW()-5),\"\")","v":""},{"$f":"IF(COUNTA($A$4:A26)<=COUNTIF(RT,$G$7),INDEX(TBL_BYR!D:D,MATCH($G$7,TBL_BYR!G:G,0)+ROW()-5),\"\")","v":""},{"$f":"IF(COUNTA($A$4:A26)<=COUNTIF(RT,$G$7),INDEX(TBL_BYR!E:E,MATCH($G$7,TBL_BYR!G:G,0)+ROW()-5),\"\")","v":""}]
[{"$f":"IF(COUNTA($A$4:A27)<=COUNTIF(RT,$G$7),INDEX(TBL_BYR!A:A,MATCH($G$7,TBL_BYR!G:G,0)+ROW()-5),\"\")","v":""},{"$f":"IF(COUNTA($A$4:A27)<=COUNTIF(RT,$G$7),INDEX(TBL_BYR!B:B,MATCH($G$7,TBL_BYR!G:G,0)+ROW()-5),\"\")","v":""},{"$f":"IF(COUNTA($A$4:A27)<=COUNTIF(RT,$G$7),INDEX(TBL_BYR!C:C,MATCH($G$7,TBL_BYR!G:G,0)+ROW()-5),\"\")","v":""},{"$f":"IF(COUNTA($A$4:A27)<=COUNTIF(RT,$G$7),INDEX(TBL_BYR!D:D,MATCH($G$7,TBL_BYR!G:G,0)+ROW()-5),\"\")","v":""},{"$f":"IF(COUNTA($A$4:A27)<=COUNTIF(RT,$G$7),INDEX(TBL_BYR!E:E,MATCH($G$7,TBL_BYR!G:G,0)+ROW()-5),\"\")","v":""}]
[{"$f":"IF(COUNTA($A$4:A28)<=COUNTIF(RT,$G$7),INDEX(TBL_BYR!A:A,MATCH($G$7,TBL_BYR!G:G,0)+ROW()-5),\"\")","v":""},{"$f":"IF(COUNTA($A$4:A28)<=COUNTIF(RT,$G$7),INDEX(TBL_BYR!B:B,MATCH($G$7,TBL_BYR!G:G,0)+ROW()-5),\"\")","v":""},{"$f":"IF(COUNTA($A$4:A28)<=COUNTIF(RT,$G$7),INDEX(TBL_BYR!C:C,MATCH($G$7,TBL_BYR!G:G,0)+ROW()-5),\"\")","v":""},{"$f":"IF(COUNTA($A$4:A28)<=COUNTIF(RT,$G$7),INDEX(TBL_BYR!D:D,MATCH($G$7,TBL_BYR!G:G,0)+ROW()-5),\"\")","v":""},{"$f":"IF(COUNTA($A$4:A28)<=COUNTIF(RT,$G$7),INDEX(TBL_BYR!E:E,MATCH($G$7,TBL_BYR!G:G,0)+ROW()-5),\"\")","v":""}]
[{"$f":"IF(COUNTA($A$4:A29)<=COUNTIF(RT,$G$7),INDEX(TBL_BYR!A:A,MATCH($G$7,TBL_BYR!G:G,0)+ROW()-5),\"\")","v":""},{"$f":"IF(COUNTA($A$4:A29)<=COUNTIF(RT,$G$7),INDEX(TBL_BYR!B:B,MATCH($G$7,TBL_BYR!G:G,0)+ROW()-5),\"\")","v":""},{"$f":"IF(COUNTA($A$4:A29)<=COUNTIF(RT,$G$7),INDEX(TBL_BYR!C:C,MATCH($G$7,TBL_BYR!G:G,0)+ROW()-5),\"\")","v":""},{"$f":"IF(COUNTA($A$4:A29)<=COUNTIF(RT,$G$7),INDEX(TBL_BYR!D:D,MATCH($G$7,TBL_BYR!G:G,0)+ROW()-5),\"\")","v":""},{"$f":"IF(COUNTA($A$4:A29)<=COUNTIF(RT,$G$7),INDEX(TBL_BYR!E:E,MATCH($G$7,TBL_BYR!G:G,0)+ROW()-5),\"\")","v":""}]
[{"$f":"IF(COUNTA($A$4:A30)<=COUNTIF(RT,$G$7),INDEX(TBL_BYR!A:A,MATCH($G$7,TBL_BYR!G:G,0)+ROW()-5),\"\")","v":""},{"$f":"IF(COUNTA($A$4:A30)<=COUNTIF(RT,$G$7),INDEX(TBL_BYR!B:B,MATCH($G$7,TBL_BYR!G:G,0)+ROW()-5),\"\")","v":""},{"$f":"IF(COUNTA($A$4:A30)<=COUNTIF(RT,$G$7),INDEX(TBL_BYR!C:C,MATCH($G$7,TBL_BYR!G:G,0)+ROW()-5),\"\")","v":""},{"$f":"IF(COUNTA($A$4:A30)<=COUNTIF(RT,$G$7),INDEX(TBL_BYR!D:D,MATCH($G$7,TBL_BYR!G:G,0)+ROW()-5),\"\")","v":""},{"$f":"IF(COUNTA($A$4:A30)<=COUNTIF(RT,$G$7),INDEX(TBL_BYR!E:E,MATCH($G$7,TBL_BYR!G:G,0)+ROW()-5),\"\")","v":""}]
[{"$f":"IF(COUNTA($A$4:A31)<=COUNTIF(RT,$G$7),INDEX(TBL_BYR!A:A,MATCH($G$7,TBL_BYR!G:G,0)+ROW()-5),\"\")","v":""},{"$f":"IF(COUNTA($A$4:A31)<=COUNTIF(RT,$G$7),INDEX(TBL_BYR!B:B,MATCH($G$7,TBL_BYR!G:G,0)+ROW()-5),\"\")","v":""},{"$f":"IF(COUNTA($A$4:A31)<=COUNTIF(RT,$G$7),INDEX(TBL_BYR!C:C,MATCH($G$7,TBL_BYR!G:G,0)+ROW()-5),\"\")","v":""},{"$f":"IF(COUNTA($A$4:A31)<=COUNTIF(RT,$G$7),INDEX(TBL_BYR!D:D,MATCH($G$7,TBL_BYR!G:G,0)+ROW()-5),\"\")","v":""},{"$f":"IF(COUNTA($A$4:A31)<=COUNTIF(RT,$G$7),INDEX(TBL_BYR!E:E,MATCH($G$7,TBL_BYR!G:G,0)+ROW()-5),\"\")","v":""}]
[{"$f":"IF(COUNTA($A$4:A32)<=COUNTIF(RT,$G$7),INDEX(TBL_BYR!A:A,MATCH($G$7,TBL_BYR!G:G,0)+ROW()-5),\"\")","v":""},{"$f":"IF(COUNTA($A$4:A32)<=COUNTIF(RT,$G$7),INDEX(TBL_BYR!B:B,MATCH($G$7,TBL_BYR!G:G,0)+ROW()-5),\"\")","v":""},{"$f":"IF(COUNTA($A$4:A32)<=COUNTIF(RT,$G$7),INDEX(TBL_BYR!C:C,MATCH($G$7,TBL_BYR!G:G,0)+ROW()-5),\"\")","v":""},{"$f":"IF(COUNTA($A$4:A32)<=COUNTIF(RT,$G$7),INDEX(TBL_BYR!D:D,MATCH($G$7,TBL_BYR!G:G,0)+ROW()-5),\"\")","v":""},{"$f":"IF(COUNTA($A$4:A32)<=COUNTIF(RT,$G$7),INDEX(TBL_BYR!E:E,MATCH($G$7,TBL_BYR!G:G,0)+ROW()-5),\"\")","v":""}]
[{"$f":"IF(COUNTA($A$4:A33)<=COUNTIF(RT,$G$7),INDEX(TBL_BYR!A:A,MATCH($G$7,TBL_BYR!G:G,0)+ROW()-5),\"\")","v":""},{"$f":"IF(COUNTA($A$4:A33)<=COUNTIF(RT,$G$7),INDEX(TBL_BYR!B:B,MATCH($G$7,TBL_BYR!G:G,0)+ROW()-5),\"\")","v":""},{"$f":"IF(COUNTA($A$4:A33)<=COUNTIF(RT,$G$7),INDEX(TBL_BYR!C:C,MATCH($G$7,TBL_BYR!G:G,0)+ROW()-5),\"\")","v":""},{"$f":"IF(COUNTA($A$4:A33)<=COUNTIF(RT,$G$7),INDEX(TBL_BYR!D:D,MATCH($G$7,TBL_BYR!G:G,0)+ROW()-5),\"\")","v":""},{"$f":"IF(COUNTA($A$4:A33)<=COUNTIF(RT,$G$7),INDEX(TBL_BYR!E:E,MATCH($G$7,TBL_BYR!G:G,0)+ROW()-5),\"\")","v":""}]
["TOTAL ",null,null,null,{"$f":"SUM(E5:E34)","v":155000}]
["JUMLAH YANG MEMBAYAR",null,null,null,{"$f":"COUNT(E5:E34)","v":2}]